Organisation Name,Organisation Code,Unique Ref No,Effective Date,Directorate  where expenditure incurred,Supplier name ,Payment Date,Net Amount,Purpose of Spend,Procurement Classification (Higher Level),Procurement Classification (Lower Level),Capital/Revenue
Walsall Council,http://opendatacommunities.org/id/metropolitan-district-council/walsall,WC72-1,30/09/2016,Childrens,11KBW,19/09/2016,"1,000.00",73014-LEGAL FEES-PRIV CONTRACTOR FEES,GENERAL MANAGEMENT SUPPORT (INC LEGAL),Third Party Payments,Revenue
Walsall Council,http://opendatacommunities.org/id/metropolitan-district-council/walsall,WC72-2,30/09/2016,Childrens,5 CARE SERVICES LTD,06/09/2016,890.50,63000-PROFESSIONAL FEES AND SERVICES,DIRECTLY COMMISSIONED NURSING SERVICES,Supplies & Services,Revenue
Walsall Council,http://opendatacommunities.org/id/metropolitan-district-council/walsall,WC72-3,30/09/2016,Childrens,5 CARE SERVICES LTD,06/09/2016,"1,111.50",63000-PROFESSIONAL FEES AND SERVICES,DIRECTLY COMMISSIONED NURSING SERVICES,Supplies & Services,Revenue
Walsall Council,http://opendatacommunities.org/id/metropolitan-district-council/walsall,WC72-4,30/09/2016,Childrens,5 CARE SERVICES LTD,06/09/2016,"1,924.00",63000-PROFESSIONAL FEES AND SERVICES,DIRECTLY COMMISSIONED NURSING SERVICES,Supplies & Services,Revenue
Walsall Council,http://opendatacommunities.org/id/metropolitan-district-council/walsall,WC72-5,30/09/2016,Social Care & Inclusion,5 CARE SERVICES LTD,14/09/2016,"39,484.57",73372-DOMICILIARY CARE,OP COMMISSIONING,Third Party Payments,Revenue
Walsall Council,http://opendatacommunities.org/id/metropolitan-district-council/walsall,WC72-6,30/09/2016,Change and Governance,A & M ELLIS,12/09/2016,560.00,62008-OUTWORK-PRINT ROOM,PRINTING SERVICES,Supplies & Services,Revenue
Walsall Council,http://opendatacommunities.org/id/metropolitan-district-council/walsall,WC72-7,30/09/2016,Change and Governance,A D T FIRE AND SECURITY PLC,23/09/2016,247.48,01006-SITE WORKS MAIN CONTRACTORS,CFR 804 FIRE RISK ASSESSMENT WORKS,Capital,Capital
Walsall Council,http://opendatacommunities.org/id/metropolitan-district-council/walsall,WC72-8,30/09/2016,Change and Governance,A D T FIRE AND SECURITY PLC,14/09/2016,291.00,73002-SECURITY-PRIV CONTRACTOR FEES,CHALLENGE BUILDING,Third Party Payments,Revenue
Walsall Council,http://opendatacommunities.org/id/metropolitan-district-council/walsall,WC72-9,30/09/2016,Change and Governance,A D T FIRE AND SECURITY PLC,27/09/2016,320.97,01006-SITE WORKS MAIN CONTRACTORS,CFR 804 FIRE RISK ASSESSMENT WORKS,Capital,Capital
Walsall Council,http://opendatacommunities.org/id/metropolitan-district-council/walsall,WC72-10,30/09/2016,Change and Governance,A D T FIRE AND SECURITY PLC,23/09/2016,349.16,73002-SECURITY-PRIV CONTRACTOR FEES,CENTRALISED MAINTENANCE,Third Party Payments,Revenue
Walsall Council,http://opendatacommunities.org/id/metropolitan-district-council/walsall,WC72-11,30/09/2016,Economy & Environment,A D T FIRE AND SECURITY PLC,21/09/2016,359.04,60008-MAINTENANCE-FURNITURE & EQUIPMENT,LIBRARY OPERATIONS CENTRAL,Supplies & Services,Revenue
Walsall Council,http://opendatacommunities.org/id/metropolitan-district-council/walsall,WC72-12,30/09/2016,Change and Governance,A D T FIRE AND SECURITY PLC,23/09/2016,421.75,73002-SECURITY-PRIV CONTRACTOR FEES,REDUNDANT BUILDINGS,Third Party Payments,Revenue
Walsall Council,http://opendatacommunities.org/id/metropolitan-district-council/walsall,WC72-13,30/09/2016,Childrens,A D T FIRE AND SECURITY PLC,27/09/2016,592.29,60008-MAINTENANCE-FURNITURE & EQUIPMENT,STROUD FAMILY CENTRE,Supplies & Services,Revenue
Walsall Council,http://opendatacommunities.org/id/metropolitan-district-council/walsall,WC72-14,30/09/2016,Change and Governance,A D T FIRE AND SECURITY PLC,27/09/2016,632.00,01006-SITE WORKS MAIN CONTRACTORS,CFR 804 FIRE RISK ASSESSMENT WORKS,Capital,Capital
Walsall Council,http://opendatacommunities.org/id/metropolitan-district-council/walsall,WC72-15,30/09/2016,Change and Governance,A D T FIRE AND SECURITY PLC,26/09/2016,829.71,73002-SECURITY-PRIV CONTRACTOR FEES,CENTRALISED MAINTENANCE,Third Party Payments,Revenue
Walsall Council,http://opendatacommunities.org/id/metropolitan-district-council/walsall,WC72-16,30/09/2016,Change and Governance,A D T FIRE AND SECURITY PLC,28/09/2016,841.79,73002-SECURITY-PRIV CONTRACTOR FEES,CENTRALISED MAINTENANCE,Third Party Payments,Revenue
Walsall Council,http://opendatacommunities.org/id/metropolitan-district-council/walsall,WC72-17,30/09/2016,Change and Governance,A D T FIRE AND SECURITY PLC,23/09/2016,869.57,73002-SECURITY-PRIV CONTRACTOR FEES,REDUNDANT BUILDINGS,Third Party Payments,Revenue
Walsall Council,http://opendatacommunities.org/id/metropolitan-district-council/walsall,WC72-18,30/09/2016,Social Care & Inclusion,A F BLAKEMORE & SON LTD,26/09/2016,296.51,61016-FOOD AND BEVERAGES-PROVISIONS,REABLEMENT TEAM - HOLLY BANK,Supplies & Services,Revenue
Walsall Council,http://opendatacommunities.org/id/metropolitan-district-council/walsall,WC72-19,30/09/2016,Economy & Environment,A F BLAKEMORE & SON LTD,19/09/2016,345.18,61009-BEVERAGES-PROVISIONS,DARLASTON LEISURE CENTRE,Supplies & Services,Revenue
Walsall Council,http://opendatacommunities.org/id/metropolitan-district-council/walsall,WC72-20,30/09/2016,Economy & Environment,A F BLAKEMORE & SON LTD,27/09/2016,377.12,61008-CONFECTIONERY/SNACKS-PROVISIONS,OAK PARK,Supplies & Services,Revenue
Walsall Council,http://opendatacommunities.org/id/metropolitan-district-council/walsall,WC72-21,30/09/2016,Social Care & Inclusion,A F BLAKEMORE & SON LTD,15/09/2016,455.74,61016-FOOD AND BEVERAGES-PROVISIONS,REABLEMENT TEAM - HOLLY BANK,Supplies & Services,Revenue
Walsall Council,http://opendatacommunities.org/id/metropolitan-district-council/walsall,WC72-22,30/09/2016,Economy & Environment,A F BLAKEMORE & SON LTD,26/09/2016,489.11,61018-DRINKS-PROVISIONS,WALSALL GALA CENTRE,Supplies & Services,Revenue
Walsall Council,http://opendatacommunities.org/id/metropolitan-district-council/walsall,WC72-23,30/09/2016,Social Care & Inclusion,A F BLAKEMORE & SON LTD,15/09/2016,530.29,61016-FOOD AND BEVERAGES-PROVISIONS,REABLEMENT TEAM - HOLLY BANK,Supplies & Services,Revenue
Walsall Council,http://opendatacommunities.org/id/metropolitan-district-council/walsall,WC72-24,30/09/2016,Social Care & Inclusion,A F BLAKEMORE & SON LTD,15/09/2016,534.58,61016-FOOD AND BEVERAGES-PROVISIONS,REABLEMENT TEAM - HOLLY BANK,Supplies & Services,Revenue
Walsall Council,http://opendatacommunities.org/id/metropolitan-district-council/walsall,WC72-25,30/09/2016,Economy & Environment,A F BLAKEMORE & SON LTD,20/09/2016,666.59,61002-DRY FOODS-PROVISIONS,DARLASTON LEISURE CENTRE,Supplies & Services,Revenue
Walsall Council,http://opendatacommunities.org/id/metropolitan-district-council/walsall,WC72-26,30/09/2016,Change and Governance,A F BLAKEMORE & SON LTD,28/09/2016,784.45,61016-FOOD AND BEVERAGES-PROVISIONS,WALSALL TOWN HALL,Supplies & Services,Revenue
Walsall Council,http://opendatacommunities.org/id/metropolitan-district-council/walsall,WC72-27,30/09/2016,Economy & Environment,A F BLAKEMORE & SON LTD,08/09/2016,"1,563.25",61016-FOOD AND BEVERAGES-PROVISIONS,OAK PARK,Supplies & Services,Revenue
Walsall Council,http://opendatacommunities.org/id/metropolitan-district-council/walsall,WC72-28,30/09/2016,Childrens,REDACTED,26/09/2016,340.16,74006-HOLIDAY/CHRISTMAS ALLOWANCE-FOSTER CARERS-OTH AGENCY PROVISION,INTERNAL FOSTER CARE PROVISION,Third Party Payments,Revenue
Walsall Council,http://opendatacommunities.org/id/metropolitan-district-council/walsall,WC72-29,30/09/2016,Economy & Environment,A KARIMS CHUCKERY PHARMACY,07/09/2016,17.70,63000-PROFESSIONAL FEES AND SERVICES,SEXUAL HEALTH,Supplies & Services,Revenue
Walsall Council,http://opendatacommunities.org/id/metropolitan-district-council/walsall,WC72-30,30/09/2016,Economy & Environment,A KARIMS CHUCKERY PHARMACY,07/09/2016,"1,595.45",71007-CONTRIBUTION TO PCT,PUBLIC HEALTH BUSINESS SUPPORT,Third Party Payments,Revenue
Walsall Council,http://opendatacommunities.org/id/metropolitan-district-council/walsall,WC72-31,30/09/2016,Childrens,REDACTED,14/09/2016,430.86,76000-TRANSFER PAYMENTS - SOCIAL SERVICES CLIENTS,TRANSITION AND LEAVING CARE,Transfer Payments,Revenue
Walsall Council,http://opendatacommunities.org/id/metropolitan-district-council/walsall,WC72-32,30/09/2016,Childrens,A1 EXPRESS TAXIS,12/09/2016,375.00,52001-HIRE OF VEHICLES,CHILDRENS TAXI BUDGET,Transport,Revenue
Walsall Council,http://opendatacommunities.org/id/metropolitan-district-council/walsall,WC72-33,30/09/2016,Childrens,A1 EXPRESS TAXIS,06/09/2016,405.00,52001-HIRE OF VEHICLES,CHILDRENS TAXI BUDGET,Transport,Revenue
Walsall Council,http://opendatacommunities.org/id/metropolitan-district-council/walsall,WC72-34,30/09/2016,Childrens,REDACTED,12/09/2016,636.30,76422-DIRECT PAYMENTS TO SOCIAL SERVICES CLIENTS,FAMILY SUPPORT - DIRECT PAYMENTS,Transfer Payments,Revenue
Walsall Council,http://opendatacommunities.org/id/metropolitan-district-council/walsall,WC72-35,30/09/2016,Childrens,ABACUS FOSTERING LTD,09/09/2016,"4,071.43",74037-INDEPENDENT FOSTER CARE-OTH AGENCY PROVISION,EXTERNAL FOSTER CARE PROVISION,Third Party Payments,Revenue
Walsall Council,http://opendatacommunities.org/id/metropolitan-district-council/walsall,WC72-36,30/09/2016,Childrens,REDACTED,26/09/2016,650.92,74006-HOLIDAY/CHRISTMAS ALLOWANCE-FOSTER CARERS-OTH AGENCY PROVISION,INTERNAL FOSTER CARE PROVISION,Third Party Payments,Revenue
Walsall Council,http://opendatacommunities.org/id/metropolitan-district-council/walsall,WC72-37,30/09/2016,Social Care & Inclusion,ABBEY HEALTHCARE HOMES LTD,13/09/2016,"1,699.16",73373-RESIDENTIAL & NURSING CARE PLACEMENTS,YADS COMMISSIONING,Third Party Payments,Revenue
Walsall Council,http://opendatacommunities.org/id/metropolitan-district-council/walsall,WC72-38,30/09/2016,Social Care & Inclusion,ABBEY HEALTHCARE HOMES LTD,27/09/2016,"1,699.16",73373-RESIDENTIAL & NURSING CARE PLACEMENTS,YADS COMMISSIONING,Third Party Payments,Revenue
Walsall Council,http://opendatacommunities.org/id/metropolitan-district-council/walsall,WC72-39,30/09/2016,Social Care & Inclusion,ABBEY HEALTHCARE HOMES LTD,13/09/2016,"2,294.08",73373-RESIDENTIAL & NURSING CARE PLACEMENTS,YADS COMMISSIONING,Third Party Payments,Revenue
Walsall Council,http://opendatacommunities.org/id/metropolitan-district-council/walsall,WC72-40,30/09/2016,Social Care & Inclusion,ABBEY HEALTHCARE HOMES LTD,27/09/2016,"2,294.08",73373-RESIDENTIAL & NURSING CARE PLACEMENTS,YADS COMMISSIONING,Third Party Payments,Revenue
Walsall Council,http://opendatacommunities.org/id/metropolitan-district-council/walsall,WC72-41,30/09/2016,Childrens,ABC CHILDRENS HOME,23/09/2016,"10,500.00",74036-EXTERNAL RESIDENTIAL CARE-OTH AGENCY PROVISION,INDEPENDENT RESIDENTIAL HOMES,Third Party Payments,Revenue
Walsall Council,http://opendatacommunities.org/id/metropolitan-district-council/walsall,WC72-42,30/09/2016,Childrens,ABC CHILDRENS HOME,23/09/2016,"15,000.00",74036-EXTERNAL RESIDENTIAL CARE-OTH AGENCY PROVISION,INDEPENDENT RESIDENTIAL HOMES,Third Party Payments,Revenue
Walsall Council,http://opendatacommunities.org/id/metropolitan-district-council/walsall,WC72-43,30/09/2016,Childrens,ABC CHILDRENS HOME,01/09/2016,"15,500.00",74036-EXTERNAL RESIDENTIAL CARE-OTH AGENCY PROVISION,INDEPENDENT RESIDENTIAL HOMES,Third Party Payments,Revenue
Walsall Council,http://opendatacommunities.org/id/metropolitan-district-council/walsall,WC72-44,30/09/2016,Childrens,ABC FOSTERING,09/09/2016,"1,493.28",74037-INDEPENDENT FOSTER CARE-OTH AGENCY PROVISION,EXTERNAL FOSTER CARE PROVISION,Third Party Payments,Revenue
Walsall Council,http://opendatacommunities.org/id/metropolitan-district-council/walsall,WC72-45,30/09/2016,Childrens,ABC FOSTERING,09/09/2016,"1,493.28",74037-INDEPENDENT FOSTER CARE-OTH AGENCY PROVISION,EXTERNAL FOSTER CARE PROVISION,Third Party Payments,Revenue
Walsall Council,http://opendatacommunities.org/id/metropolitan-district-council/walsall,WC72-46,30/09/2016,Childrens,ABC FOSTERING,09/09/2016,"2,872.37",74037-INDEPENDENT FOSTER CARE-OTH AGENCY PROVISION,EXTERNAL FOSTER CARE PROVISION,Third Party Payments,Revenue
Walsall Council,http://opendatacommunities.org/id/metropolitan-district-council/walsall,WC72-47,30/09/2016,Childrens,ABC FOSTERING,09/09/2016,"2,917.54",74037-INDEPENDENT FOSTER CARE-OTH AGENCY PROVISION,EXTERNAL FOSTER CARE PROVISION,Third Party Payments,Revenue
Walsall Council,http://opendatacommunities.org/id/metropolitan-district-council/walsall,WC72-48,30/09/2016,Childrens,ABC FOSTERING,09/09/2016,"2,917.54",74037-INDEPENDENT FOSTER CARE-OTH AGENCY PROVISION,EXTERNAL FOSTER CARE PROVISION,Third Party Payments,Revenue
Walsall Council,http://opendatacommunities.org/id/metropolitan-district-council/walsall,WC72-49,30/09/2016,Childrens,ABC FOSTERING,09/09/2016,"2,997.26",74037-INDEPENDENT FOSTER CARE-OTH AGENCY PROVISION,EXTERNAL FOSTER CARE PROVISION,Third Party Payments,Revenue
Walsall Council,http://opendatacommunities.org/id/metropolitan-district-council/walsall,WC72-50,30/09/2016,Childrens,ABC FOSTERING,09/09/2016,"2,997.26",74037-INDEPENDENT FOSTER CARE-OTH AGENCY PROVISION,EXTERNAL FOSTER CARE PROVISION,Third Party Payments,Revenue
Walsall Council,http://opendatacommunities.org/id/metropolitan-district-council/walsall,WC72-51,30/09/2016,Childrens,ABC FOSTERING,09/09/2016,"3,108.86",74037-INDEPENDENT FOSTER CARE-OTH AGENCY PROVISION,EXTERNAL FOSTER CARE PROVISION,Third Party Payments,Revenue
Walsall Council,http://opendatacommunities.org/id/metropolitan-district-council/walsall,WC72-52,30/09/2016,Childrens,ABC FOSTERING,09/09/2016,"3,306.55",74037-INDEPENDENT FOSTER CARE-OTH AGENCY PROVISION,EXTERNAL FOSTER CARE PROVISION,Third Party Payments,Revenue
Walsall Council,http://opendatacommunities.org/id/metropolitan-district-council/walsall,WC72-53,30/09/2016,Childrens,ABC FOSTERING,09/09/2016,"3,306.55",74037-INDEPENDENT FOSTER CARE-OTH AGENCY PROVISION,EXTERNAL FOSTER CARE PROVISION,Third Party Payments,Revenue
Walsall Council,http://opendatacommunities.org/id/metropolitan-district-council/walsall,WC72-54,30/09/2016,Childrens,ABC FOSTERING,09/09/2016,"3,306.55",74037-INDEPENDENT FOSTER CARE-OTH AGENCY PROVISION,EXTERNAL FOSTER CARE PROVISION,Third Party Payments,Revenue
Walsall Council,http://opendatacommunities.org/id/metropolitan-district-council/walsall,WC72-55,30/09/2016,Childrens,ABC FOSTERING,09/09/2016,"3,306.55",74037-INDEPENDENT FOSTER CARE-OTH AGENCY PROVISION,EXTERNAL FOSTER CARE PROVISION,Third Party Payments,Revenue
Walsall Council,http://opendatacommunities.org/id/metropolitan-district-council/walsall,WC72-56,30/09/2016,Social Care & Inclusion,REDACTED,12/09/2016,"1,947.10",76422-DIRECT PAYMENTS TO SOCIAL SERVICES CLIENTS,OP COMMISSIONING,Transfer Payments,Revenue
Walsall Council,http://opendatacommunities.org/id/metropolitan-district-council/walsall,WC72-57,30/09/2016,Economy & Environment,ABEL ALARM CO LTD,15/09/2016,913.90,60006-NEW-FURNITURE & EQUIPMENT,CEMETERIES CENTRAL ADMINISTRATION,Supplies & Services,Revenue
Walsall Council,http://opendatacommunities.org/id/metropolitan-district-council/walsall,WC72-58,30/09/2016,Social Care & Inclusion,REDACTED,12/09/2016,"2,947.49",76422-DIRECT PAYMENTS TO SOCIAL SERVICES CLIENTS,LD COMMISSIONING,Transfer Payments,Revenue
Walsall Council,http://opendatacommunities.org/id/metropolitan-district-council/walsall,WC72-59,30/09/2016,Social Care & Inclusion,ACCORD HOUSING ASSOCIATION LTD#135,01/09/2016,578.25,73374-SUPPORTED & OTHER ACCOMMODATION,LD COMMISSIONING,Third Party Payments,Revenue
Walsall Council,http://opendatacommunities.org/id/metropolitan-district-council/walsall,WC72-60,30/09/2016,Social Care & Inclusion,ACCORD HOUSING ASSOCIATION LTD#135,21/09/2016,578.25,73374-SUPPORTED & OTHER ACCOMMODATION,LD COMMISSIONING,Third Party Payments,Revenue
Walsall Council,http://opendatacommunities.org/id/metropolitan-district-council/walsall,WC72-61,30/09/2016,Social Care & Inclusion,ACCORD HOUSING ASSOCIATION LTD#135,06/09/2016,"4,744.90",73373-RESIDENTIAL & NURSING CARE PLACEMENTS,LD COMMISSIONING,Third Party Payments,Revenue
Walsall Council,http://opendatacommunities.org/id/metropolitan-district-council/walsall,WC72-62,30/09/2016,Social Care & Inclusion,ACCORD HOUSING ASSOCIATION LTD#135,06/09/2016,"4,744.90",73373-RESIDENTIAL & NURSING CARE PLACEMENTS,LD COMMISSIONING,Third Party Payments,Revenue
Walsall Council,http://opendatacommunities.org/id/metropolitan-district-council/walsall,WC72-63,30/09/2016,Social Care & Inclusion,ACCORD HOUSING ASSOCIATION LTD#135,06/09/2016,"4,744.90",73373-RESIDENTIAL & NURSING CARE PLACEMENTS,LD COMMISSIONING,Third Party Payments,Revenue
Walsall Council,http://opendatacommunities.org/id/metropolitan-district-council/walsall,WC72-64,30/09/2016,Social Care & Inclusion,ACCORD HOUSING ASSOCIATION LTD#135,06/09/2016,"4,744.90",73373-RESIDENTIAL & NURSING CARE PLACEMENTS,LD COMMISSIONING,Third Party Payments,Revenue
Walsall Council,http://opendatacommunities.org/id/metropolitan-district-council/walsall,WC72-65,30/09/2016,Social Care & Inclusion,ACCORD HOUSING ASSOCIATION LTD#135,06/09/2016,"6,622.35",73373-RESIDENTIAL & NURSING CARE PLACEMENTS,LD COMMISSIONING,Third Party Payments,Revenue
Walsall Council,http://opendatacommunities.org/id/metropolitan-district-council/walsall,WC72-66,30/09/2016,Social Care & Inclusion,ACCORD HOUSING ASSOCIATION LTD#135,06/09/2016,"6,622.35",73373-RESIDENTIAL & NURSING CARE PLACEMENTS,LD COMMISSIONING,Third Party Payments,Revenue
Walsall Council,http://opendatacommunities.org/id/metropolitan-district-council/walsall,WC72-67,30/09/2016,Social Care & Inclusion,ACCORD HOUSING ASSOCIATION LTD#135,06/09/2016,"6,622.35",73373-RESIDENTIAL & NURSING CARE PLACEMENTS,LD COMMISSIONING,Third Party Payments,Revenue
Walsall Council,http://opendatacommunities.org/id/metropolitan-district-council/walsall,WC72-68,30/09/2016,Social Care & Inclusion,ACCORD HOUSING ASSOCIATION LTD#135,14/09/2016,"8,857.24",73372-DOMICILIARY CARE,OP COMMISSIONING,Third Party Payments,Revenue
Walsall Council,http://opendatacommunities.org/id/metropolitan-district-council/walsall,WC72-69,30/09/2016,Social Care & Inclusion,ACCORD HOUSING ASSOCIATION LTD#135,13/09/2016,"31,020.88",73372-DOMICILIARY CARE,OP COMMISSIONING,Third Party Payments,Revenue
Walsall Council,http://opendatacommunities.org/id/metropolitan-district-council/walsall,WC72-70,30/09/2016,Social Care & Inclusion,ACCORD HOUSING ASSOCIATION LTD#135,01/09/2016,"59,721.51",73365-BLOCK GROSS-SUPPORTING PEOPLE,EXTERNAL SP,Third Party Payments,Revenue
Walsall Council,http://opendatacommunities.org/id/metropolitan-district-council/walsall,WC72-71,30/09/2016,Social Care & Inclusion,ACE CARE AGENCY,21/09/2016,302.25,73372-DOMICILIARY CARE,OP COMMISSIONING,Third Party Payments,Revenue
Walsall Council,http://opendatacommunities.org/id/metropolitan-district-council/walsall,WC72-72,30/09/2016,Social Care & Inclusion,ACE CARE AGENCY,21/09/2016,445.17,73372-DOMICILIARY CARE,MH COMMISSIONING,Third Party Payments,Revenue
Walsall Council,http://opendatacommunities.org/id/metropolitan-district-council/walsall,WC72-73,30/09/2016,Social Care & Inclusion,ACEPAY LTD (COTTAGE NUR HOME),27/09/2016,"2,097.80",73373-RESIDENTIAL & NURSING CARE PLACEMENTS,OP COMMISSIONING,Third Party Payments,Revenue
Walsall Council,http://opendatacommunities.org/id/metropolitan-district-council/walsall,WC72-74,30/09/2016,Social Care & Inclusion,ACEPAY LTD (COTTAGE NUR HOME),27/09/2016,"2,097.80",73373-RESIDENTIAL & NURSING CARE PLACEMENTS,OP COMMISSIONING,Third Party Payments,Revenue
Walsall Council,http://opendatacommunities.org/id/metropolitan-district-council/walsall,WC72-75,30/09/2016,Social Care & Inclusion,ACEPAY LTD (COTTAGE NUR HOME),27/09/2016,"2,097.80",73373-RESIDENTIAL & NURSING CARE PLACEMENTS,OP COMMISSIONING,Third Party Payments,Revenue
Walsall Council,http://opendatacommunities.org/id/metropolitan-district-council/walsall,WC72-76,30/09/2016,Social Care & Inclusion,ACEPAY LTD (COTTAGE NUR HOME),27/09/2016,"2,143.80",73373-RESIDENTIAL & NURSING CARE PLACEMENTS,OP COMMISSIONING,Third Party Payments,Revenue
Walsall Council,http://opendatacommunities.org/id/metropolitan-district-council/walsall,WC72-77,30/09/2016,Social Care & Inclusion,ACEPAY LTD (COTTAGE NUR HOME),27/09/2016,"2,143.80",73373-RESIDENTIAL & NURSING CARE PLACEMENTS,OP COMMISSIONING,Third Party Payments,Revenue
Walsall Council,http://opendatacommunities.org/id/metropolitan-district-council/walsall,WC72-78,30/09/2016,Social Care & Inclusion,ACEPAY LTD (COTTAGE NUR HOME),27/09/2016,"2,143.80",73373-RESIDENTIAL & NURSING CARE PLACEMENTS,OP COMMISSIONING,Third Party Payments,Revenue
Walsall Council,http://opendatacommunities.org/id/metropolitan-district-council/walsall,WC72-79,30/09/2016,Social Care & Inclusion,ACORN CARE LTD,20/09/2016,"14,684.70",73373-RESIDENTIAL & NURSING CARE PLACEMENTS,LD COMMISSIONING,Third Party Payments,Revenue
Walsall Council,http://opendatacommunities.org/id/metropolitan-district-council/walsall,WC72-80,30/09/2016,Social Care & Inclusion,ACORN REST HOME,27/09/2016,"1,620.00",73373-RESIDENTIAL & NURSING CARE PLACEMENTS,OP COMMISSIONING,Third Party Payments,Revenue
Walsall Council,http://opendatacommunities.org/id/metropolitan-district-council/walsall,WC72-81,30/09/2016,Childrens,ACORNS CHILDRENS HOSPICE TRUST,01/09/2016,750.00,63000-PROFESSIONAL FEES AND SERVICES,DIRECTLY COMMISSIONED NURSING SERVICES,Supplies & Services,Revenue
Walsall Council,http://opendatacommunities.org/id/metropolitan-district-council/walsall,WC72-82,30/09/2016,Economy & Environment,ACTION DIGITAL MEDIA LTD,28/09/2016,284.30,62000-EXTERNAL PRINTING SERVICES,NAG - TEMPORARY EXHIBITIONS,Supplies & Services,Revenue
Walsall Council,http://opendatacommunities.org/id/metropolitan-district-council/walsall,WC72-83,30/09/2016,Economy & Environment,ACTION DIGITAL MEDIA LTD,28/09/2016,315.80,62000-EXTERNAL PRINTING SERVICES,NAG - TEMPORARY EXHIBITIONS,Supplies & Services,Revenue
Walsall Council,http://opendatacommunities.org/id/metropolitan-district-council/walsall,WC72-84,30/09/2016,Childrens,ACTION FOR CHILDREN,05/09/2016,"18,000.00",63000-PROFESSIONAL FEES AND SERVICES,ADOPTION TEAM,Supplies & Services,Revenue
Walsall Council,http://opendatacommunities.org/id/metropolitan-district-council/walsall,WC72-85,30/09/2016,Social Care & Inclusion,ACTON BANKS LTD,05/09/2016,431.34,34305-AGENCY STAFF-EMPLOYEES,REABLEMENT TEAM - HOLLY BANK,Employees,Revenue
Walsall Council,http://opendatacommunities.org/id/metropolitan-district-council/walsall,WC72-86,30/09/2016,Social Care & Inclusion,ACTON BANKS LTD,21/09/2016,672.00,34305-AGENCY STAFF-EMPLOYEES,REABLEMENT TEAM - HOLLY BANK,Employees,Revenue
Walsall Council,http://opendatacommunities.org/id/metropolitan-district-council/walsall,WC72-87,30/09/2016,Social Care & Inclusion,ACTON BANKS LTD,26/09/2016,960.69,34305-AGENCY STAFF-EMPLOYEES,REABLEMENT TEAM - HOLLY BANK,Employees,Revenue
Walsall Council,http://opendatacommunities.org/id/metropolitan-district-council/walsall,WC72-88,30/09/2016,Social Care & Inclusion,ACTON BANKS LTD,12/09/2016,"1,411.38",34305-AGENCY STAFF-EMPLOYEES,REABLEMENT TEAM - HOLLY BANK,Employees,Revenue
Walsall Council,http://opendatacommunities.org/id/metropolitan-district-council/walsall,WC72-89,30/09/2016,Childrens,REDACTED,12/09/2016,609.50,76422-DIRECT PAYMENTS TO SOCIAL SERVICES CLIENTS,FAMILY SUPPORT - DIRECT PAYMENTS,Transfer Payments,Revenue
Walsall Council,http://opendatacommunities.org/id/metropolitan-district-council/walsall,WC72-90,30/09/2016,Social Care & Inclusion,REDACTED,12/09/2016,607.50,76422-DIRECT PAYMENTS TO SOCIAL SERVICES CLIENTS,LD COMMISSIONING,Transfer Payments,Revenue
Walsall Council,http://opendatacommunities.org/id/metropolitan-district-council/walsall,WC72-91,30/09/2016,Social Care & Inclusion,REDACTED,12/09/2016,"1,205.00",76422-DIRECT PAYMENTS TO SOCIAL SERVICES CLIENTS,OP COMMISSIONING,Transfer Payments,Revenue
Walsall Council,http://opendatacommunities.org/id/metropolitan-district-council/walsall,WC72-92,30/09/2016,Social Care & Inclusion,ADMIRAL SELF STORAGE LTD,15/09/2016,215.10,43000-RENTS,MENTAL HEALTH MANAGEMENT TEAM,Premises,Revenue
Walsall Council,http://opendatacommunities.org/id/metropolitan-district-council/walsall,WC72-93,30/09/2016,Change and Governance,ADMIRAL SELF STORAGE LTD,28/09/2016,419.32,63000-PROFESSIONAL FEES AND SERVICES,FINANCE ADMIN,Supplies & Services,Revenue
Walsall Council,http://opendatacommunities.org/id/metropolitan-district-council/walsall,WC72-94,30/09/2016,Childrens,REDACTED,26/09/2016,694.24,74006-HOLIDAY/CHRISTMAS ALLOWANCE-FOSTER CARERS-OTH AGENCY PROVISION,INTERNAL FOSTER CARE PROVISION,Third Party Payments,Revenue
Walsall Council,http://opendatacommunities.org/id/metropolitan-district-council/walsall,WC72-95,30/09/2016,Social Care & Inclusion,ADVANCE HEALTH CARE (UK) LTD,28/09/2016,390.00,73025-PROFESSIONAL SERVICES-PRIV CONTRACTOR & OTHER AGENCIES,COMMUNITY INTERMEDIATE CARE,Third Party Payments,Revenue
Walsall Council,http://opendatacommunities.org/id/metropolitan-district-council/walsall,WC72-96,30/09/2016,Social Care & Inclusion,ADVANCE HEALTH CARE (UK) LTD,28/09/2016,442.00,73025-PROFESSIONAL SERVICES-PRIV CONTRACTOR & OTHER AGENCIES,COMMUNITY INTERMEDIATE CARE,Third Party Payments,Revenue
Walsall Council,http://opendatacommunities.org/id/metropolitan-district-council/walsall,WC72-97,30/09/2016,Social Care & Inclusion,ADVANCE HEALTH CARE (UK) LTD,02/09/2016,555.75,73025-PROFESSIONAL SERVICES-PRIV CONTRACTOR & OTHER AGENCIES,COMMUNITY INTERMEDIATE CARE,Third Party Payments,Revenue
Walsall Council,http://opendatacommunities.org/id/metropolitan-district-council/walsall,WC72-98,30/09/2016,Social Care & Inclusion,ADVANCE HEALTH CARE (UK) LTD,26/09/2016,"1,638.00",73025-PROFESSIONAL SERVICES-PRIV CONTRACTOR & OTHER AGENCIES,COMMUNITY INTERMEDIATE CARE,Third Party Payments,Revenue
Walsall Council,http://opendatacommunities.org/id/metropolitan-district-council/walsall,WC72-99,30/09/2016,Social Care & Inclusion,ADVANCE HEALTH CARE (UK) LTD,26/09/2016,"1,638.00",73025-PROFESSIONAL SERVICES-PRIV CONTRACTOR & OTHER AGENCIES,COMMUNITY INTERMEDIATE CARE,Third Party Payments,Revenue
Walsall Council,http://opendatacommunities.org/id/metropolitan-district-council/walsall,WC72-100,30/09/2016,Social Care & Inclusion,ADVANCE HEALTH CARE (UK) LTD,26/09/2016,"2,363.30",73025-PROFESSIONAL SERVICES-PRIV CONTRACTOR & OTHER AGENCIES,COMMUNITY INTERMEDIATE CARE,Third Party Payments,Revenue
Walsall Council,http://opendatacommunities.org/id/metropolitan-district-council/walsall,WC72-101,30/09/2016,Social Care & Inclusion,ADVANCE HEALTH CARE (UK) LTD,23/09/2016,"2,433.35",73025-PROFESSIONAL SERVICES-PRIV CONTRACTOR & OTHER AGENCIES,COMMUNITY INTERMEDIATE CARE,Third Party Payments,Revenue
Walsall Council,http://opendatacommunities.org/id/metropolitan-district-council/walsall,WC72-102,30/09/2016,Social Care & Inclusion,ADVANCE HEALTH CARE (UK) LTD,28/09/2016,"2,544.70",73025-PROFESSIONAL SERVICES-PRIV CONTRACTOR & OTHER AGENCIES,COMMUNITY INTERMEDIATE CARE,Third Party Payments,Revenue
Walsall Council,http://opendatacommunities.org/id/metropolitan-district-council/walsall,WC72-103,30/09/2016,Social Care & Inclusion,ADVANCE HEALTH CARE (UK) LTD,02/09/2016,"3,275.00",73025-PROFESSIONAL SERVICES-PRIV CONTRACTOR & OTHER AGENCIES,COMMUNITY INTERMEDIATE CARE,Third Party Payments,Revenue
Walsall Council,http://opendatacommunities.org/id/metropolitan-district-council/walsall,WC72-104,30/09/2016,Social Care & Inclusion,ADVANCE HEALTH CARE (UK) LTD,12/09/2016,"3,275.00",73025-PROFESSIONAL SERVICES-PRIV CONTRACTOR & OTHER AGENCIES,COMMUNITY INTERMEDIATE CARE,Third Party Payments,Revenue
Walsall Council,http://opendatacommunities.org/id/metropolitan-district-council/walsall,WC72-105,30/09/2016,Social Care & Inclusion,ADVANCE HEALTH CARE (UK) LTD,21/09/2016,"3,356.87",73025-PROFESSIONAL SERVICES-PRIV CONTRACTOR & OTHER AGENCIES,COMMUNITY INTERMEDIATE CARE,Third Party Payments,Revenue
Walsall Council,http://opendatacommunities.org/id/metropolitan-district-council/walsall,WC72-106,30/09/2016,Social Care & Inclusion,ADVANCE HEALTH CARE (UK) LTD,13/09/2016,"47,776.32",73372-DOMICILIARY CARE,OP COMMISSIONING,Third Party Payments,Revenue
Walsall Council,http://opendatacommunities.org/id/metropolitan-district-council/walsall,WC72-107,30/09/2016,Economy & Environment,ADVANCE PHARMA LTD T/A PLECK PHARMACY,07/09/2016,381.36,71007-CONTRIBUTION TO PCT,PUBLIC HEALTH BUSINESS SUPPORT,Third Party Payments,Revenue
Walsall Council,http://opendatacommunities.org/id/metropolitan-district-council/walsall,WC72-108,30/09/2016,Change and Governance,ADVANCED DIGITAL IMAGING,16/09/2016,"1,170.00",62008-OUTWORK-PRINT ROOM,PRINTING SERVICES,Supplies & Services,Revenue
Walsall Council,http://opendatacommunities.org/id/metropolitan-district-council/walsall,WC72-109,30/09/2016,Childrens,ADVENTURELAND DAY NURSERY,20/09/2016,630.00,63120-CRECHE FACILITIES-SERVICES-FEES,BUDDY COSTS 0-5,Supplies & Services,Revenue
Walsall Council,http://opendatacommunities.org/id/metropolitan-district-council/walsall,WC72-110,30/09/2016,Social Care & Inclusion,AGE UK WALSALL,07/09/2016,"6,902.00",76423-DIRECT PAYMENTS SUPPORT,INDIVIDUAL BUDGET - SUPPORT,Transfer Payments,Revenue
Walsall Council,http://opendatacommunities.org/id/metropolitan-district-council/walsall,WC72-111,30/09/2016,Economy & Environment,AGILE APPLICATIONS LIMITED,05/09/2016,"26,084.28",63800-COMPUTER EQUIPMENT AND SUPPLIES,LLPG ICT PROJECT COSTS,Supplies & Services,Revenue
Walsall Council,http://opendatacommunities.org/id/metropolitan-district-council/walsall,WC72-112,30/09/2016,Economy & Environment,AGROVISTA UK LTD,09/09/2016,250.00,60500-GENERAL MATERIALS,GROUNDS,Supplies & Services,Revenue
Walsall Council,http://opendatacommunities.org/id/metropolitan-district-council/walsall,WC72-113,30/09/2016,Social Care & Inclusion,REDACTED,12/09/2016,"2,352.50",76422-DIRECT PAYMENTS TO SOCIAL SERVICES CLIENTS,LD COMMISSIONING,Transfer Payments,Revenue
Walsall Council,http://opendatacommunities.org/id/metropolitan-district-council/walsall,WC72-114,30/09/2016,Economy & Environment,AIRQUEE,12/09/2016,75.00,01006-SITE WORKS MAIN CONTRACTORS,CFR 1037 ACTIVE LIVING OAK PARK (PRUDENTIAL),Capital,Capital
Walsall Council,http://opendatacommunities.org/id/metropolitan-district-council/walsall,WC72-115,30/09/2016,Economy & Environment,AIRQUEE,12/09/2016,"2,695.00",01006-SITE WORKS MAIN CONTRACTORS,CFR 1037 ACTIVE LIVING BLOXWICH (PRUDENTIAL),Capital,Capital
Walsall Council,http://opendatacommunities.org/id/metropolitan-district-council/walsall,WC72-116,30/09/2016,Economy & Environment,AIRQUEE,12/09/2016,"4,011.00",01006-SITE WORKS MAIN CONTRACTORS,CFR 1037 ACTIVE LIVING BLOXWICH (PRUDENTIAL),Capital,Capital
Walsall Council,http://opendatacommunities.org/id/metropolitan-district-council/walsall,WC72-117,30/09/2016,Economy & Environment,AIRQUEE,12/09/2016,"7,934.00",01006-SITE WORKS MAIN CONTRACTORS,CFR 1037 ACTIVE LIVING OAK PARK (PRUDENTIAL),Capital,Capital
Walsall Council,http://opendatacommunities.org/id/metropolitan-district-council/walsall,WC72-118,30/09/2016,Social Care & Inclusion,REDACTED,12/09/2016,"1,142.75",76422-DIRECT PAYMENTS TO SOCIAL SERVICES CLIENTS,OP COMMISSIONING,Transfer Payments,Revenue
Walsall Council,http://opendatacommunities.org/id/metropolitan-district-council/walsall,WC72-119,30/09/2016,Childrens,ALAN CRITCHLEY ASSOCIATES,05/09/2016,"1,200.00",63102-CONSULTANTS FEES - CORPORATE,SAFEGUARDING BOARD,Supplies & Services,Revenue
Walsall Council,http://opendatacommunities.org/id/metropolitan-district-council/walsall,WC72-120,30/09/2016,Childrens,ALDRIDGE SCHOOL A SCIENCE COLLEGE.,12/09/2016,"12,831.93",66502-TOP UP FUNDING -GRANTS TO SCHOOLS,ALDRIDGE SCHOOL SCIENCE COLLEGE (ACADEMY),Third Party Payments,Revenue
Walsall Council,http://opendatacommunities.org/id/metropolitan-district-council/walsall,WC72-121,30/09/2016,Childrens,ALERE TOXICOLOGY PLC,01/09/2016,390.51,73014-LEGAL FEES-PRIV CONTRACTOR FEES,GENERAL MANAGEMENT SUPPORT (INC LEGAL),Third Party Payments,Revenue
Walsall Council,http://opendatacommunities.org/id/metropolitan-district-council/walsall,WC72-122,30/09/2016,Social Care & Inclusion,REDACTED,12/09/2016,"1,505.00",76422-DIRECT PAYMENTS TO SOCIAL SERVICES CLIENTS,YADS COMMISSIONING,Transfer Payments,Revenue
Walsall Council,http://opendatacommunities.org/id/metropolitan-district-council/walsall,WC72-123,30/09/2016,Social Care & Inclusion,ALEXANDRA HOUSE CARE SERVICES LTD T/A STONEBRIDGE NURSING HOME,20/09/2016,"7,117.44",73373-RESIDENTIAL & NURSING CARE PLACEMENTS,OP COMMISSIONING,Third Party Payments,Revenue
Walsall Council,http://opendatacommunities.org/id/metropolitan-district-council/walsall,WC72-124,30/09/2016,Social Care & Inclusion,ALEXANDRA HOUSE CARE SERVICES LTD T/A STONEBRIDGE NURSING HOME,27/09/2016,"7,117.44",73373-RESIDENTIAL & NURSING CARE PLACEMENTS,OP COMMISSIONING,Third Party Payments,Revenue
Walsall Council,http://opendatacommunities.org/id/metropolitan-district-council/walsall,WC72-125,30/09/2016,Childrens,REDACTED,12/09/2016,728.33,76422-DIRECT PAYMENTS TO SOCIAL SERVICES CLIENTS,FAMILY SUPPORT - DIRECT PAYMENTS,Transfer Payments,Revenue
Walsall Council,http://opendatacommunities.org/id/metropolitan-district-council/walsall,WC72-126,30/09/2016,Social Care & Inclusion,REDACTED,12/09/2016,"1,122.50",76422-DIRECT PAYMENTS TO SOCIAL SERVICES CLIENTS,YADS COMMISSIONING,Transfer Payments,Revenue
Walsall Council,http://opendatacommunities.org/id/metropolitan-district-council/walsall,WC72-127,30/09/2016,Social Care & Inclusion,REDACTED,12/09/2016,765.00,76422-DIRECT PAYMENTS TO SOCIAL SERVICES CLIENTS,OP COMMISSIONING,Transfer Payments,Revenue
Walsall Council,http://opendatacommunities.org/id/metropolitan-district-council/walsall,WC72-128,30/09/2016,Childrens,REDACTED,12/09/2016,906.76,62515-MISCELLANEOUS SUPPLIES,INTERNAL FOSTER CARE PROVISION,Supplies & Services,Revenue
Walsall Council,http://opendatacommunities.org/id/metropolitan-district-council/walsall,WC72-129,30/09/2016,Childrens,REDACTED,12/09/2016,985.76,74006-HOLIDAY/CHRISTMAS ALLOWANCE-FOSTER CARERS-OTH AGENCY PROVISION,INTERNAL FOSTER CARE PROVISION,Third Party Payments,Revenue
Walsall Council,http://opendatacommunities.org/id/metropolitan-district-council/walsall,WC72-130,30/09/2016,Childrens,REDACTED,26/09/2016,552.96,74006-HOLIDAY/CHRISTMAS ALLOWANCE-FOSTER CARERS-OTH AGENCY PROVISION,INTERNAL FOSTER CARE PROVISION,Third Party Payments,Revenue
Walsall Council,http://opendatacommunities.org/id/metropolitan-district-council/walsall,WC72-131,30/09/2016,Change and Governance,ALLSORTS OFFICE SUPPLIES LTD,08/09/2016,"2,320.00",63800-COMPUTER EQUIPMENT AND SUPPLIES,RECHARGEABLE EQUIPMENT,Supplies & Services,Revenue
Walsall Council,http://opendatacommunities.org/id/metropolitan-district-council/walsall,WC72-132,30/09/2016,Social Care & Inclusion,ALMA COURT,13/09/2016,"6,113.10",73373-RESIDENTIAL & NURSING CARE PLACEMENTS,MH COMMISSIONING,Third Party Payments,Revenue
Walsall Council,http://opendatacommunities.org/id/metropolitan-district-council/walsall,WC72-133,30/09/2016,Social Care & Inclusion,ALMA COURT,13/09/2016,"6,113.10",73373-RESIDENTIAL & NURSING CARE PLACEMENTS,OP COMMISSIONING,Third Party Payments,Revenue
Walsall Council,http://opendatacommunities.org/id/metropolitan-district-council/walsall,WC72-134,30/09/2016,Social Care & Inclusion,ALPHA HEALTH CARE LTD,13/09/2016,"1,620.00",73373-RESIDENTIAL & NURSING CARE PLACEMENTS,OP COMMISSIONING,Third Party Payments,Revenue
Walsall Council,http://opendatacommunities.org/id/metropolitan-district-council/walsall,WC72-135,30/09/2016,Social Care & Inclusion,ALPHA HEALTH CARE LTD,13/09/2016,"1,620.00",73373-RESIDENTIAL & NURSING CARE PLACEMENTS,OP COMMISSIONING,Third Party Payments,Revenue
Walsall Council,http://opendatacommunities.org/id/metropolitan-district-council/walsall,WC72-136,30/09/2016,Social Care & Inclusion,ALPHA HEALTH CARE LTD,13/09/2016,"1,620.00",73373-RESIDENTIAL & NURSING CARE PLACEMENTS,OP COMMISSIONING,Third Party Payments,Revenue
Walsall Council,http://opendatacommunities.org/id/metropolitan-district-council/walsall,WC72-137,30/09/2016,Social Care & Inclusion,ALPHA HEALTH CARE LTD,13/09/2016,"1,620.00",73373-RESIDENTIAL & NURSING CARE PLACEMENTS,OP COMMISSIONING,Third Party Payments,Revenue
Walsall Council,http://opendatacommunities.org/id/metropolitan-district-council/walsall,WC72-138,30/09/2016,Social Care & Inclusion,ALPHA HEALTH CARE LTD,13/09/2016,"1,620.00",73373-RESIDENTIAL & NURSING CARE PLACEMENTS,OP COMMISSIONING,Third Party Payments,Revenue
Walsall Council,http://opendatacommunities.org/id/metropolitan-district-council/walsall,WC72-139,30/09/2016,Social Care & Inclusion,ALPHA HEALTH CARE LTD,13/09/2016,"1,649.80",73373-RESIDENTIAL & NURSING CARE PLACEMENTS,OP COMMISSIONING,Third Party Payments,Revenue
Walsall Council,http://opendatacommunities.org/id/metropolitan-district-council/walsall,WC72-140,30/09/2016,Social Care & Inclusion,ALPHA HEALTH CARE LTD,13/09/2016,"1,649.80",73373-RESIDENTIAL & NURSING CARE PLACEMENTS,OP COMMISSIONING,Third Party Payments,Revenue
Walsall Council,http://opendatacommunities.org/id/metropolitan-district-council/walsall,WC72-141,30/09/2016,Social Care & Inclusion,ALPHA HEALTH CARE LTD,13/09/2016,"1,649.80",73373-RESIDENTIAL & NURSING CARE PLACEMENTS,OP COMMISSIONING,Third Party Payments,Revenue
Walsall Council,http://opendatacommunities.org/id/metropolitan-district-council/walsall,WC72-142,30/09/2016,Social Care & Inclusion,ALPHA HEALTH CARE LTD,13/09/2016,"1,649.80",73373-RESIDENTIAL & NURSING CARE PLACEMENTS,OP COMMISSIONING,Third Party Payments,Revenue
Walsall Council,http://opendatacommunities.org/id/metropolitan-district-council/walsall,WC72-143,30/09/2016,Social Care & Inclusion,ALPHA HEALTH CARE LTD,13/09/2016,"1,649.80",73373-RESIDENTIAL & NURSING CARE PLACEMENTS,OP COMMISSIONING,Third Party Payments,Revenue
Walsall Council,http://opendatacommunities.org/id/metropolitan-district-council/walsall,WC72-144,30/09/2016,Social Care & Inclusion,ALPHA HEALTH CARE LTD,13/09/2016,"1,649.80",73373-RESIDENTIAL & NURSING CARE PLACEMENTS,OP COMMISSIONING,Third Party Payments,Revenue
Walsall Council,http://opendatacommunities.org/id/metropolitan-district-council/walsall,WC72-145,30/09/2016,Social Care & Inclusion,ALPHA HEALTH CARE LTD,13/09/2016,"1,649.80",73373-RESIDENTIAL & NURSING CARE PLACEMENTS,OP COMMISSIONING,Third Party Payments,Revenue
Walsall Council,http://opendatacommunities.org/id/metropolitan-district-council/walsall,WC72-146,30/09/2016,Social Care & Inclusion,ALPHA HEALTH CARE LTD,13/09/2016,"1,649.80",73373-RESIDENTIAL & NURSING CARE PLACEMENTS,OP COMMISSIONING,Third Party Payments,Revenue
Walsall Council,http://opendatacommunities.org/id/metropolitan-district-council/walsall,WC72-147,30/09/2016,Social Care & Inclusion,ALPHA HEALTH CARE LTD,13/09/2016,"1,649.80",73373-RESIDENTIAL & NURSING CARE PLACEMENTS,MH COMMISSIONING,Third Party Payments,Revenue
Walsall Council,http://opendatacommunities.org/id/metropolitan-district-council/walsall,WC72-148,30/09/2016,Social Care & Inclusion,ALPHA HEALTH CARE LTD,13/09/2016,"1,649.80",73373-RESIDENTIAL & NURSING CARE PLACEMENTS,OP COMMISSIONING,Third Party Payments,Revenue
Walsall Council,http://opendatacommunities.org/id/metropolitan-district-council/walsall,WC72-149,30/09/2016,Social Care & Inclusion,ALPHA HEALTH CARE LTD,13/09/2016,"1,649.80",73373-RESIDENTIAL & NURSING CARE PLACEMENTS,OP COMMISSIONING,Third Party Payments,Revenue
Walsall Council,http://opendatacommunities.org/id/metropolitan-district-council/walsall,WC72-150,30/09/2016,Social Care & Inclusion,ALPHA HEALTH CARE LTD,13/09/2016,"1,649.80",73373-RESIDENTIAL & NURSING CARE PLACEMENTS,OP COMMISSIONING,Third Party Payments,Revenue
Walsall Council,http://opendatacommunities.org/id/metropolitan-district-council/walsall,WC72-151,30/09/2016,Social Care & Inclusion,ALPHA HEALTH CARE LTD,13/09/2016,"1,649.80",73373-RESIDENTIAL & NURSING CARE PLACEMENTS,OP COMMISSIONING,Third Party Payments,Revenue
Walsall Council,http://opendatacommunities.org/id/metropolitan-district-council/walsall,WC72-152,30/09/2016,Social Care & Inclusion,ALPHA HEALTH CARE LTD,13/09/2016,"1,649.80",73373-RESIDENTIAL & NURSING CARE PLACEMENTS,OP COMMISSIONING,Third Party Payments,Revenue
Walsall Council,http://opendatacommunities.org/id/metropolitan-district-council/walsall,WC72-153,30/09/2016,Social Care & Inclusion,ALPHA HEALTH CARE LTD,20/09/2016,"1,649.80",73373-RESIDENTIAL & NURSING CARE PLACEMENTS,MH COMMISSIONING,Third Party Payments,Revenue
Walsall Council,http://opendatacommunities.org/id/metropolitan-district-council/walsall,WC72-154,30/09/2016,Social Care & Inclusion,ALPHA HEALTH CARE LTD,13/09/2016,"1,753.04",73373-RESIDENTIAL & NURSING CARE PLACEMENTS,OP COMMISSIONING,Third Party Payments,Revenue
Walsall Council,http://opendatacommunities.org/id/metropolitan-district-council/walsall,WC72-155,30/09/2016,Social Care & Inclusion,ALPHA HEALTH CARE LTD,13/09/2016,"1,800.00",73373-RESIDENTIAL & NURSING CARE PLACEMENTS,OP COMMISSIONING,Third Party Payments,Revenue
Walsall Council,http://opendatacommunities.org/id/metropolitan-district-council/walsall,WC72-156,30/09/2016,Social Care & Inclusion,ALPHA HEALTH CARE LTD,13/09/2016,"1,800.00",73373-RESIDENTIAL & NURSING CARE PLACEMENTS,OP COMMISSIONING,Third Party Payments,Revenue
Walsall Council,http://opendatacommunities.org/id/metropolitan-district-council/walsall,WC72-157,30/09/2016,Social Care & Inclusion,ALPHA HEALTH CARE LTD,13/09/2016,"1,800.00",73373-RESIDENTIAL & NURSING CARE PLACEMENTS,OP COMMISSIONING,Third Party Payments,Revenue
Walsall Council,http://opendatacommunities.org/id/metropolitan-district-council/walsall,WC72-158,30/09/2016,Social Care & Inclusion,ALTODIGITAL NETWORKS LTD,14/09/2016,403.90,60009-LEASING/HIRE/RENTAL-EQUIPMENT,REABLEMENT TEAM - HOLLY BANK,Supplies & Services,Revenue
Walsall Council,http://opendatacommunities.org/id/metropolitan-district-council/walsall,WC72-159,30/09/2016,Childrens,REDACTED,26/09/2016,"1,245.32",74006-HOLIDAY/CHRISTMAS ALLOWANCE-FOSTER CARERS-OTH AGENCY PROVISION,INTERNAL FOSTER CARE PROVISION,Third Party Payments,Revenue
Walsall Council,http://opendatacommunities.org/id/metropolitan-district-council/walsall,WC72-160,30/09/2016,Childrens,REDACTED,12/09/2016,540.20,62515-MISCELLANEOUS SUPPLIES,INTERNAL FOSTER CARE PROVISION,Supplies & Services,Revenue
Walsall Council,http://opendatacommunities.org/id/metropolitan-district-council/walsall,WC72-161,30/09/2016,Childrens,REDACTED,12/09/2016,650.92,74006-HOLIDAY/CHRISTMAS ALLOWANCE-FOSTER CARERS-OTH AGENCY PROVISION,INTERNAL FOSTER CARE PROVISION,Third Party Payments,Revenue
Walsall Council,http://opendatacommunities.org/id/metropolitan-district-council/walsall,WC72-162,30/09/2016,Childrens,REDACTED,12/09/2016,391.15,76422-DIRECT PAYMENTS TO SOCIAL SERVICES CLIENTS,FAMILY SUPPORT - DIRECT PAYMENTS,Transfer Payments,Revenue
Walsall Council,http://opendatacommunities.org/id/metropolitan-district-council/walsall,WC72-163,30/09/2016,Change and Governance,AMEY LG LIMITED,21/09/2016,743.34,60008-MAINTENANCE-FURNITURE & EQUIPMENT,AREA PARTNERSHIPS,Supplies & Services,Revenue
Walsall Council,http://opendatacommunities.org/id/metropolitan-district-council/walsall,WC72-164,30/09/2016,Economy & Environment,AMEY LG LIMITED,01/09/2016,"9,524.85",73025-PROFESSIONAL SERVICES-PRIV CONTRACTOR & OTHER AGENCIES,TRAFFIC MANAGEMENT,Third Party Payments,Revenue
Walsall Council,http://opendatacommunities.org/id/metropolitan-district-council/walsall,WC72-165,30/09/2016,Childrens,AMG NURSING CARE SERVICES,19/09/2016,"1,110.72",63000-PROFESSIONAL FEES AND SERVICES,DIRECTLY COMMISSIONED NURSING SERVICES,Supplies & Services,Revenue
Walsall Council,http://opendatacommunities.org/id/metropolitan-district-council/walsall,WC72-166,30/09/2016,Childrens,AMG NURSING CARE SERVICES,28/09/2016,"1,497.28",63000-PROFESSIONAL FEES AND SERVICES,DIRECTLY COMMISSIONED NURSING SERVICES,Supplies & Services,Revenue
Walsall Council,http://opendatacommunities.org/id/metropolitan-district-council/walsall,WC72-167,30/09/2016,Childrens,AMG NURSING CARE SERVICES,27/09/2016,"2,273.46",63000-PROFESSIONAL FEES AND SERVICES,DIRECTLY COMMISSIONED NURSING SERVICES,Supplies & Services,Revenue
Walsall Council,http://opendatacommunities.org/id/metropolitan-district-council/walsall,WC72-168,30/09/2016,Childrens,AMG NURSING CARE SERVICES,27/09/2016,"2,273.46",63000-PROFESSIONAL FEES AND SERVICES,DIRECTLY COMMISSIONED NURSING SERVICES,Supplies & Services,Revenue
Walsall Council,http://opendatacommunities.org/id/metropolitan-district-council/walsall,WC72-169,30/09/2016,Childrens,AMG NURSING CARE SERVICES,28/09/2016,"2,273.46",63000-PROFESSIONAL FEES AND SERVICES,DIRECTLY COMMISSIONED NURSING SERVICES,Supplies & Services,Revenue
Walsall Council,http://opendatacommunities.org/id/metropolitan-district-council/walsall,WC72-170,30/09/2016,Childrens,AMG NURSING CARE SERVICES,28/09/2016,"2,273.46",63000-PROFESSIONAL FEES AND SERVICES,DIRECTLY COMMISSIONED NURSING SERVICES,Supplies & Services,Revenue
Walsall Council,http://opendatacommunities.org/id/metropolitan-district-council/walsall,WC72-171,30/09/2016,Childrens,AMG NURSING CARE SERVICES,28/09/2016,"2,273.46",63000-PROFESSIONAL FEES AND SERVICES,DIRECTLY COMMISSIONED NURSING SERVICES,Supplies & Services,Revenue
Walsall Council,http://opendatacommunities.org/id/metropolitan-district-council/walsall,WC72-172,30/09/2016,Childrens,AMG NURSING CARE SERVICES,28/09/2016,"2,273.46",63000-PROFESSIONAL FEES AND SERVICES,DIRECTLY COMMISSIONED NURSING SERVICES,Supplies & Services,Revenue
Walsall Council,http://opendatacommunities.org/id/metropolitan-district-council/walsall,WC72-173,30/09/2016,Childrens,AMG NURSING CARE SERVICES,26/09/2016,"2,274.48",63000-PROFESSIONAL FEES AND SERVICES,DIRECTLY COMMISSIONED NURSING SERVICES,Supplies & Services,Revenue
Walsall Council,http://opendatacommunities.org/id/metropolitan-district-council/walsall,WC72-174,30/09/2016,Childrens,AMG NURSING CARE SERVICES,27/09/2016,"2,274.48",63000-PROFESSIONAL FEES AND SERVICES,DIRECTLY COMMISSIONED NURSING SERVICES,Supplies & Services,Revenue
Walsall Council,http://opendatacommunities.org/id/metropolitan-district-council/walsall,WC72-175,30/09/2016,Childrens,AMG NURSING CARE SERVICES,27/09/2016,"2,274.48",63000-PROFESSIONAL FEES AND SERVICES,DIRECTLY COMMISSIONED NURSING SERVICES,Supplies & Services,Revenue
Walsall Council,http://opendatacommunities.org/id/metropolitan-district-council/walsall,WC72-176,30/09/2016,Childrens,AMG NURSING CARE SERVICES,28/09/2016,"2,274.48",63000-PROFESSIONAL FEES AND SERVICES,DIRECTLY COMMISSIONED NURSING SERVICES,Supplies & Services,Revenue
Walsall Council,http://opendatacommunities.org/id/metropolitan-district-council/walsall,WC72-177,30/09/2016,Childrens,AMG NURSING CARE SERVICES,28/09/2016,"2,274.48",63000-PROFESSIONAL FEES AND SERVICES,DIRECTLY COMMISSIONED NURSING SERVICES,Supplies & Services,Revenue
Walsall Council,http://opendatacommunities.org/id/metropolitan-district-council/walsall,WC72-178,30/09/2016,Childrens,AMG NURSING CARE SERVICES,28/09/2016,"2,643.70",63000-PROFESSIONAL FEES AND SERVICES,DIRECTLY COMMISSIONED NURSING SERVICES,Supplies & Services,Revenue
Walsall Council,http://opendatacommunities.org/id/metropolitan-district-council/walsall,WC72-179,30/09/2016,Childrens,AMG NURSING CARE SERVICES,28/09/2016,"2,643.70",63000-PROFESSIONAL FEES AND SERVICES,DIRECTLY COMMISSIONED NURSING SERVICES,Supplies & Services,Revenue
Walsall Council,http://opendatacommunities.org/id/metropolitan-district-council/walsall,WC72-180,30/09/2016,Childrens,AMG NURSING CARE SERVICES,26/09/2016,"2,644.72",63000-PROFESSIONAL FEES AND SERVICES,DIRECTLY COMMISSIONED NURSING SERVICES,Supplies & Services,Revenue
Walsall Council,http://opendatacommunities.org/id/metropolitan-district-council/walsall,WC72-181,30/09/2016,Childrens,AMG NURSING CARE SERVICES,28/09/2016,"2,685.92",63000-PROFESSIONAL FEES AND SERVICES,DIRECTLY COMMISSIONED NURSING SERVICES,Supplies & Services,Revenue
Walsall Council,http://opendatacommunities.org/id/metropolitan-district-council/walsall,WC72-182,30/09/2016,Social Care & Inclusion,REDACTED,12/09/2016,"1,416.80",76422-DIRECT PAYMENTS TO SOCIAL SERVICES CLIENTS,OP COMMISSIONING,Transfer Payments,Revenue
Walsall Council,http://opendatacommunities.org/id/metropolitan-district-council/walsall,WC72-183,30/09/2016,Childrens,REDACTED,26/09/2016,425.08,74006-HOLIDAY/CHRISTMAS ALLOWANCE-FOSTER CARERS-OTH AGENCY PROVISION,INTERNAL FOSTER CARE PROVISION,Third Party Payments,Revenue
Walsall Council,http://opendatacommunities.org/id/metropolitan-district-council/walsall,WC72-184,30/09/2016,Social Care & Inclusion,REDACTED,12/09/2016,720.00,76422-DIRECT PAYMENTS TO SOCIAL SERVICES CLIENTS,OP COMMISSIONING,Transfer Payments,Revenue
Walsall Council,http://opendatacommunities.org/id/metropolitan-district-council/walsall,WC72-185,30/09/2016,Social Care & Inclusion,REDACTED,12/09/2016,945.00,76422-DIRECT PAYMENTS TO SOCIAL SERVICES CLIENTS,OP COMMISSIONING,Transfer Payments,Revenue
Walsall Council,http://opendatacommunities.org/id/metropolitan-district-council/walsall,WC72-186,30/09/2016,Social Care & Inclusion,ANCHOR,27/09/2016,642.86,73373-RESIDENTIAL & NURSING CARE PLACEMENTS,OP COMMISSIONING,Third Party Payments,Revenue
Walsall Council,http://opendatacommunities.org/id/metropolitan-district-council/walsall,WC72-187,30/09/2016,Childrens,REDACTED,12/09/2016,813.65,74006-HOLIDAY/CHRISTMAS ALLOWANCE-FOSTER CARERS-OTH AGENCY PROVISION,INTERNAL FOSTER CARE PROVISION,Third Party Payments,Revenue
Walsall Council,http://opendatacommunities.org/id/metropolitan-district-council/walsall,WC72-188,30/09/2016,Childrens,REDACTED,12/09/2016,"1,157.68",62515-MISCELLANEOUS SUPPLIES,INTERNAL FOSTER CARE PROVISION,Supplies & Services,Revenue
Walsall Council,http://opendatacommunities.org/id/metropolitan-district-council/walsall,WC72-189,30/09/2016,Social Care & Inclusion,REDACTED,12/09/2016,472.50,76422-DIRECT PAYMENTS TO SOCIAL SERVICES CLIENTS,YADS COMMISSIONING,Transfer Payments,Revenue
Walsall Council,http://opendatacommunities.org/id/metropolitan-district-council/walsall,WC72-190,30/09/2016,Social Care & Inclusion,ANGEL COURT RESIDENTIAL CARE HOME,20/09/2016,"2,392.94",73373-RESIDENTIAL & NURSING CARE PLACEMENTS,OP COMMISSIONING,Third Party Payments,Revenue
Walsall Council,http://opendatacommunities.org/id/metropolitan-district-council/walsall,WC72-191,30/09/2016,Social Care & Inclusion,ANGEL COURT RESIDENTIAL CARE HOME,20/09/2016,"3,703.57",73373-RESIDENTIAL & NURSING CARE PLACEMENTS,OP COMMISSIONING,Third Party Payments,Revenue
Walsall Council,http://opendatacommunities.org/id/metropolitan-district-council/walsall,WC72-192,30/09/2016,Social Care & Inclusion,ANGEL COURT RESIDENTIAL CARE HOME,20/09/2016,"3,921.43",73373-RESIDENTIAL & NURSING CARE PLACEMENTS,OP COMMISSIONING,Third Party Payments,Revenue
Walsall Council,http://opendatacommunities.org/id/metropolitan-district-council/walsall,WC72-193,30/09/2016,Social Care & Inclusion,ANGEL COURT RESIDENTIAL CARE HOME,20/09/2016,"4,080.82",73373-RESIDENTIAL & NURSING CARE PLACEMENTS,OP COMMISSIONING,Third Party Payments,Revenue
Walsall Council,http://opendatacommunities.org/id/metropolitan-district-council/walsall,WC72-194,30/09/2016,Social Care & Inclusion,ANGEL COURT RESIDENTIAL CARE HOME,20/09/2016,"4,230.79",73373-RESIDENTIAL & NURSING CARE PLACEMENTS,OP COMMISSIONING,Third Party Payments,Revenue
Walsall Council,http://opendatacommunities.org/id/metropolitan-district-council/walsall,WC72-195,30/09/2016,Childrens,REDACTED,26/09/2016,"2,112.16",74006-HOLIDAY/CHRISTMAS ALLOWANCE-FOSTER CARERS-OTH AGENCY PROVISION,INTERNAL FOSTER CARE PROVISION,Third Party Payments,Revenue
Walsall Council,http://opendatacommunities.org/id/metropolitan-district-council/walsall,WC72-196,30/09/2016,Childrens,REDACTED,26/09/2016,269.68,74006-HOLIDAY/CHRISTMAS ALLOWANCE-FOSTER CARERS-OTH AGENCY PROVISION,INTERNAL FOSTER CARE PROVISION,Third Party Payments,Revenue
Walsall Council,http://opendatacommunities.org/id/metropolitan-district-council/walsall,WC72-197,30/09/2016,Childrens,ANGLIA DNA SERVICES LIMITED,14/09/2016,535.00,63000-PROFESSIONAL FEES AND SERVICES,SAFEGUARDING & FAMILY SUPPORT,Supplies & Services,Revenue
Walsall Council,http://opendatacommunities.org/id/metropolitan-district-council/walsall,WC72-198,30/09/2016,Change and Governance,ANGLIA STAIRLIFTS LTD,01/09/2016,"4,140.00",01045-PRIVATE GRANTS,CFR 826 DISABLED FACILITIES GRANTS (SOCIAL SERVICES),Capital,Capital
Walsall Council,http://opendatacommunities.org/id/metropolitan-district-council/walsall,WC72-199,30/09/2016,Change and Governance,ANGLIA STAIRLIFTS LTD,12/09/2016,"4,740.00",01045-PRIVATE GRANTS,CFR 826 DISABLED FACILITIES GRANTS (SOCIAL SERVICES),Capital,Capital
Walsall Council,http://opendatacommunities.org/id/metropolitan-district-council/walsall,WC72-200,30/09/2016,Social Care & Inclusion,REDACTED,12/09/2016,430.00,76422-DIRECT PAYMENTS TO SOCIAL SERVICES CLIENTS,LD COMMISSIONING,Transfer Payments,Revenue
Walsall Council,http://opendatacommunities.org/id/metropolitan-district-council/walsall,WC72-201,30/09/2016,Childrens,REDACTED,12/09/2016,"1,048.98",62515-MISCELLANEOUS SUPPLIES,INTERNAL FOSTER CARE PROVISION,Supplies & Services,Revenue
Walsall Council,http://opendatacommunities.org/id/metropolitan-district-council/walsall,WC72-202,30/09/2016,Social Care & Inclusion,REDACTED,09/09/2016,266.44,73374-SUPPORTED & OTHER ACCOMMODATION,LD COMMISSIONING,Third Party Payments,Revenue
Walsall Council,http://opendatacommunities.org/id/metropolitan-district-council/walsall,WC72-203,30/09/2016,Social Care & Inclusion,REDACTED,09/09/2016,657.75,73374-SUPPORTED & OTHER ACCOMMODATION,LD COMMISSIONING,Third Party Payments,Revenue
Walsall Council,http://opendatacommunities.org/id/metropolitan-district-council/walsall,WC72-204,30/09/2016,Social Care & Inclusion,REDACTED,09/09/2016,701.70,73374-SUPPORTED & OTHER ACCOMMODATION,LD COMMISSIONING,Third Party Payments,Revenue
Walsall Council,http://opendatacommunities.org/id/metropolitan-district-council/walsall,WC72-205,30/09/2016,Social Care & Inclusion,REDACTED,09/09/2016,857.14,73374-SUPPORTED & OTHER ACCOMMODATION,LD COMMISSIONING,Third Party Payments,Revenue
Walsall Council,http://opendatacommunities.org/id/metropolitan-district-council/walsall,WC72-206,30/09/2016,Social Care & Inclusion,ANSON COURT RESIDENTIAL HOME,27/09/2016,"1,800.00",73373-RESIDENTIAL & NURSING CARE PLACEMENTS,OP COMMISSIONING,Third Party Payments,Revenue
Walsall Council,http://opendatacommunities.org/id/metropolitan-district-council/walsall,WC72-207,30/09/2016,Social Care & Inclusion,ANSON COURT RESIDENTIAL HOME,27/09/2016,"1,800.00",73373-RESIDENTIAL & NURSING CARE PLACEMENTS,OP COMMISSIONING,Third Party Payments,Revenue
Walsall Council,http://opendatacommunities.org/id/metropolitan-district-council/walsall,WC72-208,30/09/2016,Social Care & Inclusion,ANSON COURT RESIDENTIAL HOME,27/09/2016,"1,800.00",73373-RESIDENTIAL & NURSING CARE PLACEMENTS,OP COMMISSIONING,Third Party Payments,Revenue
Walsall Council,http://opendatacommunities.org/id/metropolitan-district-council/walsall,WC72-209,30/09/2016,Social Care & Inclusion,ANSON COURT RESIDENTIAL HOME,27/09/2016,"1,800.00",73373-RESIDENTIAL & NURSING CARE PLACEMENTS,OP COMMISSIONING,Third Party Payments,Revenue
Walsall Council,http://opendatacommunities.org/id/metropolitan-district-council/walsall,WC72-210,30/09/2016,Social Care & Inclusion,ANSON COURT RESIDENTIAL HOME,27/09/2016,"1,800.00",73373-RESIDENTIAL & NURSING CARE PLACEMENTS,OP COMMISSIONING,Third Party Payments,Revenue
Walsall Council,http://opendatacommunities.org/id/metropolitan-district-council/walsall,WC72-211,30/09/2016,Social Care & Inclusion,ANSON COURT RESIDENTIAL HOME,27/09/2016,"1,800.00",73373-RESIDENTIAL & NURSING CARE PLACEMENTS,MH COMMISSIONING,Third Party Payments,Revenue
Walsall Council,http://opendatacommunities.org/id/metropolitan-district-council/walsall,WC72-212,30/09/2016,Social Care & Inclusion,ANSON COURT RESIDENTIAL HOME,27/09/2016,"1,800.00",73373-RESIDENTIAL & NURSING CARE PLACEMENTS,OP COMMISSIONING,Third Party Payments,Revenue
Walsall Council,http://opendatacommunities.org/id/metropolitan-district-council/walsall,WC72-213,30/09/2016,Social Care & Inclusion,ANSON COURT RESIDENTIAL HOME,27/09/2016,"1,800.00",73373-RESIDENTIAL & NURSING CARE PLACEMENTS,MH COMMISSIONING,Third Party Payments,Revenue
Walsall Council,http://opendatacommunities.org/id/metropolitan-district-council/walsall,WC72-214,30/09/2016,Social Care & Inclusion,ANSON COURT RESIDENTIAL HOME,27/09/2016,"1,800.00",73373-RESIDENTIAL & NURSING CARE PLACEMENTS,OP COMMISSIONING,Third Party Payments,Revenue
Walsall Council,http://opendatacommunities.org/id/metropolitan-district-council/walsall,WC72-215,30/09/2016,Social Care & Inclusion,ANSON COURT RESIDENTIAL HOME,27/09/2016,"1,800.00",73373-RESIDENTIAL & NURSING CARE PLACEMENTS,MH COMMISSIONING,Third Party Payments,Revenue
Walsall Council,http://opendatacommunities.org/id/metropolitan-district-council/walsall,WC72-216,30/09/2016,Social Care & Inclusion,ANSON COURT RESIDENTIAL HOME,27/09/2016,"1,800.00",73373-RESIDENTIAL & NURSING CARE PLACEMENTS,OP COMMISSIONING,Third Party Payments,Revenue
Walsall Council,http://opendatacommunities.org/id/metropolitan-district-council/walsall,WC72-217,30/09/2016,Social Care & Inclusion,ANSON COURT RESIDENTIAL HOME,27/09/2016,"1,800.00",73373-RESIDENTIAL & NURSING CARE PLACEMENTS,OP COMMISSIONING,Third Party Payments,Revenue
Walsall Council,http://opendatacommunities.org/id/metropolitan-district-council/walsall,WC72-218,30/09/2016,Social Care & Inclusion,ANSON COURT RESIDENTIAL HOME,27/09/2016,"1,800.00",73373-RESIDENTIAL & NURSING CARE PLACEMENTS,OP COMMISSIONING,Third Party Payments,Revenue
Walsall Council,http://opendatacommunities.org/id/metropolitan-district-council/walsall,WC72-219,30/09/2016,Social Care & Inclusion,ANSON COURT RESIDENTIAL HOME,27/09/2016,"1,800.00",73373-RESIDENTIAL & NURSING CARE PLACEMENTS,OP COMMISSIONING,Third Party Payments,Revenue
Walsall Council,http://opendatacommunities.org/id/metropolitan-district-council/walsall,WC72-220,30/09/2016,Social Care & Inclusion,ANSON COURT RESIDENTIAL HOME,27/09/2016,"1,800.00",73373-RESIDENTIAL & NURSING CARE PLACEMENTS,OP COMMISSIONING,Third Party Payments,Revenue
Walsall Council,http://opendatacommunities.org/id/metropolitan-district-council/walsall,WC72-221,30/09/2016,Social Care & Inclusion,ANSON COURT RESIDENTIAL HOME,27/09/2016,"1,800.00",73373-RESIDENTIAL & NURSING CARE PLACEMENTS,OP COMMISSIONING,Third Party Payments,Revenue
Walsall Council,http://opendatacommunities.org/id/metropolitan-district-council/walsall,WC72-222,30/09/2016,Social Care & Inclusion,ANSON COURT RESIDENTIAL HOME,27/09/2016,"1,800.00",73373-RESIDENTIAL & NURSING CARE PLACEMENTS,OP COMMISSIONING,Third Party Payments,Revenue
Walsall Council,http://opendatacommunities.org/id/metropolitan-district-council/walsall,WC72-223,30/09/2016,Social Care & Inclusion,ANSON COURT RESIDENTIAL HOME,27/09/2016,"2,057.14",73373-RESIDENTIAL & NURSING CARE PLACEMENTS,OP COMMISSIONING,Third Party Payments,Revenue
Walsall Council,http://opendatacommunities.org/id/metropolitan-district-council/walsall,WC72-224,30/09/2016,Social Care & Inclusion,ANSON COURT RESIDENTIAL HOME,27/09/2016,"4,880.00",73373-RESIDENTIAL & NURSING CARE PLACEMENTS,MH COMMISSIONING,Third Party Payments,Revenue
Walsall Council,http://opendatacommunities.org/id/metropolitan-district-council/walsall,WC72-225,30/09/2016,Economy & Environment,ANTHONY COLLINS SOLICITORS,08/09/2016,"365,000.00",01001-OTHER CONSULTANTS FEES,CFR 876 DARLASTON LAND ACQUISITION,Capital,Capital
Walsall Council,http://opendatacommunities.org/id/metropolitan-district-council/walsall,WC72-226,30/09/2016,Childrens,REDACTED,26/09/2016,"1,310.64",74006-HOLIDAY/CHRISTMAS ALLOWANCE-FOSTER CARERS-OTH AGENCY PROVISION,INTERNAL FOSTER CARE PROVISION,Third Party Payments,Revenue
Walsall Council,http://opendatacommunities.org/id/metropolitan-district-council/walsall,WC72-227,30/09/2016,Economy & Environment,APCOA PARKING SERVICES (UK) LTD,14/09/2016,"50,418.70",73025-PROFESSIONAL SERVICES-PRIV CONTRACTOR & OTHER AGENCIES,PARKING SERVICES,Third Party Payments,Revenue
Walsall Council,http://opendatacommunities.org/id/metropolitan-district-council/walsall,WC72-228,30/09/2016,Social Care & Inclusion,APNA HOUSE LTD,27/09/2016,"5,586.96",73373-RESIDENTIAL & NURSING CARE PLACEMENTS,OP COMMISSIONING,Third Party Payments,Revenue
Walsall Council,http://opendatacommunities.org/id/metropolitan-district-council/walsall,WC72-229,30/09/2016,Social Care & Inclusion,APNA HOUSE LTD,27/09/2016,"5,586.96",73373-RESIDENTIAL & NURSING CARE PLACEMENTS,OP COMMISSIONING,Third Party Payments,Revenue
Walsall Council,http://opendatacommunities.org/id/metropolitan-district-council/walsall,WC72-230,30/09/2016,Social Care & Inclusion,APNA HOUSE LTD,27/09/2016,"5,586.96",73373-RESIDENTIAL & NURSING CARE PLACEMENTS,OP COMMISSIONING,Third Party Payments,Revenue
Walsall Council,http://opendatacommunities.org/id/metropolitan-district-council/walsall,WC72-231,30/09/2016,Social Care & Inclusion,APNA HOUSE LTD,27/09/2016,"5,586.96",73373-RESIDENTIAL & NURSING CARE PLACEMENTS,OP COMMISSIONING,Third Party Payments,Revenue
Walsall Council,http://opendatacommunities.org/id/metropolitan-district-council/walsall,WC72-232,30/09/2016,Social Care & Inclusion,APNA HOUSE LTD,27/09/2016,"5,586.96",73373-RESIDENTIAL & NURSING CARE PLACEMENTS,OP COMMISSIONING,Third Party Payments,Revenue
Walsall Council,http://opendatacommunities.org/id/metropolitan-district-council/walsall,WC72-233,30/09/2016,Social Care & Inclusion,ARBORETUM NURSING HOME.,13/09/2016,561.00,73373-RESIDENTIAL & NURSING CARE PLACEMENTS,OP COMMISSIONING,Third Party Payments,Revenue
Walsall Council,http://opendatacommunities.org/id/metropolitan-district-council/walsall,WC72-234,30/09/2016,Social Care & Inclusion,ARBORETUM NURSING HOME.,13/09/2016,654.64,73373-RESIDENTIAL & NURSING CARE PLACEMENTS,OP COMMISSIONING,Third Party Payments,Revenue
Walsall Council,http://opendatacommunities.org/id/metropolitan-district-council/walsall,WC72-235,30/09/2016,Social Care & Inclusion,ARBORETUM NURSING HOME.,13/09/2016,667.74,73373-RESIDENTIAL & NURSING CARE PLACEMENTS,OP COMMISSIONING,Third Party Payments,Revenue
Walsall Council,http://opendatacommunities.org/id/metropolitan-district-council/walsall,WC72-236,30/09/2016,Social Care & Inclusion,ARBORETUM NURSING HOME.,13/09/2016,667.74,73373-RESIDENTIAL & NURSING CARE PLACEMENTS,OP COMMISSIONING,Third Party Payments,Revenue
Walsall Council,http://opendatacommunities.org/id/metropolitan-district-council/walsall,WC72-237,30/09/2016,Social Care & Inclusion,ARBORETUM NURSING HOME.,13/09/2016,672.10,73373-RESIDENTIAL & NURSING CARE PLACEMENTS,OP COMMISSIONING,Third Party Payments,Revenue
Walsall Council,http://opendatacommunities.org/id/metropolitan-district-council/walsall,WC72-238,30/09/2016,Social Care & Inclusion,ARBORETUM NURSING HOME.,13/09/2016,672.10,73373-RESIDENTIAL & NURSING CARE PLACEMENTS,OP COMMISSIONING,Third Party Payments,Revenue
Walsall Council,http://opendatacommunities.org/id/metropolitan-district-council/walsall,WC72-239,30/09/2016,Social Care & Inclusion,ARBORETUM NURSING HOME.,13/09/2016,672.10,73373-RESIDENTIAL & NURSING CARE PLACEMENTS,OP COMMISSIONING,Third Party Payments,Revenue
Walsall Council,http://opendatacommunities.org/id/metropolitan-district-council/walsall,WC72-240,30/09/2016,Social Care & Inclusion,ARBORETUM NURSING HOME.,13/09/2016,691.24,73373-RESIDENTIAL & NURSING CARE PLACEMENTS,OP COMMISSIONING,Third Party Payments,Revenue
Walsall Council,http://opendatacommunities.org/id/metropolitan-district-council/walsall,WC72-241,30/09/2016,Social Care & Inclusion,ARBORETUM NURSING HOME.,13/09/2016,691.56,73373-RESIDENTIAL & NURSING CARE PLACEMENTS,OP COMMISSIONING,Third Party Payments,Revenue
Walsall Council,http://opendatacommunities.org/id/metropolitan-district-council/walsall,WC72-242,30/09/2016,Social Care & Inclusion,ARBORETUM NURSING HOME.,13/09/2016,"1,398.10",73373-RESIDENTIAL & NURSING CARE PLACEMENTS,OP COMMISSIONING,Third Party Payments,Revenue
Walsall Council,http://opendatacommunities.org/id/metropolitan-district-council/walsall,WC72-243,30/09/2016,Social Care & Inclusion,ARBORETUM NURSING HOME.,13/09/2016,"2,097.80",73373-RESIDENTIAL & NURSING CARE PLACEMENTS,OP COMMISSIONING,Third Party Payments,Revenue
Walsall Council,http://opendatacommunities.org/id/metropolitan-district-council/walsall,WC72-244,30/09/2016,Social Care & Inclusion,ARBORETUM NURSING HOME.,13/09/2016,"2,097.80",73373-RESIDENTIAL & NURSING CARE PLACEMENTS,OP COMMISSIONING,Third Party Payments,Revenue
Walsall Council,http://opendatacommunities.org/id/metropolitan-district-council/walsall,WC72-245,30/09/2016,Social Care & Inclusion,ARBORETUM NURSING HOME.,13/09/2016,"2,097.80",73373-RESIDENTIAL & NURSING CARE PLACEMENTS,OP COMMISSIONING,Third Party Payments,Revenue
Walsall Council,http://opendatacommunities.org/id/metropolitan-district-council/walsall,WC72-246,30/09/2016,Social Care & Inclusion,ARBORETUM NURSING HOME.,13/09/2016,"2,097.80",73373-RESIDENTIAL & NURSING CARE PLACEMENTS,OP COMMISSIONING,Third Party Payments,Revenue
Walsall Council,http://opendatacommunities.org/id/metropolitan-district-council/walsall,WC72-247,30/09/2016,Social Care & Inclusion,ARBORETUM NURSING HOME.,13/09/2016,"2,097.80",73373-RESIDENTIAL & NURSING CARE PLACEMENTS,OP COMMISSIONING,Third Party Payments,Revenue
Walsall Council,http://opendatacommunities.org/id/metropolitan-district-council/walsall,WC72-248,30/09/2016,Social Care & Inclusion,ARBORETUM NURSING HOME.,13/09/2016,"2,097.80",73373-RESIDENTIAL & NURSING CARE PLACEMENTS,OP COMMISSIONING,Third Party Payments,Revenue
Walsall Council,http://opendatacommunities.org/id/metropolitan-district-council/walsall,WC72-249,30/09/2016,Social Care & Inclusion,ARBORETUM NURSING HOME.,13/09/2016,"2,142.84",73373-RESIDENTIAL & NURSING CARE PLACEMENTS,OP COMMISSIONING,Third Party Payments,Revenue
Walsall Council,http://opendatacommunities.org/id/metropolitan-district-council/walsall,WC72-250,30/09/2016,Social Care & Inclusion,ARBORETUM NURSING HOME.,13/09/2016,"2,156.56",73373-RESIDENTIAL & NURSING CARE PLACEMENTS,OP COMMISSIONING,Third Party Payments,Revenue
Walsall Council,http://opendatacommunities.org/id/metropolitan-district-council/walsall,WC72-251,30/09/2016,Social Care & Inclusion,ARBORETUM NURSING HOME.,13/09/2016,"2,274.08",73373-RESIDENTIAL & NURSING CARE PLACEMENTS,OP COMMISSIONING,Third Party Payments,Revenue
Walsall Council,http://opendatacommunities.org/id/metropolitan-district-council/walsall,WC72-252,30/09/2016,Social Care & Inclusion,ARBORETUM NURSING HOME.,20/09/2016,"2,274.08",73373-RESIDENTIAL & NURSING CARE PLACEMENTS,OP COMMISSIONING,Third Party Payments,Revenue
Walsall Council,http://opendatacommunities.org/id/metropolitan-district-council/walsall,WC72-253,30/09/2016,Childrens,REDACTED,02/09/2016,504.00,76000-TRANSFER PAYMENTS - SOCIAL SERVICES CLIENTS,SAFEGUARDING & FAMILY SUPPORT,Transfer Payments,Revenue
Walsall Council,http://opendatacommunities.org/id/metropolitan-district-council/walsall,WC72-254,30/09/2016,Childrens,ARNFIELD CARE LIMITED,06/09/2016,"16,731.30",74036-EXTERNAL RESIDENTIAL CARE-OTH AGENCY PROVISION,INDEPENDENT RESIDENTIAL HOMES,Third Party Payments,Revenue
Walsall Council,http://opendatacommunities.org/id/metropolitan-district-council/walsall,WC72-255,30/09/2016,Childrens,ARTHUR M GRIFFITHS & SON LTD,23/09/2016,"393,598.46",01006-SITE WORKS MAIN CONTRACTORS,CFR 929 KING CHARLES PRIMARY SIGNIFICANT ENLARGEMENT,Capital,Capital
Walsall Council,http://opendatacommunities.org/id/metropolitan-district-council/walsall,WC72-256,30/09/2016,Economy & Environment,ASA AWARDS,15/09/2016,682.26,60006-NEW-FURNITURE & EQUIPMENT,OAK PARK,Supplies & Services,Revenue
Walsall Council,http://opendatacommunities.org/id/metropolitan-district-council/walsall,WC72-257,30/09/2016,Social Care & Inclusion,ASH GRANGE CARE HOME,13/09/2016,"1,620.00",73373-RESIDENTIAL & NURSING CARE PLACEMENTS,OP COMMISSIONING,Third Party Payments,Revenue
Walsall Council,http://opendatacommunities.org/id/metropolitan-district-council/walsall,WC72-258,30/09/2016,Social Care & Inclusion,ASH GRANGE CARE HOME,27/09/2016,"1,716.30",73373-RESIDENTIAL & NURSING CARE PLACEMENTS,OP COMMISSIONING,Third Party Payments,Revenue
Walsall Council,http://opendatacommunities.org/id/metropolitan-district-council/walsall,WC72-259,30/09/2016,Social Care & Inclusion,ASH GRANGE CARE HOME,13/09/2016,"2,111.40",73373-RESIDENTIAL & NURSING CARE PLACEMENTS,OP COMMISSIONING,Third Party Payments,Revenue
Walsall Council,http://opendatacommunities.org/id/metropolitan-district-council/walsall,WC72-260,30/09/2016,Social Care & Inclusion,ASH GRANGE CARE HOME,13/09/2016,"2,111.40",73373-RESIDENTIAL & NURSING CARE PLACEMENTS,OP COMMISSIONING,Third Party Payments,Revenue
Walsall Council,http://opendatacommunities.org/id/metropolitan-district-council/walsall,WC72-261,30/09/2016,Social Care & Inclusion,ASH GRANGE CARE HOME,13/09/2016,"2,111.40",73373-RESIDENTIAL & NURSING CARE PLACEMENTS,OP COMMISSIONING,Third Party Payments,Revenue
Walsall Council,http://opendatacommunities.org/id/metropolitan-district-council/walsall,WC72-262,30/09/2016,Social Care & Inclusion,ASH GRANGE CARE HOME,13/09/2016,"2,111.40",73373-RESIDENTIAL & NURSING CARE PLACEMENTS,OP COMMISSIONING,Third Party Payments,Revenue
Walsall Council,http://opendatacommunities.org/id/metropolitan-district-council/walsall,WC72-263,30/09/2016,Social Care & Inclusion,ASH GRANGE CARE HOME,13/09/2016,"2,111.40",73373-RESIDENTIAL & NURSING CARE PLACEMENTS,OP COMMISSIONING,Third Party Payments,Revenue
Walsall Council,http://opendatacommunities.org/id/metropolitan-district-council/walsall,WC72-264,30/09/2016,Social Care & Inclusion,ASH GRANGE CARE HOME,13/09/2016,"2,111.40",73373-RESIDENTIAL & NURSING CARE PLACEMENTS,OP COMMISSIONING,Third Party Payments,Revenue
Walsall Council,http://opendatacommunities.org/id/metropolitan-district-council/walsall,WC72-265,30/09/2016,Social Care & Inclusion,ASH GRANGE CARE HOME,13/09/2016,"2,111.40",73373-RESIDENTIAL & NURSING CARE PLACEMENTS,MH COMMISSIONING,Third Party Payments,Revenue
Walsall Council,http://opendatacommunities.org/id/metropolitan-district-council/walsall,WC72-266,30/09/2016,Social Care & Inclusion,ASH GRANGE CARE HOME,13/09/2016,"2,111.40",73373-RESIDENTIAL & NURSING CARE PLACEMENTS,OP COMMISSIONING,Third Party Payments,Revenue
Walsall Council,http://opendatacommunities.org/id/metropolitan-district-council/walsall,WC72-267,30/09/2016,Social Care & Inclusion,ASH GRANGE CARE HOME,13/09/2016,"2,111.40",73373-RESIDENTIAL & NURSING CARE PLACEMENTS,OP COMMISSIONING,Third Party Payments,Revenue
Walsall Council,http://opendatacommunities.org/id/metropolitan-district-council/walsall,WC72-268,30/09/2016,Social Care & Inclusion,ASH GRANGE CARE HOME,13/09/2016,"2,111.40",73373-RESIDENTIAL & NURSING CARE PLACEMENTS,OP COMMISSIONING,Third Party Payments,Revenue
Walsall Council,http://opendatacommunities.org/id/metropolitan-district-council/walsall,WC72-269,30/09/2016,Social Care & Inclusion,ASH GRANGE CARE HOME,13/09/2016,"2,111.40",73373-RESIDENTIAL & NURSING CARE PLACEMENTS,OP COMMISSIONING,Third Party Payments,Revenue
Walsall Council,http://opendatacommunities.org/id/metropolitan-district-council/walsall,WC72-270,30/09/2016,Social Care & Inclusion,ASH GRANGE CARE HOME,27/09/2016,"2,288.40",73373-RESIDENTIAL & NURSING CARE PLACEMENTS,OP COMMISSIONING,Third Party Payments,Revenue
Walsall Council,http://opendatacommunities.org/id/metropolitan-district-council/walsall,WC72-271,30/09/2016,Social Care & Inclusion,ASH GRANGE CARE HOME,27/09/2016,"2,288.40",73373-RESIDENTIAL & NURSING CARE PLACEMENTS,OP COMMISSIONING,Third Party Payments,Revenue
Walsall Council,http://opendatacommunities.org/id/metropolitan-district-council/walsall,WC72-272,30/09/2016,Social Care & Inclusion,ASH GRANGE CARE HOME,13/09/2016,"2,943.72",73373-RESIDENTIAL & NURSING CARE PLACEMENTS,OP COMMISSIONING,Third Party Payments,Revenue
Walsall Council,http://opendatacommunities.org/id/metropolitan-district-council/walsall,WC72-273,30/09/2016,Social Care & Inclusion,ASH GRANGE CARE HOME,15/09/2016,"14,700.00",73019-PSE'S-PRIV CONTRACTOR FEES,TRANSITIONAL CARE SUPPORT TEAM,Third Party Payments,Revenue
Walsall Council,http://opendatacommunities.org/id/metropolitan-district-council/walsall,WC72-274,30/09/2016,Economy & Environment,ASKEWS AND HOLTS LIBRARY SERVICES LTD,08/09/2016,224.90,60501-LIBRARY BOOKS,LIBRARY STOCK AND PERFORMANCE,Supplies & Services,Revenue
Walsall Council,http://opendatacommunities.org/id/metropolitan-district-council/walsall,WC72-275,30/09/2016,Economy & Environment,ASKEWS AND HOLTS LIBRARY SERVICES LTD,08/09/2016,266.45,60501-LIBRARY BOOKS,LIBRARY STOCK AND PERFORMANCE,Supplies & Services,Revenue
Walsall Council,http://opendatacommunities.org/id/metropolitan-district-council/walsall,WC72-276,30/09/2016,Economy & Environment,ASKEWS AND HOLTS LIBRARY SERVICES LTD,26/09/2016,281.12,60501-LIBRARY BOOKS,LIBRARY STOCK AND PERFORMANCE,Supplies & Services,Revenue
Walsall Council,http://opendatacommunities.org/id/metropolitan-district-council/walsall,WC72-277,30/09/2016,Economy & Environment,ASKEWS AND HOLTS LIBRARY SERVICES LTD,08/09/2016,290.10,60501-LIBRARY BOOKS,LIBRARY STOCK AND PERFORMANCE,Supplies & Services,Revenue
Walsall Council,http://opendatacommunities.org/id/metropolitan-district-council/walsall,WC72-278,30/09/2016,Economy & Environment,ASKEWS AND HOLTS LIBRARY SERVICES LTD,23/09/2016,309.54,60501-LIBRARY BOOKS,LIBRARY STOCK AND PERFORMANCE,Supplies & Services,Revenue
Walsall Council,http://opendatacommunities.org/id/metropolitan-district-council/walsall,WC72-279,30/09/2016,Economy & Environment,ASKEWS AND HOLTS LIBRARY SERVICES LTD,14/09/2016,323.57,60501-LIBRARY BOOKS,LIBRARY STOCK AND PERFORMANCE,Supplies & Services,Revenue
Walsall Council,http://opendatacommunities.org/id/metropolitan-district-council/walsall,WC72-280,30/09/2016,Economy & Environment,ASKEWS AND HOLTS LIBRARY SERVICES LTD,08/09/2016,327.49,60501-LIBRARY BOOKS,LIBRARY STOCK AND PERFORMANCE,Supplies & Services,Revenue
Walsall Council,http://opendatacommunities.org/id/metropolitan-district-council/walsall,WC72-281,30/09/2016,Economy & Environment,ASKEWS AND HOLTS LIBRARY SERVICES LTD,07/09/2016,330.73,60501-LIBRARY BOOKS,LIBRARY STOCK AND PERFORMANCE,Supplies & Services,Revenue
Walsall Council,http://opendatacommunities.org/id/metropolitan-district-council/walsall,WC72-282,30/09/2016,Economy & Environment,ASKEWS AND HOLTS LIBRARY SERVICES LTD,06/09/2016,407.51,60501-LIBRARY BOOKS,LIBRARY STOCK AND PERFORMANCE,Supplies & Services,Revenue
Walsall Council,http://opendatacommunities.org/id/metropolitan-district-council/walsall,WC72-283,30/09/2016,Economy & Environment,ASKEWS AND HOLTS LIBRARY SERVICES LTD,06/09/2016,453.65,60501-LIBRARY BOOKS,LIBRARY STOCK AND PERFORMANCE,Supplies & Services,Revenue
Walsall Council,http://opendatacommunities.org/id/metropolitan-district-council/walsall,WC72-284,30/09/2016,Economy & Environment,ASKEWS AND HOLTS LIBRARY SERVICES LTD,08/09/2016,480.00,60501-LIBRARY BOOKS,LIBRARY STOCK AND PERFORMANCE,Supplies & Services,Revenue
Walsall Council,http://opendatacommunities.org/id/metropolitan-district-council/walsall,WC72-285,30/09/2016,Economy & Environment,ASKEWS AND HOLTS LIBRARY SERVICES LTD,26/09/2016,481.42,60501-LIBRARY BOOKS,LIBRARY STOCK AND PERFORMANCE,Supplies & Services,Revenue
Walsall Council,http://opendatacommunities.org/id/metropolitan-district-council/walsall,WC72-286,30/09/2016,Economy & Environment,ASKEWS AND HOLTS LIBRARY SERVICES LTD,21/09/2016,554.84,60501-LIBRARY BOOKS,LIBRARY STOCK AND PERFORMANCE,Supplies & Services,Revenue
Walsall Council,http://opendatacommunities.org/id/metropolitan-district-council/walsall,WC72-287,30/09/2016,Economy & Environment,ASKEWS AND HOLTS LIBRARY SERVICES LTD,06/09/2016,588.17,60501-LIBRARY BOOKS,LIBRARY STOCK AND PERFORMANCE,Supplies & Services,Revenue
Walsall Council,http://opendatacommunities.org/id/metropolitan-district-council/walsall,WC72-288,30/09/2016,Economy & Environment,ASKEWS AND HOLTS LIBRARY SERVICES LTD,06/09/2016,599.16,60501-LIBRARY BOOKS,LIBRARY STOCK AND PERFORMANCE,Supplies & Services,Revenue
Walsall Council,http://opendatacommunities.org/id/metropolitan-district-council/walsall,WC72-289,30/09/2016,Economy & Environment,ASKEWS AND HOLTS LIBRARY SERVICES LTD,26/09/2016,637.44,60501-LIBRARY BOOKS,LIBRARY STOCK AND PERFORMANCE,Supplies & Services,Revenue
Walsall Council,http://opendatacommunities.org/id/metropolitan-district-council/walsall,WC72-290,30/09/2016,Economy & Environment,ASKEWS AND HOLTS LIBRARY SERVICES LTD,20/09/2016,685.72,60501-LIBRARY BOOKS,LIBRARY STOCK AND PERFORMANCE,Supplies & Services,Revenue
Walsall Council,http://opendatacommunities.org/id/metropolitan-district-council/walsall,WC72-291,30/09/2016,Economy & Environment,ASKEWS AND HOLTS LIBRARY SERVICES LTD,06/09/2016,704.91,60501-LIBRARY BOOKS,LIBRARY STOCK AND PERFORMANCE,Supplies & Services,Revenue
Walsall Council,http://opendatacommunities.org/id/metropolitan-district-council/walsall,WC72-292,30/09/2016,Economy & Environment,ASKEWS AND HOLTS LIBRARY SERVICES LTD,08/09/2016,725.48,60501-LIBRARY BOOKS,LIBRARY STOCK AND PERFORMANCE,Supplies & Services,Revenue
Walsall Council,http://opendatacommunities.org/id/metropolitan-district-council/walsall,WC72-293,30/09/2016,Economy & Environment,ASKEWS AND HOLTS LIBRARY SERVICES LTD,08/09/2016,857.87,60501-LIBRARY BOOKS,LIBRARY STOCK AND PERFORMANCE,Supplies & Services,Revenue
Walsall Council,http://opendatacommunities.org/id/metropolitan-district-council/walsall,WC72-294,30/09/2016,Economy & Environment,ASKEWS AND HOLTS LIBRARY SERVICES LTD,06/09/2016,"1,737.50",60501-LIBRARY BOOKS,LIBRARY STOCK AND PERFORMANCE,Supplies & Services,Revenue
Walsall Council,http://opendatacommunities.org/id/metropolitan-district-council/walsall,WC72-295,30/09/2016,Social Care & Inclusion,REDACTED,12/09/2016,616.25,76422-DIRECT PAYMENTS TO SOCIAL SERVICES CLIENTS,OP COMMISSIONING,Transfer Payments,Revenue
Walsall Council,http://opendatacommunities.org/id/metropolitan-district-council/walsall,WC72-296,30/09/2016,Childrens,ASSOCIATION OF EDUCATIONAL PSYCHOLOGISTS,14/09/2016,700.00,34000-RECRUITMENT EXPENSES (ALL TYPES INCL RELOCATION),SEN,Employees,Revenue
Walsall Council,http://opendatacommunities.org/id/metropolitan-district-council/walsall,WC72-297,30/09/2016,Childrens,ASTON CHILDRENS CARE,23/09/2016,"11,071.34",74036-EXTERNAL RESIDENTIAL CARE-OTH AGENCY PROVISION,INDEPENDENT RESIDENTIAL HOMES,Third Party Payments,Revenue
Walsall Council,http://opendatacommunities.org/id/metropolitan-district-council/walsall,WC72-298,30/09/2016,Economy & Environment,ATHWAL NEWS LTD,26/09/2016,596.41,60501-LIBRARY BOOKS,LIBRARY STOCK AND PERFORMANCE,Supplies & Services,Revenue
Walsall Council,http://opendatacommunities.org/id/metropolitan-district-council/walsall,WC72-299,30/09/2016,Change and Governance,AURORA GRAPHICS & DISPLAYS LTD,07/09/2016,249.80,62008-OUTWORK-PRINT ROOM,PRINTING SERVICES,Supplies & Services,Revenue
Walsall Council,http://opendatacommunities.org/id/metropolitan-district-council/walsall,WC72-300,30/09/2016,Economy & Environment,AURORAS CARNIVAL,01/09/2016,600.00,32000-MISC FEES AND EXPENSES,LEATHER MUSEUM,Employees,Revenue
Walsall Council,http://opendatacommunities.org/id/metropolitan-district-council/walsall,WC72-301,30/09/2016,Economy & Environment,AUTHORS ALOUD UK,19/09/2016,474.40,60500-GENERAL MATERIALS,LIBRARY DEVELOPMENT 2,Supplies & Services,Revenue
Walsall Council,http://opendatacommunities.org/id/metropolitan-district-council/walsall,WC72-302,30/09/2016,Social Care & Inclusion,AUTISM WEST MIDLANDS,06/09/2016,"7,479.01",73373-RESIDENTIAL & NURSING CARE PLACEMENTS,LD COMMISSIONING,Third Party Payments,Revenue
Walsall Council,http://opendatacommunities.org/id/metropolitan-district-council/walsall,WC72-303,30/09/2016,Social Care & Inclusion,AUTISM WEST MIDLANDS 001,06/09/2016,"4,999.33",73373-RESIDENTIAL & NURSING CARE PLACEMENTS,LD COMMISSIONING,Third Party Payments,Revenue
Walsall Council,http://opendatacommunities.org/id/metropolitan-district-council/walsall,WC72-304,30/09/2016,Economy & Environment,AUTORITE INDUSTRIES (WILLENHALL)LTD,07/09/2016,227.50,73025-PROFESSIONAL SERVICES-PRIV CONTRACTOR & OTHER AGENCIES,FLEET,Third Party Payments,Revenue
Walsall Council,http://opendatacommunities.org/id/metropolitan-district-council/walsall,WC72-305,30/09/2016,Economy & Environment,AVANTGARDE PHARMA LTD T/A AL-SHAFA PHARMACY,07/09/2016,624.50,71007-CONTRIBUTION TO PCT,PUBLIC HEALTH BUSINESS SUPPORT,Third Party Payments,Revenue
Walsall Council,http://opendatacommunities.org/id/metropolitan-district-council/walsall,WC72-306,30/09/2016,Social Care & Inclusion,REDACTED,12/09/2016,971.25,76422-DIRECT PAYMENTS TO SOCIAL SERVICES CLIENTS,OP COMMISSIONING,Transfer Payments,Revenue
Walsall Council,http://opendatacommunities.org/id/metropolitan-district-council/walsall,WC72-307,30/09/2016,Economy & Environment,AXIELL LIMITED,28/09/2016,"17,056.23",63800-COMPUTER EQUIPMENT AND SUPPLIES,NETWORK SUPPORT,Supplies & Services,Revenue
Walsall Council,http://opendatacommunities.org/id/metropolitan-district-council/walsall,WC72-308,30/09/2016,Childrens,REDACTED,12/09/2016,"1,605.00",76422-DIRECT PAYMENTS TO SOCIAL SERVICES CLIENTS,FAMILY SUPPORT - DIRECT PAYMENTS,Transfer Payments,Revenue
Walsall Council,http://opendatacommunities.org/id/metropolitan-district-council/walsall,WC72-309,30/09/2016,Social Care & Inclusion,REDACTED,12/09/2016,"3,510.00",76422-DIRECT PAYMENTS TO SOCIAL SERVICES CLIENTS,LD COMMISSIONING,Transfer Payments,Revenue
Walsall Council,http://opendatacommunities.org/id/metropolitan-district-council/walsall,WC72-310,30/09/2016,Childrens,REDACTED,20/09/2016,"1,000.00",60500-GENERAL MATERIALS,PRIMARY CONSULTATIVE GROUP,Supplies & Services,Revenue
Walsall Council,http://opendatacommunities.org/id/metropolitan-district-council/walsall,WC72-311,30/09/2016,Childrens,REDACTED,26/09/2016,578.80,74006-HOLIDAY/CHRISTMAS ALLOWANCE-FOSTER CARERS-OTH AGENCY PROVISION,INTERNAL FOSTER CARE PROVISION,Third Party Payments,Revenue
Walsall Council,http://opendatacommunities.org/id/metropolitan-district-council/walsall,WC72-312,30/09/2016,Childrens,REDACTED,12/09/2016,906.76,62515-MISCELLANEOUS SUPPLIES,INTERNAL FOSTER CARE PROVISION,Supplies & Services,Revenue
Walsall Council,http://opendatacommunities.org/id/metropolitan-district-council/walsall,WC72-313,30/09/2016,Childrens,REDACTED,12/09/2016,985.76,74006-HOLIDAY/CHRISTMAS ALLOWANCE-FOSTER CARERS-OTH AGENCY PROVISION,INTERNAL FOSTER CARE PROVISION,Third Party Payments,Revenue
Walsall Council,http://opendatacommunities.org/id/metropolitan-district-council/walsall,WC72-314,30/09/2016,Childrens,REDACTED,14/09/2016,464.00,76000-TRANSFER PAYMENTS - SOCIAL SERVICES CLIENTS,TRANSITION AND LEAVING CARE,Transfer Payments,Revenue
Walsall Council,http://opendatacommunities.org/id/metropolitan-district-council/walsall,WC72-315,30/09/2016,Childrens,REDACTED,27/09/2016,464.00,76000-TRANSFER PAYMENTS - SOCIAL SERVICES CLIENTS,TRANSITION AND LEAVING CARE,Transfer Payments,Revenue
Walsall Council,http://opendatacommunities.org/id/metropolitan-district-council/walsall,WC72-316,30/09/2016,Childrens,REDACTED,12/09/2016,906.76,62515-MISCELLANEOUS SUPPLIES,INTERNAL FOSTER CARE PROVISION,Supplies & Services,Revenue
Walsall Council,http://opendatacommunities.org/id/metropolitan-district-council/walsall,WC72-317,30/09/2016,Childrens,REDACTED,12/09/2016,985.76,74006-HOLIDAY/CHRISTMAS ALLOWANCE-FOSTER CARERS-OTH AGENCY PROVISION,INTERNAL FOSTER CARE PROVISION,Third Party Payments,Revenue
Walsall Council,http://opendatacommunities.org/id/metropolitan-district-council/walsall,WC72-318,30/09/2016,Economy & Environment,BAKER HALL PARTNERSHIP,20/09/2016,286.00,63000-PROFESSIONAL FEES AND SERVICES,BUILDING CONTROL REVENUE FUNDED,Supplies & Services,Revenue
Walsall Council,http://opendatacommunities.org/id/metropolitan-district-council/walsall,WC72-319,30/09/2016,Childrens,BAKER ROSS LTD,15/09/2016,330.00,60500-GENERAL MATERIALS,GENERAL MANAGEMENT SUPPORT (INC LEGAL),Supplies & Services,Revenue
Walsall Council,http://opendatacommunities.org/id/metropolitan-district-council/walsall,WC72-320,30/09/2016,Social Care & Inclusion,REDACTED,12/09/2016,600.00,76422-DIRECT PAYMENTS TO SOCIAL SERVICES CLIENTS,MH COMMISSIONING,Transfer Payments,Revenue
Walsall Council,http://opendatacommunities.org/id/metropolitan-district-council/walsall,WC72-321,30/09/2016,Social Care & Inclusion,REDACTED,12/09/2016,"3,562.40",76422-DIRECT PAYMENTS TO SOCIAL SERVICES CLIENTS,LD COMMISSIONING,Transfer Payments,Revenue
Walsall Council,http://opendatacommunities.org/id/metropolitan-district-council/walsall,WC72-322,30/09/2016,Social Care & Inclusion,REDACTED,12/09/2016,"1,000.00",76422-DIRECT PAYMENTS TO SOCIAL SERVICES CLIENTS,OP COMMISSIONING,Transfer Payments,Revenue
Walsall Council,http://opendatacommunities.org/id/metropolitan-district-council/walsall,WC72-323,30/09/2016,Social Care & Inclusion,REDACTED,12/09/2016,"1,978.58",76422-DIRECT PAYMENTS TO SOCIAL SERVICES CLIENTS,OP COMMISSIONING,Transfer Payments,Revenue
Walsall Council,http://opendatacommunities.org/id/metropolitan-district-council/walsall,WC72-324,30/09/2016,Social Care & Inclusion,REDACTED,12/09/2016,"1,920.10",76422-DIRECT PAYMENTS TO SOCIAL SERVICES CLIENTS,YADS COMMISSIONING,Transfer Payments,Revenue
Walsall Council,http://opendatacommunities.org/id/metropolitan-district-council/walsall,WC72-325,30/09/2016,Childrens,REDACTED,05/09/2016,504.09,74012-PLACEMENT WITH RELATIVES (REG 1 CHILDRENS ACT 1989),INTERNAL FOSTER CARE PROVISION,Transfer Payments,Revenue
Walsall Council,http://opendatacommunities.org/id/metropolitan-district-council/walsall,WC72-326,30/09/2016,Childrens,REDACTED,26/09/2016,571.44,74006-HOLIDAY/CHRISTMAS ALLOWANCE-FOSTER CARERS-OTH AGENCY PROVISION,INTERNAL FOSTER CARE PROVISION,Third Party Payments,Revenue
Walsall Council,http://opendatacommunities.org/id/metropolitan-district-council/walsall,WC72-327,30/09/2016,Social Care & Inclusion,REDACTED,12/09/2016,742.50,76422-DIRECT PAYMENTS TO SOCIAL SERVICES CLIENTS,OP COMMISSIONING,Transfer Payments,Revenue
Walsall Council,http://opendatacommunities.org/id/metropolitan-district-council/walsall,WC72-328,30/09/2016,Social Care & Inclusion,REDACTED,12/09/2016,"1,062.05",76422-DIRECT PAYMENTS TO SOCIAL SERVICES CLIENTS,OP COMMISSIONING,Transfer Payments,Revenue
Walsall Council,http://opendatacommunities.org/id/metropolitan-district-council/walsall,WC72-329,30/09/2016,Childrens,BARNARDOS SERVICES LTD,28/09/2016,"1,189.50",63000-PROFESSIONAL FEES AND SERVICES,GENERAL MANAGEMENT SUPPORT (INC LEGAL),Supplies & Services,Revenue
Walsall Council,http://opendatacommunities.org/id/metropolitan-district-council/walsall,WC72-330,30/09/2016,Childrens,BARNARDOS SERVICES LTD,28/09/2016,"2,379.00",63000-PROFESSIONAL FEES AND SERVICES,GENERAL MANAGEMENT SUPPORT (INC LEGAL),Supplies & Services,Revenue
Walsall Council,http://opendatacommunities.org/id/metropolitan-district-council/walsall,WC72-331,30/09/2016,Childrens,BARNARDOS SERVICES LTD,28/09/2016,"2,379.00",63000-PROFESSIONAL FEES AND SERVICES,GENERAL MANAGEMENT SUPPORT (INC LEGAL),Supplies & Services,Revenue
Walsall Council,http://opendatacommunities.org/id/metropolitan-district-council/walsall,WC72-332,30/09/2016,Childrens,BARNARDOS SERVICES LTD,07/09/2016,"3,000.00",69400-REFERENCE BOOKS,PARENTING TEAM,Supplies & Services,Revenue
Walsall Council,http://opendatacommunities.org/id/metropolitan-district-council/walsall,WC72-333,30/09/2016,Childrens,BARNARDOS SERVICES LTD,09/09/2016,"3,180.60",74037-INDEPENDENT FOSTER CARE-OTH AGENCY PROVISION,EXTERNAL FOSTER CARE PROVISION,Third Party Payments,Revenue
Walsall Council,http://opendatacommunities.org/id/metropolitan-district-council/walsall,WC72-334,30/09/2016,Childrens,BARNARDOS SERVICES LTD,09/09/2016,"3,317.00",74037-INDEPENDENT FOSTER CARE-OTH AGENCY PROVISION,EXTERNAL FOSTER CARE PROVISION,Third Party Payments,Revenue
Walsall Council,http://opendatacommunities.org/id/metropolitan-district-council/walsall,WC72-335,30/09/2016,Change and Governance,BARONS COURT HOTEL,05/09/2016,262.50,34329-HOTEL ACCOMMODATION-EMPLOYEES,BED & BREAKFAST PAYMENTS,Employees,Revenue
Walsall Council,http://opendatacommunities.org/id/metropolitan-district-council/walsall,WC72-336,30/09/2016,Change and Governance,BARONS COURT HOTEL,05/09/2016,287.50,34329-HOTEL ACCOMMODATION-EMPLOYEES,BED & BREAKFAST PAYMENTS,Employees,Revenue
Walsall Council,http://opendatacommunities.org/id/metropolitan-district-council/walsall,WC72-337,30/09/2016,Childrens,BARR BEACON SCHOOL TRUST,12/09/2016,"8,771.54",66502-TOP UP FUNDING -GRANTS TO SCHOOLS,BARR BEACON SCHOOL TRUST (ACADEMY),Third Party Payments,Revenue
Walsall Council,http://opendatacommunities.org/id/metropolitan-district-council/walsall,WC72-338,30/09/2016,Economy & Environment,BAT FABRICATIONS LTD,28/09/2016,220.00,60006-NEW-FURNITURE & EQUIPMENT,INFRASTRUCTURE MAINTENANCE,Supplies & Services,Revenue
Walsall Council,http://opendatacommunities.org/id/metropolitan-district-council/walsall,WC72-339,30/09/2016,Economy & Environment,BAT FABRICATIONS LTD,28/09/2016,260.00,60006-NEW-FURNITURE & EQUIPMENT,INFRASTRUCTURE MAINTENANCE,Supplies & Services,Revenue
Walsall Council,http://opendatacommunities.org/id/metropolitan-district-council/walsall,WC72-340,30/09/2016,Economy & Environment,BAT FABRICATIONS LTD,28/09/2016,285.00,60006-NEW-FURNITURE & EQUIPMENT,INFRASTRUCTURE MAINTENANCE,Supplies & Services,Revenue
Walsall Council,http://opendatacommunities.org/id/metropolitan-district-council/walsall,WC72-341,30/09/2016,Economy & Environment,BAT FABRICATIONS LTD,09/09/2016,360.00,60006-NEW-FURNITURE & EQUIPMENT,INFRASTRUCTURE MAINTENANCE,Supplies & Services,Revenue
Walsall Council,http://opendatacommunities.org/id/metropolitan-district-council/walsall,WC72-342,30/09/2016,Economy & Environment,BAT FABRICATIONS LTD,28/09/2016,585.00,60006-NEW-FURNITURE & EQUIPMENT,COMMUNITY LIAISON,Supplies & Services,Revenue
Walsall Council,http://opendatacommunities.org/id/metropolitan-district-council/walsall,WC72-343,30/09/2016,Economy & Environment,BAT FABRICATIONS LTD,28/09/2016,"1,280.00",60500-GENERAL MATERIALS,INFRASTRUCTURE MAINTENANCE,Supplies & Services,Revenue
Walsall Council,http://opendatacommunities.org/id/metropolitan-district-council/walsall,WC72-344,30/09/2016,Childrens,REDACTED,12/09/2016,925.00,62515-MISCELLANEOUS SUPPLIES,INTERNAL FOSTER CARE PROVISION,Supplies & Services,Revenue
Walsall Council,http://opendatacommunities.org/id/metropolitan-district-council/walsall,WC72-345,30/09/2016,Childrens,REDACTED,12/09/2016,"1,301.84",74006-HOLIDAY/CHRISTMAS ALLOWANCE-FOSTER CARERS-OTH AGENCY PROVISION,INTERNAL FOSTER CARE PROVISION,Third Party Payments,Revenue
Walsall Council,http://opendatacommunities.org/id/metropolitan-district-council/walsall,WC72-346,30/09/2016,Social Care & Inclusion,REDACTED,12/09/2016,"1,082.81",76422-DIRECT PAYMENTS TO SOCIAL SERVICES CLIENTS,OP COMMISSIONING,Transfer Payments,Revenue
Walsall Council,http://opendatacommunities.org/id/metropolitan-district-council/walsall,WC72-347,30/09/2016,Economy & Environment,BEAVER 84 LTD,15/09/2016,300.50,62523-EVENTS,BARR BEACON RESTORATION,Supplies & Services,Revenue
Walsall Council,http://opendatacommunities.org/id/metropolitan-district-council/walsall,WC72-348,30/09/2016,Change and Governance,BEECHDALE RESIDENTS COMMUNITY GROUP,01/09/2016,750.00,66500-GRANTS TO OTHER ORGS,COHESION,Third Party Payments,Revenue
Walsall Council,http://opendatacommunities.org/id/metropolitan-district-council/walsall,WC72-349,30/09/2016,Economy & Environment,BEECHWOOD TREES AND LANDSCAPES LTD,13/09/2016,250.00,60009-LEASING/HIRE/RENTAL-EQUIPMENT,TREE TEAM,Supplies & Services,Revenue
Walsall Council,http://opendatacommunities.org/id/metropolitan-district-council/walsall,WC72-350,30/09/2016,Economy & Environment,BEECHWOOD TREES AND LANDSCAPES LTD,28/09/2016,550.00,01002-PROJECT FEES,CFR 1072 TRANSPORTATION GROWTH DEAL ACCESSING GROWTH,Capital,Capital
Walsall Council,http://opendatacommunities.org/id/metropolitan-district-council/walsall,WC72-351,30/09/2016,Childrens,REDACTED,12/09/2016,571.44,74006-HOLIDAY/CHRISTMAS ALLOWANCE-FOSTER CARERS-OTH AGENCY PROVISION,INTERNAL FOSTER CARE PROVISION,Third Party Payments,Revenue
Walsall Council,http://opendatacommunities.org/id/metropolitan-district-council/walsall,WC72-352,30/09/2016,Childrens,REDACTED,12/09/2016,695.18,62515-MISCELLANEOUS SUPPLIES,INTERNAL FOSTER CARE PROVISION,Supplies & Services,Revenue
Walsall Council,http://opendatacommunities.org/id/metropolitan-district-council/walsall,WC72-353,30/09/2016,Social Care & Inclusion,REDACTED,12/09/2016,"2,887.50",76422-DIRECT PAYMENTS TO SOCIAL SERVICES CLIENTS,LD COMMISSIONING,Transfer Payments,Revenue
Walsall Council,http://opendatacommunities.org/id/metropolitan-district-council/walsall,WC72-354,30/09/2016,Childrens,BENTLEY CHILD CARE,12/09/2016,"15,200.00",63102-CONSULTANTS FEES - CORPORATE,LOCALITY FAMILY SUPPORT-CENTRAL & EAST,Supplies & Services,Revenue
Walsall Council,http://opendatacommunities.org/id/metropolitan-district-council/walsall,WC72-355,30/09/2016,Social Care & Inclusion,BENTLEY COURT PRIORY,06/09/2016,"1,001.79",73373-RESIDENTIAL & NURSING CARE PLACEMENTS,OP COMMISSIONING,Third Party Payments,Revenue
Walsall Council,http://opendatacommunities.org/id/metropolitan-district-council/walsall,WC72-356,30/09/2016,Social Care & Inclusion,BENTLEY COURT PRIORY,06/09/2016,"1,464.14",73373-RESIDENTIAL & NURSING CARE PLACEMENTS,OP COMMISSIONING,Third Party Payments,Revenue
Walsall Council,http://opendatacommunities.org/id/metropolitan-district-council/walsall,WC72-357,30/09/2016,Social Care & Inclusion,BENTLEY COURT PRIORY,06/09/2016,"1,826.79",73373-RESIDENTIAL & NURSING CARE PLACEMENTS,OP COMMISSIONING,Third Party Payments,Revenue
Walsall Council,http://opendatacommunities.org/id/metropolitan-district-council/walsall,WC72-358,30/09/2016,Social Care & Inclusion,BENTLEY COURT PRIORY,06/09/2016,"1,826.79",73373-RESIDENTIAL & NURSING CARE PLACEMENTS,OP COMMISSIONING,Third Party Payments,Revenue
Walsall Council,http://opendatacommunities.org/id/metropolitan-district-council/walsall,WC72-359,30/09/2016,Social Care & Inclusion,BENTLEY COURT PRIORY,06/09/2016,"2,322.56",73373-RESIDENTIAL & NURSING CARE PLACEMENTS,OP COMMISSIONING,Third Party Payments,Revenue
Walsall Council,http://opendatacommunities.org/id/metropolitan-district-council/walsall,WC72-360,30/09/2016,Social Care & Inclusion,BENTLEY COURT PRIORY,06/09/2016,"2,322.56",73373-RESIDENTIAL & NURSING CARE PLACEMENTS,OP COMMISSIONING,Third Party Payments,Revenue
Walsall Council,http://opendatacommunities.org/id/metropolitan-district-council/walsall,WC72-361,30/09/2016,Social Care & Inclusion,BENTLEY COURT PRIORY,06/09/2016,"2,521.09",73373-RESIDENTIAL & NURSING CARE PLACEMENTS,OP COMMISSIONING,Third Party Payments,Revenue
Walsall Council,http://opendatacommunities.org/id/metropolitan-district-council/walsall,WC72-362,30/09/2016,Social Care & Inclusion,BENTLEY COURT PRIORY,06/09/2016,"2,674.71",73373-RESIDENTIAL & NURSING CARE PLACEMENTS,OP COMMISSIONING,Third Party Payments,Revenue
Walsall Council,http://opendatacommunities.org/id/metropolitan-district-council/walsall,WC72-363,30/09/2016,Social Care & Inclusion,BENTLEY COURT PRIORY,06/09/2016,"3,115.64",73373-RESIDENTIAL & NURSING CARE PLACEMENTS,OP COMMISSIONING,Third Party Payments,Revenue
Walsall Council,http://opendatacommunities.org/id/metropolitan-district-council/walsall,WC72-364,30/09/2016,Social Care & Inclusion,REDACTED,12/09/2016,"1,140.00",76422-DIRECT PAYMENTS TO SOCIAL SERVICES CLIENTS,OP COMMISSIONING,Transfer Payments,Revenue
Walsall Council,http://opendatacommunities.org/id/metropolitan-district-council/walsall,WC72-365,30/09/2016,Childrens,REDACTED,12/09/2016,"1,062.74",74006-HOLIDAY/CHRISTMAS ALLOWANCE-FOSTER CARERS-OTH AGENCY PROVISION,INTERNAL FOSTER CARE PROVISION,Third Party Payments,Revenue
Walsall Council,http://opendatacommunities.org/id/metropolitan-district-council/walsall,WC72-366,30/09/2016,Childrens,REDACTED,12/09/2016,"1,445.32",62515-MISCELLANEOUS SUPPLIES,INTERNAL FOSTER CARE PROVISION,Supplies & Services,Revenue
Walsall Council,http://opendatacommunities.org/id/metropolitan-district-council/walsall,WC72-367,30/09/2016,Social Care & Inclusion,REDACTED,12/09/2016,"1,210.00",76422-DIRECT PAYMENTS TO SOCIAL SERVICES CLIENTS,OP COMMISSIONING,Transfer Payments,Revenue
Walsall Council,http://opendatacommunities.org/id/metropolitan-district-council/walsall,WC72-368,30/09/2016,Economy & Environment,BESCOT STADIUM SUNDAY MARKET LTD,08/09/2016,"3,500.00",73025-PROFESSIONAL SERVICES-PRIV CONTRACTOR & OTHER AGENCIES,WILLENHALL MARKET,Third Party Payments,Revenue
Walsall Council,http://opendatacommunities.org/id/metropolitan-district-council/walsall,WC72-369,30/09/2016,Social Care & Inclusion,BESWICK HOUSE SUPPORTED ACCOMMODATION LTD,01/09/2016,"15,045.79",73365-BLOCK GROSS-SUPPORTING PEOPLE,EXTERNAL SP,Third Party Payments,Revenue
Walsall Council,http://opendatacommunities.org/id/metropolitan-district-council/walsall,WC72-370,30/09/2016,Social Care & Inclusion,BETHPHAGE.,21/09/2016,650.00,73374-SUPPORTED & OTHER ACCOMMODATION,LD COMMISSIONING,Third Party Payments,Revenue
Walsall Council,http://opendatacommunities.org/id/metropolitan-district-council/walsall,WC72-371,30/09/2016,Social Care & Inclusion,BETHPHAGE.,23/09/2016,"1,439.24",73374-SUPPORTED & OTHER ACCOMMODATION,LD COMMISSIONING,Third Party Payments,Revenue
Walsall Council,http://opendatacommunities.org/id/metropolitan-district-council/walsall,WC72-372,30/09/2016,Social Care & Inclusion,BETHPHAGE.,23/09/2016,"1,566.22",73374-SUPPORTED & OTHER ACCOMMODATION,LD COMMISSIONING,Third Party Payments,Revenue
Walsall Council,http://opendatacommunities.org/id/metropolitan-district-council/walsall,WC72-373,30/09/2016,Social Care & Inclusion,REDACTED,12/09/2016,"1,186.90",76422-DIRECT PAYMENTS TO SOCIAL SERVICES CLIENTS,MH COMMISSIONING,Transfer Payments,Revenue
Walsall Council,http://opendatacommunities.org/id/metropolitan-district-council/walsall,WC72-374,30/09/2016,Social Care & Inclusion,REDACTED,12/09/2016,"3,459.80",76422-DIRECT PAYMENTS TO SOCIAL SERVICES CLIENTS,OP COMMISSIONING,Transfer Payments,Revenue
Walsall Council,http://opendatacommunities.org/id/metropolitan-district-council/walsall,WC72-375,30/09/2016,Childrens,BHATIA BEST SOLICITORS,01/09/2016,"11,903.35",73014-LEGAL FEES-PRIV CONTRACTOR FEES,GENERAL MANAGEMENT SUPPORT (INC LEGAL),Third Party Payments,Revenue
Walsall Council,http://opendatacommunities.org/id/metropolitan-district-council/walsall,WC72-376,30/09/2016,Economy & Environment,BIBLIOTHECA LTD,28/09/2016,"5,250.00",01044-PURCHASE OF FURNITURE & EQUIPMENT,CFR 1156 OPEN PLUS IN LIBRARIES,Capital,Capital
Walsall Council,http://opendatacommunities.org/id/metropolitan-district-council/walsall,WC72-377,30/09/2016,Economy & Environment,BICMP LTD,13/09/2016,"67,386.60",01045-PRIVATE GRANTS,CFR 1072 MUSIC INSTITUTE DEVELOPMENT STUDY,Capital,Capital
Walsall Council,http://opendatacommunities.org/id/metropolitan-district-council/walsall,WC72-378,30/09/2016,Childrens,REDACTED,12/09/2016,609.65,76422-DIRECT PAYMENTS TO SOCIAL SERVICES CLIENTS,FAMILY SUPPORT - DIRECT PAYMENTS,Transfer Payments,Revenue
Walsall Council,http://opendatacommunities.org/id/metropolitan-district-council/walsall,WC72-379,30/09/2016,Childrens,REDACTED,12/09/2016,671.50,76422-DIRECT PAYMENTS TO SOCIAL SERVICES CLIENTS,FAMILY SUPPORT - DIRECT PAYMENTS,Transfer Payments,Revenue
Walsall Council,http://opendatacommunities.org/id/metropolitan-district-council/walsall,WC72-380,30/09/2016,Economy & Environment,BIOGAS TECHNOLOGY LIMITED,01/09/2016,347.00,60008-MAINTENANCE-FURNITURE & EQUIPMENT,POLLUTION DIVISION,Supplies & Services,Revenue
Walsall Council,http://opendatacommunities.org/id/metropolitan-district-council/walsall,WC72-381,30/09/2016,Childrens,BIRCHILLS C OF E COMMUNITY ACADEMY,05/09/2016,"31,132.62",66505-OTHER-GRANTS TO OTHER ORGS,EARLY YEARS - 3 YR OLDS,Third Party Payments,Revenue
Walsall Council,http://opendatacommunities.org/id/metropolitan-district-council/walsall,WC72-382,30/09/2016,Economy & Environment,BIRMINGHAM CITY COUNCIL,28/09/2016,516.00,62515-MISCELLANEOUS SUPPLIES,WILLENHALL DISTRICT CENTRE,Supplies & Services,Revenue
Walsall Council,http://opendatacommunities.org/id/metropolitan-district-council/walsall,WC72-383,30/09/2016,Economy & Environment,BIRMINGHAM CITY COUNCIL,28/09/2016,516.00,62515-MISCELLANEOUS SUPPLIES,DARLASTON DISTRICT CENTRE,Supplies & Services,Revenue
Walsall Council,http://opendatacommunities.org/id/metropolitan-district-council/walsall,WC72-384,30/09/2016,Economy & Environment,BIRMINGHAM CITY COUNCIL,28/09/2016,516.00,62515-MISCELLANEOUS SUPPLIES,BLOXWICH DISTRICT CENTRE,Supplies & Services,Revenue
Walsall Council,http://opendatacommunities.org/id/metropolitan-district-council/walsall,WC72-385,30/09/2016,Economy & Environment,BIRMINGHAM CITY COUNCIL,28/09/2016,516.00,62515-MISCELLANEOUS SUPPLIES,ALDRIDGE DISTRICT CENTRE,Supplies & Services,Revenue
Walsall Council,http://opendatacommunities.org/id/metropolitan-district-council/walsall,WC72-386,30/09/2016,Economy & Environment,BIRMINGHAM CITY COUNCIL,28/09/2016,516.00,62515-MISCELLANEOUS SUPPLIES,BROWNHILLS DISTRICT CENTRE,Supplies & Services,Revenue
Walsall Council,http://opendatacommunities.org/id/metropolitan-district-council/walsall,WC72-387,30/09/2016,Economy & Environment,BIRMINGHAM FLOWERS AND PLANTS LTD,01/09/2016,"1,539.00",62515-MISCELLANEOUS SUPPLIES,BLOXWICH DISTRICT CENTRE,Supplies & Services,Revenue
Walsall Council,http://opendatacommunities.org/id/metropolitan-district-council/walsall,WC72-388,30/09/2016,Social Care & Inclusion,BLACK COUNTRY PARTNERSHIP NHS,01/09/2016,"-18,198.00",73375-IN PATIENT BEDS,BCPFT,Third Party Payments,Revenue
Walsall Council,http://opendatacommunities.org/id/metropolitan-district-council/walsall,WC72-389,30/09/2016,Social Care & Inclusion,BLACK COUNTRY PARTNERSHIP NHS,01/09/2016,"-16,379.00",73375-IN PATIENT BEDS,BCPFT,Third Party Payments,Revenue
Walsall Council,http://opendatacommunities.org/id/metropolitan-district-council/walsall,WC72-390,30/09/2016,Social Care & Inclusion,BLACK COUNTRY PARTNERSHIP NHS,09/09/2016,"-1,800.00",73375-IN PATIENT BEDS,LD COMMISSIONING,Third Party Payments,Revenue
Walsall Council,http://opendatacommunities.org/id/metropolitan-district-council/walsall,WC72-391,30/09/2016,Social Care & Inclusion,BLACK COUNTRY PARTNERSHIP NHS,21/09/2016,606.60,73375-IN PATIENT BEDS,LD COMMISSIONING,Third Party Payments,Revenue
Walsall Council,http://opendatacommunities.org/id/metropolitan-district-council/walsall,WC72-392,30/09/2016,Social Care & Inclusion,BLACK COUNTRY PARTNERSHIP NHS,21/09/2016,"1,164.00",73375-IN PATIENT BEDS,LD COMMISSIONING,Third Party Payments,Revenue
Walsall Council,http://opendatacommunities.org/id/metropolitan-district-council/walsall,WC72-393,30/09/2016,Social Care & Inclusion,BLACK COUNTRY PARTNERSHIP NHS,09/09/2016,"1,456.00",73375-IN PATIENT BEDS,LD COMMISSIONING,Third Party Payments,Revenue
Walsall Council,http://opendatacommunities.org/id/metropolitan-district-council/walsall,WC72-394,30/09/2016,Social Care & Inclusion,BLACK COUNTRY PARTNERSHIP NHS,01/09/2016,"1,820.00",73375-IN PATIENT BEDS,BCPFT,Third Party Payments,Revenue
Walsall Council,http://opendatacommunities.org/id/metropolitan-district-council/walsall,WC72-395,30/09/2016,Social Care & Inclusion,BLACK COUNTRY PARTNERSHIP NHS,09/09/2016,"2,911.00",73375-IN PATIENT BEDS,LD COMMISSIONING,Third Party Payments,Revenue
Walsall Council,http://opendatacommunities.org/id/metropolitan-district-council/walsall,WC72-396,30/09/2016,Social Care & Inclusion,BLACK COUNTRY PARTNERSHIP NHS,09/09/2016,"3,960.00",73375-IN PATIENT BEDS,LD COMMISSIONING,Third Party Payments,Revenue
Walsall Council,http://opendatacommunities.org/id/metropolitan-district-council/walsall,WC72-397,30/09/2016,Social Care & Inclusion,BLACK COUNTRY PARTNERSHIP NHS,21/09/2016,"5,094.00",73375-IN PATIENT BEDS,LD COMMISSIONING,Third Party Payments,Revenue
Walsall Council,http://opendatacommunities.org/id/metropolitan-district-council/walsall,WC72-398,30/09/2016,Social Care & Inclusion,BLACK COUNTRY PARTNERSHIP NHS,09/09/2016,"6,066.00",73375-IN PATIENT BEDS,BCPFT,Third Party Payments,Revenue
Walsall Council,http://opendatacommunities.org/id/metropolitan-district-council/walsall,WC72-399,30/09/2016,Social Care & Inclusion,BLACK COUNTRY PARTNERSHIP NHS,09/09/2016,"6,066.00",73375-IN PATIENT BEDS,BCPFT,Third Party Payments,Revenue
Walsall Council,http://opendatacommunities.org/id/metropolitan-district-council/walsall,WC72-400,30/09/2016,Social Care & Inclusion,BLACK COUNTRY PARTNERSHIP NHS,01/09/2016,"7,886.00",73375-IN PATIENT BEDS,BCPFT,Third Party Payments,Revenue
Walsall Council,http://opendatacommunities.org/id/metropolitan-district-council/walsall,WC72-401,30/09/2016,Social Care & Inclusion,BLACK COUNTRY PARTNERSHIP NHS,09/09/2016,"12,132.00",73375-IN PATIENT BEDS,BCPFT,Third Party Payments,Revenue
Walsall Council,http://opendatacommunities.org/id/metropolitan-district-council/walsall,WC72-402,30/09/2016,Social Care & Inclusion,BLACK COUNTRY PARTNERSHIP NHS,09/09/2016,"16,378.00",73375-IN PATIENT BEDS,BCPFT,Third Party Payments,Revenue
Walsall Council,http://opendatacommunities.org/id/metropolitan-district-council/walsall,WC72-403,30/09/2016,Social Care & Inclusion,BLACK COUNTRY PARTNERSHIP NHS,01/09/2016,"17,467.00",73375-IN PATIENT BEDS,BCPFT,Third Party Payments,Revenue
Walsall Council,http://opendatacommunities.org/id/metropolitan-district-council/walsall,WC72-404,30/09/2016,Social Care & Inclusion,BLACK COUNTRY PARTNERSHIP NHS,09/09/2016,"17,856.00",73375-IN PATIENT BEDS,LD COMMISSIONING,Third Party Payments,Revenue
Walsall Council,http://opendatacommunities.org/id/metropolitan-district-council/walsall,WC72-405,30/09/2016,Social Care & Inclusion,BLACK COUNTRY PARTNERSHIP NHS,09/09/2016,"17,856.00",73375-IN PATIENT BEDS,LD COMMISSIONING,Third Party Payments,Revenue
Walsall Council,http://opendatacommunities.org/id/metropolitan-district-council/walsall,WC72-406,30/09/2016,Social Care & Inclusion,BLACK COUNTRY PARTNERSHIP NHS,09/09/2016,"18,049.00",73375-IN PATIENT BEDS,LD COMMISSIONING,Third Party Payments,Revenue
Walsall Council,http://opendatacommunities.org/id/metropolitan-district-council/walsall,WC72-407,30/09/2016,Social Care & Inclusion,BLACK COUNTRY PARTNERSHIP NHS,09/09/2016,"18,049.00",73375-IN PATIENT BEDS,LD COMMISSIONING,Third Party Payments,Revenue
Walsall Council,http://opendatacommunities.org/id/metropolitan-district-council/walsall,WC72-408,30/09/2016,Social Care & Inclusion,BLACK COUNTRY PARTNERSHIP NHS,01/09/2016,"18,198.00",73375-IN PATIENT BEDS,BCPFT,Third Party Payments,Revenue
Walsall Council,http://opendatacommunities.org/id/metropolitan-district-council/walsall,WC72-409,30/09/2016,Social Care & Inclusion,BLACK COUNTRY PARTNERSHIP NHS,09/09/2016,"18,198.00",73375-IN PATIENT BEDS,BCPFT,Third Party Payments,Revenue
Walsall Council,http://opendatacommunities.org/id/metropolitan-district-council/walsall,WC72-410,30/09/2016,Social Care & Inclusion,BLACK COUNTRY PARTNERSHIP NHS,09/09/2016,"18,198.00",73375-IN PATIENT BEDS,BCPFT,Third Party Payments,Revenue
Walsall Council,http://opendatacommunities.org/id/metropolitan-district-council/walsall,WC72-411,30/09/2016,Social Care & Inclusion,BLACK COUNTRY PARTNERSHIP NHS,09/09/2016,"18,198.00",73375-IN PATIENT BEDS,BCPFT,Third Party Payments,Revenue
Walsall Council,http://opendatacommunities.org/id/metropolitan-district-council/walsall,WC72-412,30/09/2016,Social Care & Inclusion,BLACK COUNTRY PARTNERSHIP NHS,09/09/2016,"18,198.00",73375-IN PATIENT BEDS,BCPFT,Third Party Payments,Revenue
Walsall Council,http://opendatacommunities.org/id/metropolitan-district-council/walsall,WC72-413,30/09/2016,Social Care & Inclusion,BLACK COUNTRY PARTNERSHIP NHS,01/09/2016,"18,805.00",73375-IN PATIENT BEDS,BCPFT,Third Party Payments,Revenue
Walsall Council,http://opendatacommunities.org/id/metropolitan-district-council/walsall,WC72-414,30/09/2016,Social Care & Inclusion,BLACK COUNTRY PARTNERSHIP NHS,01/09/2016,"18,805.00",73375-IN PATIENT BEDS,BCPFT,Third Party Payments,Revenue
Walsall Council,http://opendatacommunities.org/id/metropolitan-district-council/walsall,WC72-415,30/09/2016,Social Care & Inclusion,BLACK COUNTRY PARTNERSHIP NHS,01/09/2016,"18,805.00",73375-IN PATIENT BEDS,BCPFT,Third Party Payments,Revenue
Walsall Council,http://opendatacommunities.org/id/metropolitan-district-council/walsall,WC72-416,30/09/2016,Social Care & Inclusion,BLACK COUNTRY PARTNERSHIP NHS,01/09/2016,"18,805.00",73375-IN PATIENT BEDS,BCPFT,Third Party Payments,Revenue
Walsall Council,http://opendatacommunities.org/id/metropolitan-district-council/walsall,WC72-417,30/09/2016,Social Care & Inclusion,BLACK COUNTRY PARTNERSHIP NHS,09/09/2016,"18,805.00",73375-IN PATIENT BEDS,BCPFT,Third Party Payments,Revenue
Walsall Council,http://opendatacommunities.org/id/metropolitan-district-council/walsall,WC72-418,30/09/2016,Social Care & Inclusion,BLACK COUNTRY PARTNERSHIP NHS,09/09/2016,"18,805.00",73375-IN PATIENT BEDS,BCPFT,Third Party Payments,Revenue
Walsall Council,http://opendatacommunities.org/id/metropolitan-district-council/walsall,WC72-419,30/09/2016,Social Care & Inclusion,BLACK COUNTRY PARTNERSHIP NHS,09/09/2016,"18,805.00",73375-IN PATIENT BEDS,BCPFT,Third Party Payments,Revenue
Walsall Council,http://opendatacommunities.org/id/metropolitan-district-council/walsall,WC72-420,30/09/2016,Social Care & Inclusion,BLACK COUNTRY PARTNERSHIP NHS,09/09/2016,"18,805.00",73375-IN PATIENT BEDS,LD COMMISSIONING,Third Party Payments,Revenue
Walsall Council,http://opendatacommunities.org/id/metropolitan-district-council/walsall,WC72-421,30/09/2016,Social Care & Inclusion,BLACK COUNTRY PARTNERSHIP NHS,09/09/2016,"18,805.00",73375-IN PATIENT BEDS,BCPFT,Third Party Payments,Revenue
Walsall Council,http://opendatacommunities.org/id/metropolitan-district-council/walsall,WC72-422,30/09/2016,Social Care & Inclusion,BLACK COUNTRY PARTNERSHIP NHS,09/09/2016,"19,003.00",73375-IN PATIENT BEDS,LD COMMISSIONING,Third Party Payments,Revenue
Walsall Council,http://opendatacommunities.org/id/metropolitan-district-council/walsall,WC72-423,30/09/2016,Social Care & Inclusion,BLACK COUNTRY PARTNERSHIP NHS,12/09/2016,"155,340.62",71007-CONTRIBUTION TO PCT,BCPFT,Third Party Payments,Revenue
Walsall Council,http://opendatacommunities.org/id/metropolitan-district-council/walsall,WC72-424,30/09/2016,Social Care & Inclusion,BLACK COUNTRY PARTNERSHIP NHS,12/09/2016,"155,340.62",71007-CONTRIBUTION TO PCT,BCPFT,Third Party Payments,Revenue
Walsall Council,http://opendatacommunities.org/id/metropolitan-district-council/walsall,WC72-425,30/09/2016,Social Care & Inclusion,BLACK COUNTRY PARTNERSHIP NHS,21/09/2016,"155,340.62",71007-CONTRIBUTION TO PCT,BCPFT,Third Party Payments,Revenue
Walsall Council,http://opendatacommunities.org/id/metropolitan-district-council/walsall,WC72-426,30/09/2016,Economy & Environment,BLACK COUNTRY TOURING,15/09/2016,"1,000.00",63000-PROFESSIONAL FEES AND SERVICES,FOREST ARTS CENTRE,Supplies & Services,Revenue
Walsall Council,http://opendatacommunities.org/id/metropolitan-district-council/walsall,WC72-427,30/09/2016,Childrens,BLAKENALL HEATH JMI SCHOOL,13/09/2016,"2,447.32",66502-TOP UP FUNDING -GRANTS TO SCHOOLS,BLAKENALL HEATH JUNIOR SCHOOL,Third Party Payments,Revenue
Walsall Council,http://opendatacommunities.org/id/metropolitan-district-council/walsall,WC72-428,30/09/2016,Childrens,BLOXWICH ACADEMY,05/09/2016,"3,523.73",66505-OTHER-GRANTS TO OTHER ORGS,EARLY YEARS - 3 YR OLDS,Third Party Payments,Revenue
Walsall Council,http://opendatacommunities.org/id/metropolitan-district-council/walsall,WC72-429,30/09/2016,Childrens,BLOXWICH ACADEMY,12/09/2016,"6,504.25",66502-TOP UP FUNDING -GRANTS TO SCHOOLS,THE MIRUS ACADEMY,Third Party Payments,Revenue
Walsall Council,http://opendatacommunities.org/id/metropolitan-district-council/walsall,WC72-430,30/09/2016,Social Care & Inclusion,BLOXWICH COMMUNITY PARTNERSHIP.,21/09/2016,279.00,73372-DOMICILIARY CARE,OP COMMISSIONING,Third Party Payments,Revenue
Walsall Council,http://opendatacommunities.org/id/metropolitan-district-council/walsall,WC72-431,30/09/2016,Social Care & Inclusion,BLOXWICH COMMUNITY PARTNERSHIP.,21/09/2016,336.00,73374-SUPPORTED & OTHER ACCOMMODATION,MH COMMISSIONING,Third Party Payments,Revenue
Walsall Council,http://opendatacommunities.org/id/metropolitan-district-council/walsall,WC72-432,30/09/2016,Social Care & Inclusion,BLOXWICH COMMUNITY PARTNERSHIP.,21/09/2016,351.00,73372-DOMICILIARY CARE,MH COMMISSIONING,Third Party Payments,Revenue
Walsall Council,http://opendatacommunities.org/id/metropolitan-district-council/walsall,WC72-433,30/09/2016,Social Care & Inclusion,BLOXWICH COMMUNITY PARTNERSHIP.,09/09/2016,"6,000.00",70000-SOCIAL SERVICES-FEES TO VOLUNTARY BODIES,COMPLEX NEEDS CONTRACTS/SLA's,Third Party Payments,Revenue
Walsall Council,http://opendatacommunities.org/id/metropolitan-district-council/walsall,WC72-434,30/09/2016,Change and Governance,BLOXWICH COMMUNITY PARTNERSHIP.,01/09/2016,"6,666.66",66500-GRANTS TO OTHER ORGS,BLOXWICH COMMUNITY PARTNERSHIP,Third Party Payments,Revenue
Walsall Council,http://opendatacommunities.org/id/metropolitan-district-council/walsall,WC72-435,30/09/2016,Childrens,BLOXWICH RADIO TAXIS,12/09/2016,600.00,52000-WITH DRIVER-HIRE OF VEHICLES,SCHOOL TRANSPORT,Transport,Revenue
Walsall Council,http://opendatacommunities.org/id/metropolitan-district-council/walsall,WC72-436,30/09/2016,Childrens,BLOXWICH RADIO TAXIS,12/09/2016,900.00,52000-WITH DRIVER-HIRE OF VEHICLES,SCHOOL TRANSPORT,Transport,Revenue
Walsall Council,http://opendatacommunities.org/id/metropolitan-district-council/walsall,WC72-437,30/09/2016,Childrens,BLOXWICH RADIO TAXIS,12/09/2016,"2,640.00",52000-WITH DRIVER-HIRE OF VEHICLES,SCHOOL TRANSPORT,Transport,Revenue
Walsall Council,http://opendatacommunities.org/id/metropolitan-district-council/walsall,WC72-438,30/09/2016,Childrens,BLUE COAT CHURCH OF ENGLAND ACADEMY,12/09/2016,"4,510.39",66502-TOP UP FUNDING -GRANTS TO SCHOOLS,BLUE COAT CofE ACADEMY,Third Party Payments,Revenue
Walsall Council,http://opendatacommunities.org/id/metropolitan-district-council/walsall,WC72-439,30/09/2016,Social Care & Inclusion,BLUEBIRD CARE (MID STAFFS),20/09/2016,504.00,73372-DOMICILIARY CARE,OP COMMISSIONING,Third Party Payments,Revenue
Walsall Council,http://opendatacommunities.org/id/metropolitan-district-council/walsall,WC72-440,30/09/2016,Social Care & Inclusion,BLUEBIRD CARE (MID STAFFS),01/09/2016,612.00,73372-DOMICILIARY CARE,OP COMMISSIONING,Third Party Payments,Revenue
Walsall Council,http://opendatacommunities.org/id/metropolitan-district-council/walsall,WC72-441,30/09/2016,Economy & Environment,BOOKS ASIA,26/09/2016,331.93,60501-LIBRARY BOOKS,LIBRARY STOCK AND PERFORMANCE,Supplies & Services,Revenue
Walsall Council,http://opendatacommunities.org/id/metropolitan-district-council/walsall,WC72-442,30/09/2016,Childrens,BOOSTERS OUT OF SCHOOL CLUB,15/09/2016,576.00,73025-PROFESSIONAL SERVICES-PRIV CONTRACTOR & OTHER AGENCIES,LOOKED AFTER CHILDRENS SOCIAL WORK TEAM,Third Party Payments,Revenue
Walsall Council,http://opendatacommunities.org/id/metropolitan-district-council/walsall,WC72-443,30/09/2016,Economy & Environment,BOOTS UK LIMITED,07/09/2016,56.43,71007-CONTRIBUTION TO PCT,PUBLIC HEALTH BUSINESS SUPPORT,Third Party Payments,Revenue
Walsall Council,http://opendatacommunities.org/id/metropolitan-district-council/walsall,WC72-444,30/09/2016,Economy & Environment,BOOTS UK LIMITED,07/09/2016,318.60,63000-PROFESSIONAL FEES AND SERVICES,SEXUAL HEALTH,Supplies & Services,Revenue
Walsall Council,http://opendatacommunities.org/id/metropolitan-district-council/walsall,WC72-445,30/09/2016,Economy & Environment,BORNEO ST ALLOTMENT ASSOCIATION,27/09/2016,"1,000.00",66500-GRANTS TO OTHER ORGS,CENTRAL SERVICES ALLOTMENTS,Third Party Payments,Revenue
Walsall Council,http://opendatacommunities.org/id/metropolitan-district-council/walsall,WC72-446,30/09/2016,Social Care & Inclusion,BOWDEN DERRA PARK,27/09/2016,"10,502.76",73373-RESIDENTIAL & NURSING CARE PLACEMENTS,LD COMMISSIONING,Third Party Payments,Revenue
Walsall Council,http://opendatacommunities.org/id/metropolitan-district-council/walsall,WC72-447,30/09/2016,Change and Governance,BPP PROFESSIONAL EDUCATION,19/09/2016,"1,001.81",30030-EXTERNAL TRAINING,FINANCE,Employees,Revenue
Walsall Council,http://opendatacommunities.org/id/metropolitan-district-council/walsall,WC72-448,30/09/2016,Change and Governance,BRADLEY ENVIRONMENTAL,01/09/2016,248.00,01006-SITE WORKS MAIN CONTRACTORS,CFR 801 ASBESTOS REMOVAL EAST,Capital,Capital
Walsall Council,http://opendatacommunities.org/id/metropolitan-district-council/walsall,WC72-449,30/09/2016,Economy & Environment,BRADVALE LTD T/A INSPIRE HEALTHCARE SERVICES,20/09/2016,555.51,60500-GENERAL MATERIALS,ARBORETUM VISITOR CENTRE,Supplies & Services,Revenue
Walsall Council,http://opendatacommunities.org/id/metropolitan-district-council/walsall,WC72-450,30/09/2016,Social Care & Inclusion,REDACTED,12/09/2016,550.00,76422-DIRECT PAYMENTS TO SOCIAL SERVICES CLIENTS,LD COMMISSIONING,Transfer Payments,Revenue
Walsall Council,http://opendatacommunities.org/id/metropolitan-district-council/walsall,WC72-451,30/09/2016,Childrens,REDACTED,12/09/2016,"1,445.32",62515-MISCELLANEOUS SUPPLIES,INTERNAL FOSTER CARE PROVISION,Supplies & Services,Revenue
Walsall Council,http://opendatacommunities.org/id/metropolitan-district-council/walsall,WC72-452,30/09/2016,Childrens,REDACTED,12/09/2016,"1,620.64",74006-HOLIDAY/CHRISTMAS ALLOWANCE-FOSTER CARERS-OTH AGENCY PROVISION,INTERNAL FOSTER CARE PROVISION,Third Party Payments,Revenue
Walsall Council,http://opendatacommunities.org/id/metropolitan-district-council/walsall,WC72-453,30/09/2016,Economy & Environment,BRENNTAG UK LIMITED,05/09/2016,364.50,60503-CHEMICALS & SCIENTIFIC MATS-MATERIALS,BLOXWICH LEISURE CENTRE,Supplies & Services,Revenue
Walsall Council,http://opendatacommunities.org/id/metropolitan-district-council/walsall,WC72-454,30/09/2016,Economy & Environment,BRENNTAG UK LIMITED,05/09/2016,364.50,60503-CHEMICALS & SCIENTIFIC MATS-MATERIALS,OAK PARK,Supplies & Services,Revenue
Walsall Council,http://opendatacommunities.org/id/metropolitan-district-council/walsall,WC72-455,30/09/2016,Economy & Environment,BRENNTAG UK LIMITED,26/09/2016,364.50,60503-CHEMICALS & SCIENTIFIC MATS-MATERIALS,OAK PARK,Supplies & Services,Revenue
Walsall Council,http://opendatacommunities.org/id/metropolitan-district-council/walsall,WC72-456,30/09/2016,Economy & Environment,BRENNTAG UK LIMITED,09/09/2016,711.12,50301-FUEL-TRANSPORT RUN COSTS,FUEL STOCK ACCOUNT,Transport,Revenue
Walsall Council,http://opendatacommunities.org/id/metropolitan-district-council/walsall,WC72-457,30/09/2016,Change and Governance,BREWOOD RINGERS,23/09/2016,624.25,62515-MISCELLANEOUS SUPPLIES,AREA 2 - ALDRIDGE/STREETLY/PHEASEY,Supplies & Services,Revenue
Walsall Council,http://opendatacommunities.org/id/metropolitan-district-council/walsall,WC72-458,30/09/2016,Social Care & Inclusion,REDACTED,01/09/2016,"1,337.64",73374-SUPPORTED & OTHER ACCOMMODATION,LD COMMISSIONING,Third Party Payments,Revenue
Walsall Council,http://opendatacommunities.org/id/metropolitan-district-council/walsall,WC72-459,30/09/2016,Social Care & Inclusion,REDACTED,28/09/2016,"1,337.64",73374-SUPPORTED & OTHER ACCOMMODATION,LD COMMISSIONING,Third Party Payments,Revenue
Walsall Council,http://opendatacommunities.org/id/metropolitan-district-council/walsall,WC72-460,30/09/2016,Social Care & Inclusion,REDACTED,01/09/2016,"1,597.60",73374-SUPPORTED & OTHER ACCOMMODATION,LD COMMISSIONING,Third Party Payments,Revenue
Walsall Council,http://opendatacommunities.org/id/metropolitan-district-council/walsall,WC72-461,30/09/2016,Social Care & Inclusion,REDACTED,28/09/2016,"1,597.60",73374-SUPPORTED & OTHER ACCOMMODATION,LD COMMISSIONING,Third Party Payments,Revenue
Walsall Council,http://opendatacommunities.org/id/metropolitan-district-council/walsall,WC72-462,30/09/2016,Social Care & Inclusion,REDACTED,12/09/2016,"2,158.00",76422-DIRECT PAYMENTS TO SOCIAL SERVICES CLIENTS,OP COMMISSIONING,Transfer Payments,Revenue
Walsall Council,http://opendatacommunities.org/id/metropolitan-district-council/walsall,WC72-463,30/09/2016,Social Care & Inclusion,REDACTED,12/09/2016,922.50,76422-DIRECT PAYMENTS TO SOCIAL SERVICES CLIENTS,OP COMMISSIONING,Transfer Payments,Revenue
Walsall Council,http://opendatacommunities.org/id/metropolitan-district-council/walsall,WC72-464,30/09/2016,Social Care & Inclusion,BRIDGEWOOD HEALTH CARE LTD,13/09/2016,"5,513.72",73373-RESIDENTIAL & NURSING CARE PLACEMENTS,YADS COMMISSIONING,Third Party Payments,Revenue
Walsall Council,http://opendatacommunities.org/id/metropolitan-district-council/walsall,WC72-465,30/09/2016,Social Care & Inclusion,BRIDGEWOOD HEALTH CARE LTD,13/09/2016,"5,513.72",73373-RESIDENTIAL & NURSING CARE PLACEMENTS,YADS COMMISSIONING,Third Party Payments,Revenue
Walsall Council,http://opendatacommunities.org/id/metropolitan-district-council/walsall,WC72-466,30/09/2016,Childrens,BRIGHT HORIZONS (WISHING WILLOW),12/09/2016,"1,099.63",63120-CRECHE FACILITIES-SERVICES-FEES,FAMILY PLACEMENTS,Supplies & Services,Revenue
Walsall Council,http://opendatacommunities.org/id/metropolitan-district-council/walsall,WC72-467,30/09/2016,Change and Governance,BRISTOW & SUTOR,19/09/2016,238.44,73014-LEGAL FEES-PRIV CONTRACTOR FEES,REVENUES,Third Party Payments,Revenue
Walsall Council,http://opendatacommunities.org/id/metropolitan-district-council/walsall,WC72-468,30/09/2016,Change and Governance,BRISTOW & SUTOR,19/09/2016,313.35,73014-LEGAL FEES-PRIV CONTRACTOR FEES,REVENUES,Third Party Payments,Revenue
Walsall Council,http://opendatacommunities.org/id/metropolitan-district-council/walsall,WC72-469,30/09/2016,Change and Governance,BRITISH GAS BUSINESS,13/09/2016,"-3,158.71",42000-GAS-ENERGY COSTS,CENTRALISED ENERGY,Premises,Revenue
Walsall Council,http://opendatacommunities.org/id/metropolitan-district-council/walsall,WC72-470,30/09/2016,Change and Governance,BRITISH GAS BUSINESS,13/09/2016,"-2,943.38",42000-GAS-ENERGY COSTS,CENTRALISED ENERGY,Premises,Revenue
Walsall Council,http://opendatacommunities.org/id/metropolitan-district-council/walsall,WC72-471,30/09/2016,Change and Governance,BRITISH GAS BUSINESS,13/09/2016,"-2,628.53",42000-GAS-ENERGY COSTS,CENTRALISED ENERGY,Premises,Revenue
Walsall Council,http://opendatacommunities.org/id/metropolitan-district-council/walsall,WC72-472,30/09/2016,Change and Governance,BRITISH GAS BUSINESS,13/09/2016,"-1,269.66",42000-GAS-ENERGY COSTS,CENTRAL OFFICE ACCOMMODATION,Premises,Revenue
Walsall Council,http://opendatacommunities.org/id/metropolitan-district-council/walsall,WC72-473,30/09/2016,Change and Governance,BRITISH GAS BUSINESS,13/09/2016,-897.63,42000-GAS-ENERGY COSTS,CENTRALISED ENERGY,Premises,Revenue
Walsall Council,http://opendatacommunities.org/id/metropolitan-district-council/walsall,WC72-474,30/09/2016,Change and Governance,BRITISH GAS BUSINESS,13/09/2016,-266.30,42000-GAS-ENERGY COSTS,CENTRALISED ENERGY,Premises,Revenue
Walsall Council,http://opendatacommunities.org/id/metropolitan-district-council/walsall,WC72-475,30/09/2016,Change and Governance,BRITISH GAS BUSINESS,13/09/2016,-251.69,42000-GAS-ENERGY COSTS,CENTRALISED ENERGY,Premises,Revenue
Walsall Council,http://opendatacommunities.org/id/metropolitan-district-council/walsall,WC72-476,30/09/2016,Change and Governance,BRITISH GAS BUSINESS,13/09/2016,-245.46,42000-GAS-ENERGY COSTS,CENTRALISED ENERGY,Premises,Revenue
Walsall Council,http://opendatacommunities.org/id/metropolitan-district-council/walsall,WC72-477,30/09/2016,Change and Governance,BRITISH GAS BUSINESS,13/09/2016,211.40,42000-GAS-ENERGY COSTS,CENTRALISED ENERGY,Premises,Revenue
Walsall Council,http://opendatacommunities.org/id/metropolitan-district-council/walsall,WC72-478,30/09/2016,Change and Governance,BRITISH GAS BUSINESS,02/09/2016,214.88,42000-GAS-ENERGY COSTS,CENTRALISED ENERGY,Premises,Revenue
Walsall Council,http://opendatacommunities.org/id/metropolitan-district-council/walsall,WC72-479,30/09/2016,Change and Governance,BRITISH GAS BUSINESS,13/09/2016,217.88,42000-GAS-ENERGY COSTS,CENTRALISED ENERGY,Premises,Revenue
Walsall Council,http://opendatacommunities.org/id/metropolitan-district-council/walsall,WC72-480,30/09/2016,Change and Governance,BRITISH GAS BUSINESS,13/09/2016,228.45,42000-GAS-ENERGY COSTS,CHALLENGE BUILDING,Premises,Revenue
Walsall Council,http://opendatacommunities.org/id/metropolitan-district-council/walsall,WC72-481,30/09/2016,Change and Governance,BRITISH GAS BUSINESS,13/09/2016,231.68,42000-GAS-ENERGY COSTS,CENTRALISED ENERGY,Premises,Revenue
Walsall Council,http://opendatacommunities.org/id/metropolitan-district-council/walsall,WC72-482,30/09/2016,Change and Governance,BRITISH GAS BUSINESS,02/09/2016,239.73,42000-GAS-ENERGY COSTS,CENTRALISED ENERGY,Premises,Revenue
Walsall Council,http://opendatacommunities.org/id/metropolitan-district-council/walsall,WC72-483,30/09/2016,Change and Governance,BRITISH GAS BUSINESS,13/09/2016,246.28,42000-GAS-ENERGY COSTS,RECHARGEABLE UTILITIES,Premises,Revenue
Walsall Council,http://opendatacommunities.org/id/metropolitan-district-council/walsall,WC72-484,30/09/2016,Childrens,BRITISH GAS BUSINESS,05/09/2016,251.69,42000-GAS-ENERGY COSTS,LOCALITY FAMILY SUPPORT-WEST,Premises,Revenue
Walsall Council,http://opendatacommunities.org/id/metropolitan-district-council/walsall,WC72-485,30/09/2016,Change and Governance,BRITISH GAS BUSINESS,02/09/2016,287.57,42000-GAS-ENERGY COSTS,RECHARGEABLE UTILITIES,Premises,Revenue
Walsall Council,http://opendatacommunities.org/id/metropolitan-district-council/walsall,WC72-486,30/09/2016,Change and Governance,BRITISH GAS BUSINESS,02/09/2016,290.55,42000-GAS-ENERGY COSTS,CENTRALISED ENERGY,Premises,Revenue
Walsall Council,http://opendatacommunities.org/id/metropolitan-district-council/walsall,WC72-487,30/09/2016,Change and Governance,BRITISH GAS BUSINESS,02/09/2016,295.77,42000-GAS-ENERGY COSTS,RECHARGEABLE UTILITIES,Premises,Revenue
Walsall Council,http://opendatacommunities.org/id/metropolitan-district-council/walsall,WC72-488,30/09/2016,Change and Governance,BRITISH GAS BUSINESS,13/09/2016,309.20,42000-GAS-ENERGY COSTS,CENTRALISED ENERGY,Premises,Revenue
Walsall Council,http://opendatacommunities.org/id/metropolitan-district-council/walsall,WC72-489,30/09/2016,Change and Governance,BRITISH GAS BUSINESS,13/09/2016,334.55,42000-GAS-ENERGY COSTS,DARLASTON TOWN HALL,Premises,Revenue
Walsall Council,http://opendatacommunities.org/id/metropolitan-district-council/walsall,WC72-490,30/09/2016,Change and Governance,BRITISH GAS BUSINESS,13/09/2016,342.30,42000-GAS-ENERGY COSTS,RECHARGEABLE UTILITIES,Premises,Revenue
Walsall Council,http://opendatacommunities.org/id/metropolitan-district-council/walsall,WC72-491,30/09/2016,Change and Governance,BRITISH GAS BUSINESS,02/09/2016,361.55,42000-GAS-ENERGY COSTS,DARLASTON TOWN HALL,Premises,Revenue
Walsall Council,http://opendatacommunities.org/id/metropolitan-district-council/walsall,WC72-492,30/09/2016,Change and Governance,BRITISH GAS BUSINESS,02/09/2016,457.57,42000-GAS-ENERGY COSTS,CENTRALISED ENERGY,Premises,Revenue
Walsall Council,http://opendatacommunities.org/id/metropolitan-district-council/walsall,WC72-493,30/09/2016,Change and Governance,BRITISH GAS BUSINESS,13/09/2016,462.91,42000-GAS-ENERGY COSTS,CENTRALISED ENERGY,Premises,Revenue
Walsall Council,http://opendatacommunities.org/id/metropolitan-district-council/walsall,WC72-494,30/09/2016,Change and Governance,BRITISH GAS BUSINESS,02/09/2016,501.58,42000-GAS-ENERGY COSTS,CENTRALISED ENERGY,Premises,Revenue
Walsall Council,http://opendatacommunities.org/id/metropolitan-district-council/walsall,WC72-495,30/09/2016,Change and Governance,BRITISH GAS BUSINESS,13/09/2016,581.01,42000-GAS-ENERGY COSTS,CHALLENGE BUILDING,Premises,Revenue
Walsall Council,http://opendatacommunities.org/id/metropolitan-district-council/walsall,WC72-496,30/09/2016,Change and Governance,BRITISH GAS BUSINESS,13/09/2016,592.72,42000-GAS-ENERGY COSTS,CENTRALISED ENERGY,Premises,Revenue
Walsall Council,http://opendatacommunities.org/id/metropolitan-district-council/walsall,WC72-497,30/09/2016,Change and Governance,BRITISH GAS BUSINESS,02/09/2016,661.31,42000-GAS-ENERGY COSTS,CENTRALISED ENERGY,Premises,Revenue
Walsall Council,http://opendatacommunities.org/id/metropolitan-district-council/walsall,WC72-498,30/09/2016,Change and Governance,BRITISH GAS BUSINESS,02/09/2016,704.95,42000-GAS-ENERGY COSTS,CENTRALISED ENERGY,Premises,Revenue
Walsall Council,http://opendatacommunities.org/id/metropolitan-district-council/walsall,WC72-499,30/09/2016,Change and Governance,BRITISH GAS BUSINESS,13/09/2016,748.05,42000-GAS-ENERGY COSTS,CENTRALISED ENERGY,Premises,Revenue
Walsall Council,http://opendatacommunities.org/id/metropolitan-district-council/walsall,WC72-500,30/09/2016,Change and Governance,BRITISH GAS BUSINESS,13/09/2016,772.98,42000-GAS-ENERGY COSTS,CENTRALISED ENERGY,Premises,Revenue
Walsall Council,http://opendatacommunities.org/id/metropolitan-district-council/walsall,WC72-501,30/09/2016,Change and Governance,BRITISH GAS BUSINESS,13/09/2016,849.23,42000-GAS-ENERGY COSTS,CENTRALISED ENERGY,Premises,Revenue
Walsall Council,http://opendatacommunities.org/id/metropolitan-district-council/walsall,WC72-502,30/09/2016,Change and Governance,BRITISH GAS BUSINESS,02/09/2016,897.63,42000-GAS-ENERGY COSTS,CENTRALISED ENERGY,Premises,Revenue
Walsall Council,http://opendatacommunities.org/id/metropolitan-district-council/walsall,WC72-503,30/09/2016,Change and Governance,BRITISH GAS BUSINESS,13/09/2016,983.56,42000-GAS-ENERGY COSTS,CENTRAL OFFICE ACCOMMODATION,Premises,Revenue
Walsall Council,http://opendatacommunities.org/id/metropolitan-district-council/walsall,WC72-504,30/09/2016,Change and Governance,BRITISH GAS BUSINESS,13/09/2016,"1,003.06",42000-GAS-ENERGY COSTS,CENTRAL OFFICE ACCOMMODATION,Premises,Revenue
Walsall Council,http://opendatacommunities.org/id/metropolitan-district-council/walsall,WC72-505,30/09/2016,Change and Governance,BRITISH GAS BUSINESS,13/09/2016,"1,223.98",42000-GAS-ENERGY COSTS,CENTRALISED ENERGY,Premises,Revenue
Walsall Council,http://opendatacommunities.org/id/metropolitan-district-council/walsall,WC72-506,30/09/2016,Change and Governance,BRITISH GAS BUSINESS,13/09/2016,"1,225.22",42000-GAS-ENERGY COSTS,CENTRALISED ENERGY,Premises,Revenue
Walsall Council,http://opendatacommunities.org/id/metropolitan-district-council/walsall,WC72-507,30/09/2016,Change and Governance,BRITISH GAS BUSINESS,13/09/2016,"1,238.13",42000-GAS-ENERGY COSTS,CENTRALISED ENERGY,Premises,Revenue
Walsall Council,http://opendatacommunities.org/id/metropolitan-district-council/walsall,WC72-508,30/09/2016,Change and Governance,BRITISH GAS BUSINESS,02/09/2016,"1,269.66",42000-GAS-ENERGY COSTS,CENTRAL OFFICE ACCOMMODATION,Premises,Revenue
Walsall Council,http://opendatacommunities.org/id/metropolitan-district-council/walsall,WC72-509,30/09/2016,Change and Governance,BRITISH GAS BUSINESS,13/09/2016,"1,933.68",42000-GAS-ENERGY COSTS,CENTRALISED ENERGY,Premises,Revenue
Walsall Council,http://opendatacommunities.org/id/metropolitan-district-council/walsall,WC72-510,30/09/2016,Change and Governance,BRITISH GAS BUSINESS,02/09/2016,"2,628.53",42000-GAS-ENERGY COSTS,CENTRALISED ENERGY,Premises,Revenue
Walsall Council,http://opendatacommunities.org/id/metropolitan-district-council/walsall,WC72-511,30/09/2016,Change and Governance,BRITISH GAS BUSINESS,13/09/2016,"2,696.11",42000-GAS-ENERGY COSTS,CENTRALISED ENERGY,Premises,Revenue
Walsall Council,http://opendatacommunities.org/id/metropolitan-district-council/walsall,WC72-512,30/09/2016,Change and Governance,BRITISH GAS BUSINESS,02/09/2016,"2,725.30",42000-GAS-ENERGY COSTS,CENTRALISED ENERGY,Premises,Revenue
Walsall Council,http://opendatacommunities.org/id/metropolitan-district-council/walsall,WC72-513,30/09/2016,Change and Governance,BRITISH GAS BUSINESS,13/09/2016,"2,848.66",42000-GAS-ENERGY COSTS,CENTRALISED ENERGY,Premises,Revenue
Walsall Council,http://opendatacommunities.org/id/metropolitan-district-council/walsall,WC72-514,30/09/2016,Change and Governance,BRITISH GAS BUSINESS,02/09/2016,"2,943.38",42000-GAS-ENERGY COSTS,CENTRALISED ENERGY,Premises,Revenue
Walsall Council,http://opendatacommunities.org/id/metropolitan-district-council/walsall,WC72-515,30/09/2016,Change and Governance,BRITISH GAS BUSINESS,13/09/2016,"3,100.38",42000-GAS-ENERGY COSTS,RECHARGEABLE UTILITIES,Premises,Revenue
Walsall Council,http://opendatacommunities.org/id/metropolitan-district-council/walsall,WC72-516,30/09/2016,Change and Governance,BRITISH GAS BUSINESS,02/09/2016,"3,123.41",42000-GAS-ENERGY COSTS,RECHARGEABLE UTILITIES,Premises,Revenue
Walsall Council,http://opendatacommunities.org/id/metropolitan-district-council/walsall,WC72-517,30/09/2016,Change and Governance,BRITISH GAS BUSINESS,13/09/2016,"3,606.92",42000-GAS-ENERGY COSTS,CENTRALISED ENERGY,Premises,Revenue
Walsall Council,http://opendatacommunities.org/id/metropolitan-district-council/walsall,WC72-518,30/09/2016,Change and Governance,BRITISH GAS BUSINESS,13/09/2016,"4,258.68",42000-GAS-ENERGY COSTS,CENTRALISED ENERGY,Premises,Revenue
Walsall Council,http://opendatacommunities.org/id/metropolitan-district-council/walsall,WC72-519,30/09/2016,Change and Governance,BRITISH GAS BUSINESS,02/09/2016,"4,623.38",42000-GAS-ENERGY COSTS,CENTRALISED ENERGY,Premises,Revenue
Walsall Council,http://opendatacommunities.org/id/metropolitan-district-council/walsall,WC72-520,30/09/2016,Change and Governance,BRITISH GAS BUSINESS,02/09/2016,"5,018.93",42000-GAS-ENERGY COSTS,CENTRALISED ENERGY,Premises,Revenue
Walsall Council,http://opendatacommunities.org/id/metropolitan-district-council/walsall,WC72-521,30/09/2016,Change and Governance,BRITISH GAS BUSINESS,01/09/2016,"21,299.26",42000-GAS-ENERGY COSTS,CENTRALISED ENERGY,Premises,Revenue
Walsall Council,http://opendatacommunities.org/id/metropolitan-district-council/walsall,WC72-522,30/09/2016,Economy & Environment,BROADWAY PHARMACY,07/09/2016,106.20,63000-PROFESSIONAL FEES AND SERVICES,SEXUAL HEALTH,Supplies & Services,Revenue
Walsall Council,http://opendatacommunities.org/id/metropolitan-district-council/walsall,WC72-523,30/09/2016,Economy & Environment,BROADWAY PHARMACY,07/09/2016,567.54,71007-CONTRIBUTION TO PCT,PUBLIC HEALTH BUSINESS SUPPORT,Third Party Payments,Revenue
Walsall Council,http://opendatacommunities.org/id/metropolitan-district-council/walsall,WC72-524,30/09/2016,Economy & Environment,BROWNHILLS ASPHALT & TARMAC LIMITED,28/09/2016,300.00,63239-EXTERNAL WORKS-PAYMENT TO CONTRACTOR,COMMUNITY LIAISON,Third Party Payments,Revenue
Walsall Council,http://opendatacommunities.org/id/metropolitan-district-council/walsall,WC72-525,30/09/2016,Economy & Environment,BROWNHILLS ASPHALT & TARMAC LIMITED,28/09/2016,500.00,60500-GENERAL MATERIALS,INFRASTRUCTURE MAINTENANCE,Supplies & Services,Revenue
Walsall Council,http://opendatacommunities.org/id/metropolitan-district-council/walsall,WC72-526,30/09/2016,Economy & Environment,BROWNHILLS ASPHALT & TARMAC LIMITED,12/09/2016,520.00,60500-GENERAL MATERIALS,CEMETERIES CENTRAL ADMINISTRATION,Supplies & Services,Revenue
Walsall Council,http://opendatacommunities.org/id/metropolitan-district-council/walsall,WC72-527,30/09/2016,Economy & Environment,BROWNHILLS ASPHALT & TARMAC LIMITED,28/09/2016,"1,405.00",60500-GENERAL MATERIALS,DEPOT,Supplies & Services,Revenue
Walsall Council,http://opendatacommunities.org/id/metropolitan-district-council/walsall,WC72-528,30/09/2016,Economy & Environment,BROWNHILLS ASPHALT & TARMAC LIMITED,28/09/2016,"1,755.00",60500-GENERAL MATERIALS,INFRASTRUCTURE MAINTENANCE,Supplies & Services,Revenue
Walsall Council,http://opendatacommunities.org/id/metropolitan-district-council/walsall,WC72-529,30/09/2016,Economy & Environment,BROWNHILLS ASPHALT & TARMAC LIMITED,28/09/2016,"2,661.00",60500-GENERAL MATERIALS,INFRASTRUCTURE MAINTENANCE,Supplies & Services,Revenue
Walsall Council,http://opendatacommunities.org/id/metropolitan-district-council/walsall,WC72-530,30/09/2016,Economy & Environment,BROWNHILLS ASPHALT & TARMAC LIMITED,28/09/2016,"3,420.00",60500-GENERAL MATERIALS,INFRASTRUCTURE MAINTENANCE,Supplies & Services,Revenue
Walsall Council,http://opendatacommunities.org/id/metropolitan-district-council/walsall,WC72-531,30/09/2016,Change and Governance,BROWNHILLS COMMUNITY ASSOCIATION,01/09/2016,"7,000.00",66500-GRANTS TO OTHER ORGS,BROWNHILLS COMMUNITY ASSOCIATION,Third Party Payments,Revenue
Walsall Council,http://opendatacommunities.org/id/metropolitan-district-council/walsall,WC72-532,30/09/2016,Economy & Environment,BROXAP LTD,12/09/2016,956.00,60500-GENERAL MATERIALS,SECTION 106,Supplies & Services,Revenue
Walsall Council,http://opendatacommunities.org/id/metropolitan-district-council/walsall,WC72-533,30/09/2016,Social Care & Inclusion,REDACTED,12/09/2016,"1,912.50",76422-DIRECT PAYMENTS TO SOCIAL SERVICES CLIENTS,LD COMMISSIONING,Transfer Payments,Revenue
Walsall Council,http://opendatacommunities.org/id/metropolitan-district-council/walsall,WC72-534,30/09/2016,Change and Governance,REDACTED,12/09/2016,300.00,"40000-REPAIRS,ALTERATIONS & MAINTENANCE-PREM",CENTRALISED MAINTENANCE,Premises,Revenue
Walsall Council,http://opendatacommunities.org/id/metropolitan-district-council/walsall,WC72-535,30/09/2016,Economy & Environment,REDACTED,27/09/2016,600.00,63000-PROFESSIONAL FEES AND SERVICES,NAG - TEMPORARY EXHIBITIONS,Supplies & Services,Revenue
Walsall Council,http://opendatacommunities.org/id/metropolitan-district-council/walsall,WC72-536,30/09/2016,Economy & Environment,REDACTED,08/09/2016,"2,081.25",63000-PROFESSIONAL FEES AND SERVICES,EXTL FUNDED CREATIVE PROJECT MANAGEMENT,Supplies & Services,Revenue
Walsall Council,http://opendatacommunities.org/id/metropolitan-district-council/walsall,WC72-537,30/09/2016,Childrens,BRYN MELYN CARE LTD,19/09/2016,"6,702.86",74036-EXTERNAL RESIDENTIAL CARE-OTH AGENCY PROVISION,INDEPENDENT RESIDENTIAL HOMES,Third Party Payments,Revenue
Walsall Council,http://opendatacommunities.org/id/metropolitan-district-council/walsall,WC72-538,30/09/2016,Childrens,BRYN MELYN CARE LTD,20/09/2016,"20,108.57",74036-EXTERNAL RESIDENTIAL CARE-OTH AGENCY PROVISION,INDEPENDENT RESIDENTIAL HOMES,Third Party Payments,Revenue
Walsall Council,http://opendatacommunities.org/id/metropolitan-district-council/walsall,WC72-539,30/09/2016,Childrens,BRYN MELYN CARE LTD,19/09/2016,"20,778.86",74036-EXTERNAL RESIDENTIAL CARE-OTH AGENCY PROVISION,INDEPENDENT RESIDENTIAL HOMES,Third Party Payments,Revenue
Walsall Council,http://opendatacommunities.org/id/metropolitan-district-council/walsall,WC72-540,30/09/2016,Change and Governance,BT,01/09/2016,803.06,63603-COST OF CALLS-TELEPHONES,PROCESSING,Supplies & Services,Revenue
Walsall Council,http://opendatacommunities.org/id/metropolitan-district-council/walsall,WC72-541,30/09/2016,Change and Governance,BT,12/09/2016,"2,322.53",63601-COSTS (NOT INTERNAL RECHARGES)-TELEPHONES,CENTRAL COMMUNICATIONS RECHARGES,Supplies & Services,Revenue
Walsall Council,http://opendatacommunities.org/id/metropolitan-district-council/walsall,WC72-542,30/09/2016,Childrens,BT PLC,14/09/2016,264.56,63606-TELEPHONES PAGERS-TELEPHONES,BLOXWICH CHILDCARE SERVICE,Supplies & Services,Revenue
Walsall Council,http://opendatacommunities.org/id/metropolitan-district-council/walsall,WC72-543,30/09/2016,Childrens,BT PLC,26/09/2016,308.62,63602-COST OF RENTAL-TELEPHONES,EDUCATION BUSINESS PARTNERSHIP (EBP),Supplies & Services,Revenue
Walsall Council,http://opendatacommunities.org/id/metropolitan-district-council/walsall,WC72-544,30/09/2016,Childrens,BT PLC,05/09/2016,351.08,63603-COST OF CALLS-TELEPHONES,LOCALITY FAMILY SUPPORT-WEST,Supplies & Services,Revenue
Walsall Council,http://opendatacommunities.org/id/metropolitan-district-council/walsall,WC72-545,30/09/2016,Change and Governance,BT PLC,19/09/2016,"2,028.03",63807-COMMS LINKS-COMPUTER,SIT-INFRASTRUCTURE,Supplies & Services,Revenue
Walsall Council,http://opendatacommunities.org/id/metropolitan-district-council/walsall,WC72-546,30/09/2016,Change and Governance,BT PLC,14/09/2016,"14,563.15",63601-COSTS (NOT INTERNAL RECHARGES)-TELEPHONES,CENTRAL COMMUNICATIONS RECHARGES,Supplies & Services,Revenue
Walsall Council,http://opendatacommunities.org/id/metropolitan-district-council/walsall,WC72-547,30/09/2016,Economy & Environment,BUILDING SOFTWARE LTD,16/09/2016,"2,500.00",63102-CONSULTANTS FEES - CORPORATE,CONDITION SURVEYS,Supplies & Services,Revenue
Walsall Council,http://opendatacommunities.org/id/metropolitan-district-council/walsall,WC72-548,30/09/2016,Social Care & Inclusion,BUPA CARE HOMES (CFHCARE) LTD,13/09/2016,"1,882.36",73373-RESIDENTIAL & NURSING CARE PLACEMENTS,OP COMMISSIONING,Third Party Payments,Revenue
Walsall Council,http://opendatacommunities.org/id/metropolitan-district-council/walsall,WC72-549,30/09/2016,Social Care & Inclusion,BUPA CARE HOMES (CFHCARE) LTD,13/09/2016,"2,001.24",73373-RESIDENTIAL & NURSING CARE PLACEMENTS,OP COMMISSIONING,Third Party Payments,Revenue
Walsall Council,http://opendatacommunities.org/id/metropolitan-district-council/walsall,WC72-550,30/09/2016,Social Care & Inclusion,BUPA CARE HOMES (CFHCARE) LTD,13/09/2016,"3,129.80",73373-RESIDENTIAL & NURSING CARE PLACEMENTS,OP COMMISSIONING,Third Party Payments,Revenue
Walsall Council,http://opendatacommunities.org/id/metropolitan-district-council/walsall,WC72-551,30/09/2016,Social Care & Inclusion,BUPA CARE HOMES (CFHCARE) LTD,13/09/2016,"3,129.80",73373-RESIDENTIAL & NURSING CARE PLACEMENTS,OP COMMISSIONING,Third Party Payments,Revenue
Walsall Council,http://opendatacommunities.org/id/metropolitan-district-council/walsall,WC72-552,30/09/2016,Social Care & Inclusion,BUPA CARE HOMES (CFHCARE) LTD,13/09/2016,"4,757.40",73373-RESIDENTIAL & NURSING CARE PLACEMENTS,OP COMMISSIONING,Third Party Payments,Revenue
Walsall Council,http://opendatacommunities.org/id/metropolitan-district-council/walsall,WC72-553,30/09/2016,Economy & Environment,BURTON ADDICTION CENTRE,02/09/2016,"1,350.00",63000-PROFESSIONAL FEES AND SERVICES,ALCOHOL & DRUGS MISUSE/TOBACCO CONTROL,Supplies & Services,Revenue
Walsall Council,http://opendatacommunities.org/id/metropolitan-district-council/walsall,WC72-554,30/09/2016,Childrens,BY THE BRIDGE,19/09/2016,"-4,344.21",74037-INDEPENDENT FOSTER CARE-OTH AGENCY PROVISION,EXTERNAL FOSTER CARE PROVISION,Third Party Payments,Revenue
Walsall Council,http://opendatacommunities.org/id/metropolitan-district-council/walsall,WC72-555,30/09/2016,Childrens,BY THE BRIDGE,19/09/2016,"3,049.50",74037-INDEPENDENT FOSTER CARE-OTH AGENCY PROVISION,EXTERNAL FOSTER CARE PROVISION,Third Party Payments,Revenue
Walsall Council,http://opendatacommunities.org/id/metropolitan-district-council/walsall,WC72-556,30/09/2016,Childrens,BY THE BRIDGE,19/09/2016,"3,129.00",74037-INDEPENDENT FOSTER CARE-OTH AGENCY PROVISION,EXTERNAL FOSTER CARE PROVISION,Third Party Payments,Revenue
Walsall Council,http://opendatacommunities.org/id/metropolitan-district-council/walsall,WC72-557,30/09/2016,Childrens,BY THE BRIDGE,19/09/2016,"3,192.86",74037-INDEPENDENT FOSTER CARE-OTH AGENCY PROVISION,EXTERNAL FOSTER CARE PROVISION,Third Party Payments,Revenue
Walsall Council,http://opendatacommunities.org/id/metropolitan-district-council/walsall,WC72-558,30/09/2016,Childrens,BY THE BRIDGE,19/09/2016,"3,253.20",74037-INDEPENDENT FOSTER CARE-OTH AGENCY PROVISION,EXTERNAL FOSTER CARE PROVISION,Third Party Payments,Revenue
Walsall Council,http://opendatacommunities.org/id/metropolitan-district-council/walsall,WC72-559,30/09/2016,Childrens,BY THE BRIDGE,19/09/2016,"3,299.29",74037-INDEPENDENT FOSTER CARE-OTH AGENCY PROVISION,EXTERNAL FOSTER CARE PROVISION,Third Party Payments,Revenue
Walsall Council,http://opendatacommunities.org/id/metropolitan-district-council/walsall,WC72-560,30/09/2016,Childrens,BY THE BRIDGE,19/09/2016,"4,789.29",74037-INDEPENDENT FOSTER CARE-OTH AGENCY PROVISION,EXTERNAL FOSTER CARE PROVISION,Third Party Payments,Revenue
Walsall Council,http://opendatacommunities.org/id/metropolitan-district-council/walsall,WC72-561,30/09/2016,Childrens,BY THE BRIDGE,19/09/2016,"6,121.39",74037-INDEPENDENT FOSTER CARE-OTH AGENCY PROVISION,EXTERNAL FOSTER CARE PROVISION,Third Party Payments,Revenue
Walsall Council,http://opendatacommunities.org/id/metropolitan-district-council/walsall,WC72-562,30/09/2016,Social Care & Inclusion,C & V ORCHARD MANOR LTD,06/09/2016,"1,620.00",73373-RESIDENTIAL & NURSING CARE PLACEMENTS,OP COMMISSIONING,Third Party Payments,Revenue
Walsall Council,http://opendatacommunities.org/id/metropolitan-district-council/walsall,WC72-563,30/09/2016,Social Care & Inclusion,C & V ORCHARD MANOR LTD,06/09/2016,"1,620.00",73373-RESIDENTIAL & NURSING CARE PLACEMENTS,LD COMMISSIONING,Third Party Payments,Revenue
Walsall Council,http://opendatacommunities.org/id/metropolitan-district-council/walsall,WC72-564,30/09/2016,Social Care & Inclusion,C & V ORCHARD MANOR LTD,06/09/2016,"1,620.00",73373-RESIDENTIAL & NURSING CARE PLACEMENTS,OP COMMISSIONING,Third Party Payments,Revenue
Walsall Council,http://opendatacommunities.org/id/metropolitan-district-council/walsall,WC72-565,30/09/2016,Social Care & Inclusion,C & V ORCHARD MANOR LTD,06/09/2016,"1,620.00",73373-RESIDENTIAL & NURSING CARE PLACEMENTS,OP COMMISSIONING,Third Party Payments,Revenue
Walsall Council,http://opendatacommunities.org/id/metropolitan-district-council/walsall,WC72-566,30/09/2016,Social Care & Inclusion,C & V ORCHARD MANOR LTD,06/09/2016,"1,620.00",73373-RESIDENTIAL & NURSING CARE PLACEMENTS,MH COMMISSIONING,Third Party Payments,Revenue
Walsall Council,http://opendatacommunities.org/id/metropolitan-district-council/walsall,WC72-567,30/09/2016,Social Care & Inclusion,C & V ORCHARD MANOR LTD,06/09/2016,"1,620.00",73373-RESIDENTIAL & NURSING CARE PLACEMENTS,MH COMMISSIONING,Third Party Payments,Revenue
Walsall Council,http://opendatacommunities.org/id/metropolitan-district-council/walsall,WC72-568,30/09/2016,Social Care & Inclusion,C & V ORCHARD MANOR LTD,06/09/2016,"1,620.60",73373-RESIDENTIAL & NURSING CARE PLACEMENTS,OP COMMISSIONING,Third Party Payments,Revenue
Walsall Council,http://opendatacommunities.org/id/metropolitan-district-council/walsall,WC72-569,30/09/2016,Social Care & Inclusion,C & V ORCHARD MANOR LTD,06/09/2016,"1,800.00",73373-RESIDENTIAL & NURSING CARE PLACEMENTS,OP COMMISSIONING,Third Party Payments,Revenue
Walsall Council,http://opendatacommunities.org/id/metropolitan-district-council/walsall,WC72-570,30/09/2016,Social Care & Inclusion,C & V ORCHARD MANOR LTD,06/09/2016,"1,800.00",73373-RESIDENTIAL & NURSING CARE PLACEMENTS,OP COMMISSIONING,Third Party Payments,Revenue
Walsall Council,http://opendatacommunities.org/id/metropolitan-district-council/walsall,WC72-571,30/09/2016,Social Care & Inclusion,C & V ORCHARD MANOR LTD,06/09/2016,"1,800.00",73373-RESIDENTIAL & NURSING CARE PLACEMENTS,MH COMMISSIONING,Third Party Payments,Revenue
Walsall Council,http://opendatacommunities.org/id/metropolitan-district-council/walsall,WC72-572,30/09/2016,Social Care & Inclusion,C & V ORCHARD MANOR LTD,06/09/2016,"1,800.00",73373-RESIDENTIAL & NURSING CARE PLACEMENTS,MH COMMISSIONING,Third Party Payments,Revenue
Walsall Council,http://opendatacommunities.org/id/metropolitan-district-council/walsall,WC72-573,30/09/2016,Economy & Environment,C ART ART TRANSPORT LTD,23/09/2016,780.00,73032-TRANSPORTATION-PRIV CONTRACTOR FEES,NAG - TEMPORARY EXHIBITIONS,Third Party Payments,Revenue
Walsall Council,http://opendatacommunities.org/id/metropolitan-district-council/walsall,WC72-574,30/09/2016,Economy & Environment,C ART ART TRANSPORT LTD,23/09/2016,875.00,60500-GENERAL MATERIALS,NAG - TEMPORARY EXHIBITIONS,Supplies & Services,Revenue
Walsall Council,http://opendatacommunities.org/id/metropolitan-district-council/walsall,WC72-575,30/09/2016,Economy & Environment,C ART ART TRANSPORT LTD,23/09/2016,"2,598.00",73032-TRANSPORTATION-PRIV CONTRACTOR FEES,NAG - TEMPORARY EXHIBITIONS,Third Party Payments,Revenue
Walsall Council,http://opendatacommunities.org/id/metropolitan-district-council/walsall,WC72-576,30/09/2016,Childrens,REDACTED,12/09/2016,"4,467.09",62515-MISCELLANEOUS SUPPLIES,INTERNAL FOSTER CARE PROVISION,Supplies & Services,Revenue
Walsall Council,http://opendatacommunities.org/id/metropolitan-district-council/walsall,WC72-577,30/09/2016,Childrens,REDACTED,12/09/2016,"7,402.33",74006-HOLIDAY/CHRISTMAS ALLOWANCE-FOSTER CARERS-OTH AGENCY PROVISION,INTERNAL FOSTER CARE PROVISION,Third Party Payments,Revenue
Walsall Council,http://opendatacommunities.org/id/metropolitan-district-council/walsall,WC72-578,30/09/2016,Childrens,REDACTED,12/09/2016,"1,620.64",74006-HOLIDAY/CHRISTMAS ALLOWANCE-FOSTER CARERS-OTH AGENCY PROVISION,INTERNAL FOSTER CARE PROVISION,Third Party Payments,Revenue
Walsall Council,http://opendatacommunities.org/id/metropolitan-district-council/walsall,WC72-579,30/09/2016,Childrens,REDACTED,12/09/2016,"1,695.32",62515-MISCELLANEOUS SUPPLIES,INTERNAL FOSTER CARE PROVISION,Supplies & Services,Revenue
Walsall Council,http://opendatacommunities.org/id/metropolitan-district-council/walsall,WC72-580,30/09/2016,Economy & Environment,C P DAVIDSON & SONS LTD,08/09/2016,209.30,60514-MATERIALS TO STORES,FLEET PARTS STOCK ACCOUNT,Supplies & Services,Revenue
Walsall Council,http://opendatacommunities.org/id/metropolitan-district-council/walsall,WC72-581,30/09/2016,Economy & Environment,C P DAVIDSON & SONS LTD,27/09/2016,880.25,60514-MATERIALS TO STORES,FLEET PARTS STOCK ACCOUNT,Supplies & Services,Revenue
Walsall Council,http://opendatacommunities.org/id/metropolitan-district-council/walsall,WC72-582,30/09/2016,Economy & Environment,C P DAVIDSON & SONS LTD,08/09/2016,881.57,60514-MATERIALS TO STORES,FLEET PARTS STOCK ACCOUNT,Supplies & Services,Revenue
Walsall Council,http://opendatacommunities.org/id/metropolitan-district-council/walsall,WC72-583,30/09/2016,Childrens,REDACTED,26/09/2016,"1,222.36",74006-HOLIDAY/CHRISTMAS ALLOWANCE-FOSTER CARERS-OTH AGENCY PROVISION,INTERNAL FOSTER CARE PROVISION,Third Party Payments,Revenue
Walsall Council,http://opendatacommunities.org/id/metropolitan-district-council/walsall,WC72-584,30/09/2016,Social Care & Inclusion,CALDMORE AREA HOUSING ASS LTD,01/09/2016,329.84,73372-DOMICILIARY CARE,MH COMMISSIONING,Third Party Payments,Revenue
Walsall Council,http://opendatacommunities.org/id/metropolitan-district-council/walsall,WC72-585,30/09/2016,Social Care & Inclusion,CALDMORE AREA HOUSING ASS LTD,01/09/2016,598.20,73374-SUPPORTED & OTHER ACCOMMODATION,MH COMMISSIONING,Third Party Payments,Revenue
Walsall Council,http://opendatacommunities.org/id/metropolitan-district-council/walsall,WC72-586,30/09/2016,Social Care & Inclusion,CALDMORE AREA HOUSING ASS LTD,01/09/2016,906.72,73374-SUPPORTED & OTHER ACCOMMODATION,MH COMMISSIONING,Third Party Payments,Revenue
Walsall Council,http://opendatacommunities.org/id/metropolitan-district-council/walsall,WC72-587,30/09/2016,Social Care & Inclusion,CALDMORE AREA HOUSING ASS LTD,01/09/2016,"1,038.92",73374-SUPPORTED & OTHER ACCOMMODATION,MH COMMISSIONING,Third Party Payments,Revenue
Walsall Council,http://opendatacommunities.org/id/metropolitan-district-council/walsall,WC72-588,30/09/2016,Social Care & Inclusion,CALDMORE AREA HOUSING ASS LTD,01/09/2016,"1,095.60",73374-SUPPORTED & OTHER ACCOMMODATION,MH COMMISSIONING,Third Party Payments,Revenue
Walsall Council,http://opendatacommunities.org/id/metropolitan-district-council/walsall,WC72-589,30/09/2016,Social Care & Inclusion,CALDMORE AREA HOUSING ASS LTD,01/09/2016,"1,133.40",73374-SUPPORTED & OTHER ACCOMMODATION,MH COMMISSIONING,Third Party Payments,Revenue
Walsall Council,http://opendatacommunities.org/id/metropolitan-district-council/walsall,WC72-590,30/09/2016,Social Care & Inclusion,CALDMORE AREA HOUSING ASS LTD,01/09/2016,"1,322.28",73374-SUPPORTED & OTHER ACCOMMODATION,MH COMMISSIONING,Third Party Payments,Revenue
Walsall Council,http://opendatacommunities.org/id/metropolitan-district-council/walsall,WC72-591,30/09/2016,Social Care & Inclusion,CALDMORE AREA HOUSING ASS LTD,01/09/2016,"1,341.16",73374-SUPPORTED & OTHER ACCOMMODATION,MH COMMISSIONING,Third Party Payments,Revenue
Walsall Council,http://opendatacommunities.org/id/metropolitan-district-council/walsall,WC72-592,30/09/2016,Social Care & Inclusion,CALDMORE AREA HOUSING ASS LTD,01/09/2016,"1,473.40",73374-SUPPORTED & OTHER ACCOMMODATION,MH COMMISSIONING,Third Party Payments,Revenue
Walsall Council,http://opendatacommunities.org/id/metropolitan-district-council/walsall,WC72-593,30/09/2016,Childrens,CALL PRINT GROUP LIMITED,26/09/2016,335.00,69400-REFERENCE BOOKS,PARENTING TEAM,Supplies & Services,Revenue
Walsall Council,http://opendatacommunities.org/id/metropolitan-district-council/walsall,WC72-594,30/09/2016,Childrens,REDACTED,26/09/2016,372.84,74006-HOLIDAY/CHRISTMAS ALLOWANCE-FOSTER CARERS-OTH AGENCY PROVISION,INTERNAL FOSTER CARE PROVISION,Third Party Payments,Revenue
Walsall Council,http://opendatacommunities.org/id/metropolitan-district-council/walsall,WC72-595,30/09/2016,Childrens,REDACTED,12/09/2016,359.63,76422-DIRECT PAYMENTS TO SOCIAL SERVICES CLIENTS,FAMILY SUPPORT - DIRECT PAYMENTS,Transfer Payments,Revenue
Walsall Council,http://opendatacommunities.org/id/metropolitan-district-council/walsall,WC72-596,30/09/2016,Economy & Environment,CALOO LTD,14/09/2016,"3,250.00","40000-REPAIRS,ALTERATIONS & MAINTENANCE-PREM",SECTION 106,Premises,Revenue
Walsall Council,http://opendatacommunities.org/id/metropolitan-district-council/walsall,WC72-597,30/09/2016,Social Care & Inclusion,CAMBIAN LEARNING DISABILITES MIDLANDS LIMITED,21/09/2016,"3,060.00",73375-IN PATIENT BEDS,LD COMMISSIONING,Third Party Payments,Revenue
Walsall Council,http://opendatacommunities.org/id/metropolitan-district-council/walsall,WC72-598,30/09/2016,Social Care & Inclusion,CAMBIAN LEARNING DISABILITES MIDLANDS LIMITED,01/09/2016,"10,831.50",73375-IN PATIENT BEDS,BCPFT,Third Party Payments,Revenue
Walsall Council,http://opendatacommunities.org/id/metropolitan-district-council/walsall,WC72-599,30/09/2016,Childrens,CAMBIAN WHINFELL SCHOOLS LTD,28/09/2016,"19,290.78",66502-TOP UP FUNDING -GRANTS TO SCHOOLS,INDEPENDENT PROVIDERS - SPECIAL & AP,Third Party Payments,Revenue
Walsall Council,http://opendatacommunities.org/id/metropolitan-district-council/walsall,WC72-600,30/09/2016,Childrens,CAMBIAN WHINFELL SCHOOLS LTD,28/09/2016,"22,666.67",66502-TOP UP FUNDING -GRANTS TO SCHOOLS,INDEPENDENT PROVIDERS - SPECIAL & AP,Third Party Payments,Revenue
Walsall Council,http://opendatacommunities.org/id/metropolitan-district-council/walsall,WC72-601,30/09/2016,Childrens,CAMBIAN WHINFELL SCHOOLS LTD,28/09/2016,"26,508.77",66502-TOP UP FUNDING -GRANTS TO SCHOOLS,INDEPENDENT PROVIDERS - SPECIAL & AP,Third Party Payments,Revenue
Walsall Council,http://opendatacommunities.org/id/metropolitan-district-council/walsall,WC72-602,30/09/2016,Economy & Environment,CAMERA ONE LIMITED,26/09/2016,490.00,73025-PROFESSIONAL SERVICES-PRIV CONTRACTOR & OTHER AGENCIES,DEPOT,Third Party Payments,Revenue
Walsall Council,http://opendatacommunities.org/id/metropolitan-district-council/walsall,WC72-603,30/09/2016,Economy & Environment,CAMERA ONE LIMITED,26/09/2016,535.00,60500-GENERAL MATERIALS,DEPOT,Supplies & Services,Revenue
Walsall Council,http://opendatacommunities.org/id/metropolitan-district-council/walsall,WC72-604,30/09/2016,Social Care & Inclusion,REDACTED,12/09/2016,"4,500.00",76422-DIRECT PAYMENTS TO SOCIAL SERVICES CLIENTS,YADS COMMISSIONING,Transfer Payments,Revenue
Walsall Council,http://opendatacommunities.org/id/metropolitan-district-council/walsall,WC72-605,30/09/2016,Change and Governance,CAPITA BUSINESS SERVICES LTD 001,01/09/2016,-375.00,63800-COMPUTER EQUIPMENT AND SUPPLIES,APPLICATIONS,Supplies & Services,Revenue
Walsall Council,http://opendatacommunities.org/id/metropolitan-district-council/walsall,WC72-606,30/09/2016,Change and Governance,CAPITA BUSINESS SERVICES LTD T/A MICRO LIBRARIAN SYSTEMS,14/09/2016,375.00,63800-COMPUTER EQUIPMENT AND SUPPLIES,RECHARGEABLE EQUIPMENT,Supplies & Services,Revenue
Walsall Council,http://opendatacommunities.org/id/metropolitan-district-council/walsall,WC72-607,30/09/2016,Holding Accounts,CAPITA SPECIALIST INSURANCE SOLUTIONS,16/09/2016,"11,378.09",89012-TEACHERS SICKNESS SCHEME PREMIUM INSURANCE POLICY,PUBLIC LIABILITY,Supplies & Services,Revenue
Walsall Council,http://opendatacommunities.org/id/metropolitan-district-council/walsall,WC72-608,30/09/2016,Childrens,CAPSTONE FOSTER CARE (SOUTH EAST) LIMITED,02/09/2016,350.10,74037-INDEPENDENT FOSTER CARE-OTH AGENCY PROVISION,EXTERNAL FOSTER CARE PROVISION,Third Party Payments,Revenue
Walsall Council,http://opendatacommunities.org/id/metropolitan-district-council/walsall,WC72-609,30/09/2016,Childrens,CAPSTONE FOSTER CARE (SOUTH EAST) LIMITED,02/09/2016,361.77,74037-INDEPENDENT FOSTER CARE-OTH AGENCY PROVISION,EXTERNAL FOSTER CARE PROVISION,Third Party Payments,Revenue
Walsall Council,http://opendatacommunities.org/id/metropolitan-district-council/walsall,WC72-610,30/09/2016,Childrens,CAPSTONE FOSTER CARE (SOUTH EAST) LIMITED,02/09/2016,"1,551.92",74037-INDEPENDENT FOSTER CARE-OTH AGENCY PROVISION,EXTERNAL FOSTER CARE PROVISION,Third Party Payments,Revenue
Walsall Council,http://opendatacommunities.org/id/metropolitan-district-council/walsall,WC72-611,30/09/2016,Childrens,CAPSTONE FOSTER CARE (SOUTH EAST) LIMITED,12/09/2016,"2,300.31",74037-INDEPENDENT FOSTER CARE-OTH AGENCY PROVISION,EXTERNAL FOSTER CARE PROVISION,Third Party Payments,Revenue
Walsall Council,http://opendatacommunities.org/id/metropolitan-district-council/walsall,WC72-612,30/09/2016,Childrens,CAPSTONE FOSTER CARE (SOUTH EAST) LIMITED,07/09/2016,"2,451.36",74037-INDEPENDENT FOSTER CARE-OTH AGENCY PROVISION,EXTERNAL FOSTER CARE PROVISION,Third Party Payments,Revenue
Walsall Council,http://opendatacommunities.org/id/metropolitan-district-council/walsall,WC72-613,30/09/2016,Childrens,CAPSTONE FOSTER CARE (SOUTH EAST) LIMITED,02/09/2016,"2,681.27",74037-INDEPENDENT FOSTER CARE-OTH AGENCY PROVISION,EXTERNAL FOSTER CARE PROVISION,Third Party Payments,Revenue
Walsall Council,http://opendatacommunities.org/id/metropolitan-district-council/walsall,WC72-614,30/09/2016,Childrens,CAPSTONE FOSTER CARE (SOUTH EAST) LIMITED,06/09/2016,"2,681.27",74037-INDEPENDENT FOSTER CARE-OTH AGENCY PROVISION,EXTERNAL FOSTER CARE PROVISION,Third Party Payments,Revenue
Walsall Council,http://opendatacommunities.org/id/metropolitan-district-council/walsall,WC72-615,30/09/2016,Childrens,CAPSTONE FOSTER CARE (SOUTH EAST) LIMITED,02/09/2016,"2,770.65",74037-INDEPENDENT FOSTER CARE-OTH AGENCY PROVISION,EXTERNAL FOSTER CARE PROVISION,Third Party Payments,Revenue
Walsall Council,http://opendatacommunities.org/id/metropolitan-district-council/walsall,WC72-616,30/09/2016,Childrens,CAPSTONE FOSTER CARE (SOUTH EAST) LIMITED,02/09/2016,"2,770.65",74037-INDEPENDENT FOSTER CARE-OTH AGENCY PROVISION,EXTERNAL FOSTER CARE PROVISION,Third Party Payments,Revenue
Walsall Council,http://opendatacommunities.org/id/metropolitan-district-council/walsall,WC72-617,30/09/2016,Childrens,CAPSTONE FOSTER CARE (SOUTH EAST) LIMITED,02/09/2016,"2,931.47",74037-INDEPENDENT FOSTER CARE-OTH AGENCY PROVISION,EXTERNAL FOSTER CARE PROVISION,Third Party Payments,Revenue
Walsall Council,http://opendatacommunities.org/id/metropolitan-district-council/walsall,WC72-618,30/09/2016,Childrens,CAPSTONE FOSTER CARE (SOUTH EAST) LIMITED,02/09/2016,"2,931.47",74037-INDEPENDENT FOSTER CARE-OTH AGENCY PROVISION,EXTERNAL FOSTER CARE PROVISION,Third Party Payments,Revenue
Walsall Council,http://opendatacommunities.org/id/metropolitan-district-council/walsall,WC72-619,30/09/2016,Childrens,CAPSTONE FOSTER CARE (SOUTH EAST) LIMITED,02/09/2016,"2,931.47",74037-INDEPENDENT FOSTER CARE-OTH AGENCY PROVISION,EXTERNAL FOSTER CARE PROVISION,Third Party Payments,Revenue
Walsall Council,http://opendatacommunities.org/id/metropolitan-district-council/walsall,WC72-620,30/09/2016,Childrens,CAPSTONE FOSTER CARE (SOUTH EAST) LIMITED,02/09/2016,"2,931.47",74037-INDEPENDENT FOSTER CARE-OTH AGENCY PROVISION,EXTERNAL FOSTER CARE PROVISION,Third Party Payments,Revenue
Walsall Council,http://opendatacommunities.org/id/metropolitan-district-council/walsall,WC72-621,30/09/2016,Childrens,CAPSTONE FOSTER CARE (SOUTH EAST) LIMITED,02/09/2016,"3,029.19",74037-INDEPENDENT FOSTER CARE-OTH AGENCY PROVISION,EXTERNAL FOSTER CARE PROVISION,Third Party Payments,Revenue
Walsall Council,http://opendatacommunities.org/id/metropolitan-district-council/walsall,WC72-622,30/09/2016,Childrens,CAPSTONE FOSTER CARE (SOUTH EAST) LIMITED,02/09/2016,"3,029.19",74037-INDEPENDENT FOSTER CARE-OTH AGENCY PROVISION,EXTERNAL FOSTER CARE PROVISION,Third Party Payments,Revenue
Walsall Council,http://opendatacommunities.org/id/metropolitan-district-council/walsall,WC72-623,30/09/2016,Childrens,CAPSTONE FOSTER CARE (SOUTH EAST) LIMITED,02/09/2016,"3,029.19",74037-INDEPENDENT FOSTER CARE-OTH AGENCY PROVISION,EXTERNAL FOSTER CARE PROVISION,Third Party Payments,Revenue
Walsall Council,http://opendatacommunities.org/id/metropolitan-district-council/walsall,WC72-624,30/09/2016,Childrens,CAPSTONE FOSTER CARE (SOUTH EAST) LIMITED,02/09/2016,"3,029.19",74037-INDEPENDENT FOSTER CARE-OTH AGENCY PROVISION,EXTERNAL FOSTER CARE PROVISION,Third Party Payments,Revenue
Walsall Council,http://opendatacommunities.org/id/metropolitan-district-council/walsall,WC72-625,30/09/2016,Childrens,CAPSTONE FOSTER CARE (SOUTH EAST) LIMITED,05/09/2016,"3,029.19",74037-INDEPENDENT FOSTER CARE-OTH AGENCY PROVISION,EXTERNAL FOSTER CARE PROVISION,Third Party Payments,Revenue
Walsall Council,http://opendatacommunities.org/id/metropolitan-district-council/walsall,WC72-626,30/09/2016,Childrens,CAPSTONE FOSTER CARE (SOUTH EAST) LIMITED,05/09/2016,"3,029.19",74037-INDEPENDENT FOSTER CARE-OTH AGENCY PROVISION,EXTERNAL FOSTER CARE PROVISION,Third Party Payments,Revenue
Walsall Council,http://opendatacommunities.org/id/metropolitan-district-council/walsall,WC72-627,30/09/2016,Childrens,CAPSTONE FOSTER CARE (SOUTH EAST) LIMITED,02/09/2016,"3,059.57",74037-INDEPENDENT FOSTER CARE-OTH AGENCY PROVISION,EXTERNAL FOSTER CARE PROVISION,Third Party Payments,Revenue
Walsall Council,http://opendatacommunities.org/id/metropolitan-district-council/walsall,WC72-628,30/09/2016,Childrens,CAPSTONE FOSTER CARE (SOUTH EAST) LIMITED,02/09/2016,"3,059.57",74037-INDEPENDENT FOSTER CARE-OTH AGENCY PROVISION,EXTERNAL FOSTER CARE PROVISION,Third Party Payments,Revenue
Walsall Council,http://opendatacommunities.org/id/metropolitan-district-council/walsall,WC72-629,30/09/2016,Childrens,CAPSTONE FOSTER CARE (SOUTH EAST) LIMITED,02/09/2016,"3,161.56",74037-INDEPENDENT FOSTER CARE-OTH AGENCY PROVISION,EXTERNAL FOSTER CARE PROVISION,Third Party Payments,Revenue
Walsall Council,http://opendatacommunities.org/id/metropolitan-district-council/walsall,WC72-630,30/09/2016,Childrens,CAPSTONE FOSTER CARE (SOUTH EAST) LIMITED,02/09/2016,"3,161.56",74037-INDEPENDENT FOSTER CARE-OTH AGENCY PROVISION,EXTERNAL FOSTER CARE PROVISION,Third Party Payments,Revenue
Walsall Council,http://opendatacommunities.org/id/metropolitan-district-council/walsall,WC72-631,30/09/2016,Childrens,CAPSTONE FOSTER CARE (SOUTH EAST) LIMITED,05/09/2016,"3,161.56",74037-INDEPENDENT FOSTER CARE-OTH AGENCY PROVISION,EXTERNAL FOSTER CARE PROVISION,Third Party Payments,Revenue
Walsall Council,http://opendatacommunities.org/id/metropolitan-district-council/walsall,WC72-632,30/09/2016,Childrens,CAPSTONE FOSTER CARE (SOUTH EAST) LIMITED,02/09/2016,"3,422.10",74037-INDEPENDENT FOSTER CARE-OTH AGENCY PROVISION,EXTERNAL FOSTER CARE PROVISION,Third Party Payments,Revenue
Walsall Council,http://opendatacommunities.org/id/metropolitan-district-council/walsall,WC72-633,30/09/2016,Childrens,CAPSTONE FOSTER CARE (SOUTH EAST) LIMITED,06/09/2016,"3,422.10",74037-INDEPENDENT FOSTER CARE-OTH AGENCY PROVISION,EXTERNAL FOSTER CARE PROVISION,Third Party Payments,Revenue
Walsall Council,http://opendatacommunities.org/id/metropolitan-district-council/walsall,WC72-634,30/09/2016,Childrens,CAPSTONE FOSTER CARE (SOUTH EAST) LIMITED,07/09/2016,"3,492.90",74037-INDEPENDENT FOSTER CARE-OTH AGENCY PROVISION,EXTERNAL FOSTER CARE PROVISION,Third Party Payments,Revenue
Walsall Council,http://opendatacommunities.org/id/metropolitan-district-council/walsall,WC72-635,30/09/2016,Childrens,CAPSTONE FOSTER CARE (SOUTH EAST) LIMITED,07/09/2016,"3,492.90",74037-INDEPENDENT FOSTER CARE-OTH AGENCY PROVISION,EXTERNAL FOSTER CARE PROVISION,Third Party Payments,Revenue
Walsall Council,http://opendatacommunities.org/id/metropolitan-district-council/walsall,WC72-636,30/09/2016,Childrens,CAPSTONE FOSTER CARE (SOUTH EAST) LIMITED,02/09/2016,"3,536.17",74037-INDEPENDENT FOSTER CARE-OTH AGENCY PROVISION,EXTERNAL FOSTER CARE PROVISION,Third Party Payments,Revenue
Walsall Council,http://opendatacommunities.org/id/metropolitan-district-council/walsall,WC72-637,30/09/2016,Childrens,CAPSTONE FOSTER CARE (SOUTH EAST) LIMITED,06/09/2016,"3,536.17",74037-INDEPENDENT FOSTER CARE-OTH AGENCY PROVISION,EXTERNAL FOSTER CARE PROVISION,Third Party Payments,Revenue
Walsall Council,http://opendatacommunities.org/id/metropolitan-district-council/walsall,WC72-638,30/09/2016,Childrens,CAPSTONE FOSTER CARE (SOUTH EAST) LIMITED,06/09/2016,"3,536.17",74037-INDEPENDENT FOSTER CARE-OTH AGENCY PROVISION,EXTERNAL FOSTER CARE PROVISION,Third Party Payments,Revenue
Walsall Council,http://opendatacommunities.org/id/metropolitan-district-council/walsall,WC72-639,30/09/2016,Childrens,CAPSTONE FOSTER CARE (SOUTH EAST) LIMITED,06/09/2016,"3,536.17",74037-INDEPENDENT FOSTER CARE-OTH AGENCY PROVISION,EXTERNAL FOSTER CARE PROVISION,Third Party Payments,Revenue
Walsall Council,http://opendatacommunities.org/id/metropolitan-district-council/walsall,WC72-640,30/09/2016,Childrens,CAPSTONE FOSTER CARE (SOUTH EAST) LIMITED,07/09/2016,"3,609.33",74037-INDEPENDENT FOSTER CARE-OTH AGENCY PROVISION,EXTERNAL FOSTER CARE PROVISION,Third Party Payments,Revenue
Walsall Council,http://opendatacommunities.org/id/metropolitan-district-council/walsall,WC72-641,30/09/2016,Childrens,CAPSTONE FOSTER CARE (SOUTH EAST) LIMITED,07/09/2016,"3,609.33",74037-INDEPENDENT FOSTER CARE-OTH AGENCY PROVISION,EXTERNAL FOSTER CARE PROVISION,Third Party Payments,Revenue
Walsall Council,http://opendatacommunities.org/id/metropolitan-district-council/walsall,WC72-642,30/09/2016,Childrens,CAPSTONE FOSTER CARE (SOUTH EAST) LIMITED,09/09/2016,"3,609.33",74037-INDEPENDENT FOSTER CARE-OTH AGENCY PROVISION,EXTERNAL FOSTER CARE PROVISION,Third Party Payments,Revenue
Walsall Council,http://opendatacommunities.org/id/metropolitan-district-council/walsall,WC72-643,30/09/2016,Childrens,CAPSTONE FOSTER CARE (SOUTH EAST) LIMITED,06/09/2016,"3,658.16",74037-INDEPENDENT FOSTER CARE-OTH AGENCY PROVISION,EXTERNAL FOSTER CARE PROVISION,Third Party Payments,Revenue
Walsall Council,http://opendatacommunities.org/id/metropolitan-district-council/walsall,WC72-644,30/09/2016,Childrens,CAPSTONE FOSTER CARE (SOUTH EAST) LIMITED,06/09/2016,"3,658.16",74037-INDEPENDENT FOSTER CARE-OTH AGENCY PROVISION,EXTERNAL FOSTER CARE PROVISION,Third Party Payments,Revenue
Walsall Council,http://opendatacommunities.org/id/metropolitan-district-council/walsall,WC72-645,30/09/2016,Childrens,CAPSTONE FOSTER CARE (SOUTH EAST) LIMITED,06/09/2016,"3,780.10",74037-INDEPENDENT FOSTER CARE-OTH AGENCY PROVISION,EXTERNAL FOSTER CARE PROVISION,Third Party Payments,Revenue
Walsall Council,http://opendatacommunities.org/id/metropolitan-district-council/walsall,WC72-646,30/09/2016,Childrens,CAPSTONE FOSTER CARE (SOUTH EAST) LIMITED,06/09/2016,"3,780.10",74037-INDEPENDENT FOSTER CARE-OTH AGENCY PROVISION,EXTERNAL FOSTER CARE PROVISION,Third Party Payments,Revenue
Walsall Council,http://opendatacommunities.org/id/metropolitan-district-council/walsall,WC72-647,30/09/2016,Childrens,CAPSTONE FOSTER CARE (SOUTH EAST) LIMITED,09/09/2016,"3,780.10",74037-INDEPENDENT FOSTER CARE-OTH AGENCY PROVISION,EXTERNAL FOSTER CARE PROVISION,Third Party Payments,Revenue
Walsall Council,http://opendatacommunities.org/id/metropolitan-district-council/walsall,WC72-648,30/09/2016,Social Care & Inclusion,CARE 2 U LIMITED,13/09/2016,"39,068.04",73372-DOMICILIARY CARE,OP COMMISSIONING,Third Party Payments,Revenue
Walsall Council,http://opendatacommunities.org/id/metropolitan-district-council/walsall,WC72-649,30/09/2016,Childrens,CARE 4 CHILDREN RESIDENTIAL SERVICES LTD,21/09/2016,"16,500.00",74036-EXTERNAL RESIDENTIAL CARE-OTH AGENCY PROVISION,INDEPENDENT RESIDENTIAL HOMES,Third Party Payments,Revenue
Walsall Council,http://opendatacommunities.org/id/metropolitan-district-council/walsall,WC72-650,30/09/2016,Social Care & Inclusion,CARE AVENUES LTD,27/09/2016,695.50,73372-DOMICILIARY CARE,OP COMMISSIONING,Third Party Payments,Revenue
Walsall Council,http://opendatacommunities.org/id/metropolitan-district-council/walsall,WC72-651,30/09/2016,Social Care & Inclusion,CARE AVENUES LTD,02/09/2016,"1,592.50",73372-DOMICILIARY CARE,OP COMMISSIONING,Third Party Payments,Revenue
Walsall Council,http://opendatacommunities.org/id/metropolitan-district-council/walsall,WC72-652,30/09/2016,Social Care & Inclusion,CARE AVENUES LTD,12/09/2016,"9,623.25",73372-DOMICILIARY CARE,OP COMMISSIONING,Third Party Payments,Revenue
Walsall Council,http://opendatacommunities.org/id/metropolitan-district-council/walsall,WC72-653,30/09/2016,Social Care & Inclusion,CARE FIRST MANAGEMENT SERVICES LTD,05/09/2016,780.00,73372-DOMICILIARY CARE,YADS COMMISSIONING,Third Party Payments,Revenue
Walsall Council,http://opendatacommunities.org/id/metropolitan-district-council/walsall,WC72-654,30/09/2016,Childrens,CARE LEAVERS,19/09/2016,90.24,63114-OTHER FEES & LICENCES-SERVICES-FEES,TRANSITION AND LEAVING CARE,Supplies & Services,Revenue
Walsall Council,http://opendatacommunities.org/id/metropolitan-district-council/walsall,WC72-655,30/09/2016,Childrens,CARE LEAVERS,19/09/2016,"2,524.27",76010-ACCOMMODATION AND RELATED COSTS-ASSISTANCE TO S/S CLIENTS,TRANSITION AND LEAVING CARE,Transfer Payments,Revenue
Walsall Council,http://opendatacommunities.org/id/metropolitan-district-council/walsall,WC72-656,30/09/2016,Childrens,CARE LEAVERS,19/09/2016,"4,480.91",64002-OTHER EXPENSES-EXPENSES,TRANSITION AND LEAVING CARE,Supplies & Services,Revenue
Walsall Council,http://opendatacommunities.org/id/metropolitan-district-council/walsall,WC72-657,30/09/2016,Childrens,CARE LEAVERS,19/09/2016,"4,640.90",76400-RESIDENTS PERSONAL EXPENSES-ALLOWANCES TO S/S CLIENTS,TRANSITION AND LEAVING CARE,Transfer Payments,Revenue
Walsall Council,http://opendatacommunities.org/id/metropolitan-district-council/walsall,WC72-658,30/09/2016,Childrens,CARE LEAVERS,19/09/2016,"6,217.97",74500-CARE LEAVERS MTCE PAYMENTS,TRANSITION AND LEAVING CARE,Third Party Payments,Revenue
Walsall Council,http://opendatacommunities.org/id/metropolitan-district-council/walsall,WC72-659,30/09/2016,Social Care & Inclusion,CARE MONITORING 2000 LTD,20/09/2016,"19,312.80",60010-LICENCES-EQUIPMENT,COMMUNITY INTERMEDIATE CARE,Supplies & Services,Revenue
Walsall Council,http://opendatacommunities.org/id/metropolitan-district-council/walsall,WC72-660,30/09/2016,Social Care & Inclusion,CARE SHOP,09/09/2016,274.20,60539-CLEANING MATERIALS,REABLEMENT TEAM - HOLLY BANK,Supplies & Services,Revenue
Walsall Council,http://opendatacommunities.org/id/metropolitan-district-council/walsall,WC72-661,30/09/2016,Social Care & Inclusion,CARE SHOP,15/09/2016,404.35,60000-FURNITURE & EQUIPMENT,REABLEMENT TEAM - HOLLY BANK,Supplies & Services,Revenue
Walsall Council,http://opendatacommunities.org/id/metropolitan-district-council/walsall,WC72-662,30/09/2016,Social Care & Inclusion,CARE SHOP,19/09/2016,597.76,60000-FURNITURE & EQUIPMENT,REABLEMENT TEAM - HOLLY BANK,Supplies & Services,Revenue
Walsall Council,http://opendatacommunities.org/id/metropolitan-district-council/walsall,WC72-663,30/09/2016,Social Care & Inclusion,CARE SHOP,09/09/2016,610.81,60539-CLEANING MATERIALS,REABLEMENT TEAM - HOLLY BANK,Supplies & Services,Revenue
Walsall Council,http://opendatacommunities.org/id/metropolitan-district-council/walsall,WC72-664,30/09/2016,Social Care & Inclusion,CARE SHOP,26/09/2016,723.46,60539-CLEANING MATERIALS,REABLEMENT TEAM - HOLLY BANK,Supplies & Services,Revenue
Walsall Council,http://opendatacommunities.org/id/metropolitan-district-council/walsall,WC72-665,30/09/2016,Social Care & Inclusion,CARE SHOP,01/10/2016,955.20,60539-CLEANING MATERIALS,REABLEMENT TEAM - HOLLY BANK,Supplies & Services,Revenue
Walsall Council,http://opendatacommunities.org/id/metropolitan-district-council/walsall,WC72-666,30/09/2016,Childrens,CARE TODAY CHILDRENS SERVICES,23/09/2016,"11,492.01",74036-EXTERNAL RESIDENTIAL CARE-OTH AGENCY PROVISION,INDEPENDENT RESIDENTIAL HOMES,Third Party Payments,Revenue
Walsall Council,http://opendatacommunities.org/id/metropolitan-district-council/walsall,WC72-667,30/09/2016,Childrens,CARE TODAY CHILDRENS SERVICES,23/09/2016,"11,492.01",74036-EXTERNAL RESIDENTIAL CARE-OTH AGENCY PROVISION,INDEPENDENT RESIDENTIAL HOMES,Third Party Payments,Revenue
Walsall Council,http://opendatacommunities.org/id/metropolitan-district-council/walsall,WC72-668,30/09/2016,Childrens,CARE TODAY CHILDRENS SERVICES,23/09/2016,"14,096.01",74036-EXTERNAL RESIDENTIAL CARE-OTH AGENCY PROVISION,INDEPENDENT RESIDENTIAL HOMES,Third Party Payments,Revenue
Walsall Council,http://opendatacommunities.org/id/metropolitan-district-council/walsall,WC72-669,30/09/2016,Childrens,CAREFIRST SERVICES LIMITED,02/09/2016,"1,837.94",76010-ACCOMMODATION AND RELATED COSTS-ASSISTANCE TO S/S CLIENTS,TRANSITION AND LEAVING CARE,Transfer Payments,Revenue
Walsall Council,http://opendatacommunities.org/id/metropolitan-district-council/walsall,WC72-670,30/09/2016,Social Care & Inclusion,CARETECH COMMUNITY SERVICE,26/09/2016,"4,885.71",73374-SUPPORTED & OTHER ACCOMMODATION,OP COMMISSIONING,Third Party Payments,Revenue
Walsall Council,http://opendatacommunities.org/id/metropolitan-district-council/walsall,WC72-671,30/09/2016,Social Care & Inclusion,CARETECH COMMUNITY SERVICE,23/09/2016,"5,048.57",73374-SUPPORTED & OTHER ACCOMMODATION,OP COMMISSIONING,Third Party Payments,Revenue
Walsall Council,http://opendatacommunities.org/id/metropolitan-district-council/walsall,WC72-672,30/09/2016,Social Care & Inclusion,CARETECH COMMUNITY SERVICE,22/09/2016,"7,020.00",73374-SUPPORTED & OTHER ACCOMMODATION,LD COMMISSIONING,Third Party Payments,Revenue
Walsall Council,http://opendatacommunities.org/id/metropolitan-district-council/walsall,WC72-673,30/09/2016,Social Care & Inclusion,CAREVIEW SERVICES LTD,13/09/2016,"6,583.36",73373-RESIDENTIAL & NURSING CARE PLACEMENTS,LD COMMISSIONING,Third Party Payments,Revenue
Walsall Council,http://opendatacommunities.org/id/metropolitan-district-council/walsall,WC72-674,30/09/2016,Social Care & Inclusion,CARING CARE LIMITED,01/09/2016,864.00,73025-PROFESSIONAL SERVICES-PRIV CONTRACTOR & OTHER AGENCIES,CARERS SERVICES,Third Party Payments,Revenue
Walsall Council,http://opendatacommunities.org/id/metropolitan-district-council/walsall,WC72-675,30/09/2016,Social Care & Inclusion,CARING CARE LIMITED,01/09/2016,894.00,73025-PROFESSIONAL SERVICES-PRIV CONTRACTOR & OTHER AGENCIES,CARERS SERVICES,Third Party Payments,Revenue
Walsall Council,http://opendatacommunities.org/id/metropolitan-district-council/walsall,WC72-676,30/09/2016,Social Care & Inclusion,CARING CARE LIMITED,13/09/2016,"57,952.22",73372-DOMICILIARY CARE,OP COMMISSIONING,Third Party Payments,Revenue
Walsall Council,http://opendatacommunities.org/id/metropolitan-district-council/walsall,WC72-677,30/09/2016,Social Care & Inclusion,CARING HANDS LIMITED,13/09/2016,"45,611.81",73372-DOMICILIARY CARE,OP COMMISSIONING,Third Party Payments,Revenue
Walsall Council,http://opendatacommunities.org/id/metropolitan-district-council/walsall,WC72-678,30/09/2016,Social Care & Inclusion,REDACTED,09/09/2016,270.08,73374-SUPPORTED & OTHER ACCOMMODATION,LD COMMISSIONING,Third Party Payments,Revenue
Walsall Council,http://opendatacommunities.org/id/metropolitan-district-council/walsall,WC72-679,30/09/2016,Social Care & Inclusion,REDACTED,09/09/2016,"1,637.40",73374-SUPPORTED & OTHER ACCOMMODATION,YADS COMMISSIONING,Third Party Payments,Revenue
Walsall Council,http://opendatacommunities.org/id/metropolitan-district-council/walsall,WC72-680,30/09/2016,Social Care & Inclusion,REDACTED,09/09/2016,"1,637.40",73374-SUPPORTED & OTHER ACCOMMODATION,YADS COMMISSIONING,Third Party Payments,Revenue
Walsall Council,http://opendatacommunities.org/id/metropolitan-district-council/walsall,WC72-681,30/09/2016,Social Care & Inclusion,REDACTED,28/09/2016,"1,637.40",73374-SUPPORTED & OTHER ACCOMMODATION,YADS COMMISSIONING,Third Party Payments,Revenue
Walsall Council,http://opendatacommunities.org/id/metropolitan-district-council/walsall,WC72-682,30/09/2016,Social Care & Inclusion,REDACTED,28/09/2016,"1,637.40",73374-SUPPORTED & OTHER ACCOMMODATION,YADS COMMISSIONING,Third Party Payments,Revenue
Walsall Council,http://opendatacommunities.org/id/metropolitan-district-council/walsall,WC72-683,30/09/2016,Social Care & Inclusion,REDACTED,12/09/2016,562.50,76422-DIRECT PAYMENTS TO SOCIAL SERVICES CLIENTS,YADS COMMISSIONING,Transfer Payments,Revenue
Walsall Council,http://opendatacommunities.org/id/metropolitan-district-council/walsall,WC72-684,30/09/2016,Childrens,REDACTED,12/09/2016,470.96,74006-HOLIDAY/CHRISTMAS ALLOWANCE-FOSTER CARERS-OTH AGENCY PROVISION,INTERNAL FOSTER CARE PROVISION,Third Party Payments,Revenue
Walsall Council,http://opendatacommunities.org/id/metropolitan-district-council/walsall,WC72-685,30/09/2016,Childrens,REDACTED,12/09/2016,540.20,62515-MISCELLANEOUS SUPPLIES,INTERNAL FOSTER CARE PROVISION,Supplies & Services,Revenue
Walsall Council,http://opendatacommunities.org/id/metropolitan-district-council/walsall,WC72-686,30/09/2016,Childrens,REDACTED,26/09/2016,361.12,74006-HOLIDAY/CHRISTMAS ALLOWANCE-FOSTER CARERS-OTH AGENCY PROVISION,INTERNAL FOSTER CARE PROVISION,Third Party Payments,Revenue
Walsall Council,http://opendatacommunities.org/id/metropolitan-district-council/walsall,WC72-687,30/09/2016,Childrens,REDACTED,07/09/2016,"1,040.60",63000-PROFESSIONAL FEES AND SERVICES,SAFEGUARDING & FAMILY SUPPORT,Supplies & Services,Revenue
Walsall Council,http://opendatacommunities.org/id/metropolitan-district-council/walsall,WC72-688,30/09/2016,Economy & Environment,CARTER SYNERGY LTD,01/09/2016,"-1,477.00",40023-FIRE FIGHTING EQUIPMENT-OP MTCE,NAG - MAINTENANCE,Premises,Revenue
Walsall Council,http://opendatacommunities.org/id/metropolitan-district-council/walsall,WC72-689,30/09/2016,Economy & Environment,CARTER SYNERGY LTD,26/09/2016,852.50,"40000-REPAIRS,ALTERATIONS & MAINTENANCE-PREM",NAG - MAINTENANCE,Premises,Revenue
Walsall Council,http://opendatacommunities.org/id/metropolitan-district-council/walsall,WC72-690,30/09/2016,Economy & Environment,CARTER SYNERGY LTD,01/09/2016,"1,194.27",40216-OTHER-PLAN MTCE,NAG - MAINTENANCE,Premises,Revenue
Walsall Council,http://opendatacommunities.org/id/metropolitan-district-council/walsall,WC72-691,30/09/2016,Economy & Environment,CARTER SYNERGY LTD,28/09/2016,"1,404.95","40000-REPAIRS,ALTERATIONS & MAINTENANCE-PREM",NAG - MAINTENANCE,Premises,Revenue
Walsall Council,http://opendatacommunities.org/id/metropolitan-district-council/walsall,WC72-692,30/09/2016,Childrens,CASTLE BUSINESS AND ENTERPRISE COLLEGE,14/09/2016,"3,096.75",66502-TOP UP FUNDING -GRANTS TO SCHOOLS,MAINTAINED PROVIDERS,Third Party Payments,Revenue
Walsall Council,http://opendatacommunities.org/id/metropolitan-district-council/walsall,WC72-693,30/09/2016,Childrens,CASTLECARE CYMRU LIMITED,28/09/2016,-632.62,74036-EXTERNAL RESIDENTIAL CARE-OTH AGENCY PROVISION,INDEPENDENT RESIDENTIAL HOMES,Third Party Payments,Revenue
Walsall Council,http://opendatacommunities.org/id/metropolitan-district-council/walsall,WC72-694,30/09/2016,Childrens,CASTLECARE CYMRU LIMITED,28/09/2016,-632.62,74036-EXTERNAL RESIDENTIAL CARE-OTH AGENCY PROVISION,INDEPENDENT RESIDENTIAL HOMES,Third Party Payments,Revenue
Walsall Council,http://opendatacommunities.org/id/metropolitan-district-council/walsall,WC72-695,30/09/2016,Childrens,CASTLECARE CYMRU LIMITED,28/09/2016,607.84,74036-EXTERNAL RESIDENTIAL CARE-OTH AGENCY PROVISION,INDEPENDENT RESIDENTIAL HOMES,Third Party Payments,Revenue
Walsall Council,http://opendatacommunities.org/id/metropolitan-district-council/walsall,WC72-696,30/09/2016,Childrens,CASTLECARE CYMRU LIMITED,28/09/2016,"18,842.91",74036-EXTERNAL RESIDENTIAL CARE-OTH AGENCY PROVISION,INDEPENDENT RESIDENTIAL HOMES,Third Party Payments,Revenue
Walsall Council,http://opendatacommunities.org/id/metropolitan-district-council/walsall,WC72-697,30/09/2016,Childrens,CASTLECARE CYMRU LIMITED,28/09/2016,"18,842.91",74036-EXTERNAL RESIDENTIAL CARE-OTH AGENCY PROVISION,INDEPENDENT RESIDENTIAL HOMES,Third Party Payments,Revenue
Walsall Council,http://opendatacommunities.org/id/metropolitan-district-council/walsall,WC72-698,30/09/2016,Childrens,CATCH 22 CHARITY LTD,19/09/2016,"2,995.00",64500-PUBLICATIONS/ORGANISATIONS-SUBSCRIPTIONS,TRANSITION AND LEAVING CARE,Supplies & Services,Revenue
Walsall Council,http://opendatacommunities.org/id/metropolitan-district-council/walsall,WC72-699,30/09/2016,Social Care & Inclusion,REDACTED,12/09/2016,816.75,76422-DIRECT PAYMENTS TO SOCIAL SERVICES CLIENTS,LD COMMISSIONING,Transfer Payments,Revenue
Walsall Council,http://opendatacommunities.org/id/metropolitan-district-council/walsall,WC72-700,30/09/2016,Social Care & Inclusion,REDACTED,12/09/2016,863.10,76422-DIRECT PAYMENTS TO SOCIAL SERVICES CLIENTS,MH COMMISSIONING,Transfer Payments,Revenue
Walsall Council,http://opendatacommunities.org/id/metropolitan-district-council/walsall,WC72-701,30/09/2016,Childrens,REDACTED,26/09/2016,425.08,74006-HOLIDAY/CHRISTMAS ALLOWANCE-FOSTER CARERS-OTH AGENCY PROVISION,INTERNAL FOSTER CARE PROVISION,Third Party Payments,Revenue
Walsall Council,http://opendatacommunities.org/id/metropolitan-district-council/walsall,WC72-702,30/09/2016,Social Care & Inclusion,REDACTED,12/09/2016,517.50,76422-DIRECT PAYMENTS TO SOCIAL SERVICES CLIENTS,LD COMMISSIONING,Transfer Payments,Revenue
Walsall Council,http://opendatacommunities.org/id/metropolitan-district-council/walsall,WC72-703,30/09/2016,Childrens,REDACTED,12/09/2016,"1,267.83",76422-DIRECT PAYMENTS TO SOCIAL SERVICES CLIENTS,FAMILY SUPPORT - DIRECT PAYMENTS,Transfer Payments,Revenue
Walsall Council,http://opendatacommunities.org/id/metropolitan-district-council/walsall,WC72-704,30/09/2016,Childrens,REDACTED,26/09/2016,425.08,74006-HOLIDAY/CHRISTMAS ALLOWANCE-FOSTER CARERS-OTH AGENCY PROVISION,INTERNAL FOSTER CARE PROVISION,Third Party Payments,Revenue
Walsall Council,http://opendatacommunities.org/id/metropolitan-district-council/walsall,WC72-705,30/09/2016,Change and Governance,CE SECURITY LTD,02/09/2016,"4,713.28",73002-SECURITY-PRIV CONTRACTOR FEES,ACCOMMODATION SERVICES MANAGEMENT,Third Party Payments,Revenue
Walsall Council,http://opendatacommunities.org/id/metropolitan-district-council/walsall,WC72-706,30/09/2016,Social Care & Inclusion,CEDAR GRANGE CARE HOME,13/09/2016,"2,200.00",73373-RESIDENTIAL & NURSING CARE PLACEMENTS,OP COMMISSIONING,Third Party Payments,Revenue
Walsall Council,http://opendatacommunities.org/id/metropolitan-district-council/walsall,WC72-707,30/09/2016,Social Care & Inclusion,CEDAR GRANGE CARE HOME,13/09/2016,"2,200.00",73373-RESIDENTIAL & NURSING CARE PLACEMENTS,OP COMMISSIONING,Third Party Payments,Revenue
Walsall Council,http://opendatacommunities.org/id/metropolitan-district-council/walsall,WC72-708,30/09/2016,Economy & Environment,CERTAS ENERGY UK LIMITED,08/09/2016,439.10,50301-FUEL-TRANSPORT RUN COSTS,TARMAC,Transport,Revenue
Walsall Council,http://opendatacommunities.org/id/metropolitan-district-council/walsall,WC72-709,30/09/2016,Economy & Environment,CERTAS ENERGY UK LIMITED,26/09/2016,659.55,50301-FUEL-TRANSPORT RUN COSTS,FUEL STOCK ACCOUNT,Transport,Revenue
Walsall Council,http://opendatacommunities.org/id/metropolitan-district-council/walsall,WC72-710,30/09/2016,Economy & Environment,CERTAS ENERGY UK LIMITED,01/09/2016,"1,240.80",50301-FUEL-TRANSPORT RUN COSTS,FUEL STOCK ACCOUNT,Transport,Revenue
Walsall Council,http://opendatacommunities.org/id/metropolitan-district-council/walsall,WC72-711,30/09/2016,Economy & Environment,CERTAS ENERGY UK LIMITED,26/09/2016,"1,269.90",50301-FUEL-TRANSPORT RUN COSTS,FUEL STOCK ACCOUNT,Transport,Revenue
Walsall Council,http://opendatacommunities.org/id/metropolitan-district-council/walsall,WC72-712,30/09/2016,Economy & Environment,CERTAS ENERGY UK LIMITED,01/09/2016,"16,996.30",50301-FUEL-TRANSPORT RUN COSTS,FUEL STOCK ACCOUNT,Transport,Revenue
Walsall Council,http://opendatacommunities.org/id/metropolitan-district-council/walsall,WC72-713,30/09/2016,Economy & Environment,CERTAS ENERGY UK LIMITED,09/09/2016,"17,354.51",50301-FUEL-TRANSPORT RUN COSTS,FUEL STOCK ACCOUNT,Transport,Revenue
Walsall Council,http://opendatacommunities.org/id/metropolitan-district-council/walsall,WC72-714,30/09/2016,Economy & Environment,CERTAS ENERGY UK LIMITED,28/09/2016,"17,582.70",50301-FUEL-TRANSPORT RUN COSTS,FUEL STOCK ACCOUNT,Transport,Revenue
Walsall Council,http://opendatacommunities.org/id/metropolitan-district-council/walsall,WC72-715,30/09/2016,Economy & Environment,CERTAS ENERGY UK LIMITED,28/09/2016,"17,649.59",50301-FUEL-TRANSPORT RUN COSTS,FUEL STOCK ACCOUNT,Transport,Revenue
Walsall Council,http://opendatacommunities.org/id/metropolitan-district-council/walsall,WC72-716,30/09/2016,Economy & Environment,CERTAS ENERGY UK LIMITED,13/09/2016,"17,952.73",50301-FUEL-TRANSPORT RUN COSTS,FUEL STOCK ACCOUNT,Transport,Revenue
Walsall Council,http://opendatacommunities.org/id/metropolitan-district-council/walsall,WC72-717,30/09/2016,Change and Governance,CETUS SOLUTIONS LIMITED,01/09/2016,"7,543.78",63820-RECHARGE FOR MAINTENANCE/APPLICATION COSTS-COMPUTER,DATA CENTRES,Supplies & Services,Revenue
Walsall Council,http://opendatacommunities.org/id/metropolitan-district-council/walsall,WC72-718,30/09/2016,Childrens,CF CORPORATE FINANCE LTD,27/09/2016,255.00,60009-LEASING/HIRE/RENTAL-EQUIPMENT,LOCALITY FAMILY SUPPORT-NORTH,Supplies & Services,Revenue
Walsall Council,http://opendatacommunities.org/id/metropolitan-district-council/walsall,WC72-719,30/09/2016,Social Care & Inclusion,REDACTED,12/09/2016,990.00,76422-DIRECT PAYMENTS TO SOCIAL SERVICES CLIENTS,YADS COMMISSIONING,Transfer Payments,Revenue
Walsall Council,http://opendatacommunities.org/id/metropolitan-district-council/walsall,WC72-720,30/09/2016,Childrens,REDACTED,26/09/2016,368.16,74006-HOLIDAY/CHRISTMAS ALLOWANCE-FOSTER CARERS-OTH AGENCY PROVISION,INTERNAL FOSTER CARE PROVISION,Third Party Payments,Revenue
Walsall Council,http://opendatacommunities.org/id/metropolitan-district-council/walsall,WC72-721,30/09/2016,Childrens,CHARLIE CATERPILLAR'S DAY NURSERY,09/09/2016,"1,508.22",63120-CRECHE FACILITIES-SERVICES-FEES,BUDDY COSTS 0-5,Supplies & Services,Revenue
Walsall Council,http://opendatacommunities.org/id/metropolitan-district-council/walsall,WC72-722,30/09/2016,Childrens,CHARLIE CATERPILLAR'S DAY NURSERY,09/09/2016,"2,976.75",63120-CRECHE FACILITIES-SERVICES-FEES,BUDDY COSTS 0-5,Supplies & Services,Revenue
Walsall Council,http://opendatacommunities.org/id/metropolitan-district-council/walsall,WC72-723,30/09/2016,Childrens,REDACTED,12/09/2016,323.70,76422-DIRECT PAYMENTS TO SOCIAL SERVICES CLIENTS,FAMILY SUPPORT - DIRECT PAYMENTS,Transfer Payments,Revenue
Walsall Council,http://opendatacommunities.org/id/metropolitan-district-council/walsall,WC72-724,30/09/2016,Social Care & Inclusion,CHARTER CARE,13/09/2016,"45,658.09",73372-DOMICILIARY CARE,OP COMMISSIONING,Third Party Payments,Revenue
Walsall Council,http://opendatacommunities.org/id/metropolitan-district-council/walsall,WC72-725,30/09/2016,Social Care & Inclusion,CHASEVIEW CARE HOME,20/09/2016,"2,526.86",73373-RESIDENTIAL & NURSING CARE PLACEMENTS,OP COMMISSIONING,Third Party Payments,Revenue
Walsall Council,http://opendatacommunities.org/id/metropolitan-district-council/walsall,WC72-726,30/09/2016,Economy & Environment,CHEMTECH WASTE MANAGEMENT LTD,12/09/2016,"5,335.00",73025-PROFESSIONAL SERVICES-PRIV CONTRACTOR & OTHER AGENCIES,STREET CLEANSING,Third Party Payments,Revenue
Walsall Council,http://opendatacommunities.org/id/metropolitan-district-council/walsall,WC72-727,30/09/2016,Social Care & Inclusion,CHERISH HOME CARE,21/09/2016,325.00,73372-DOMICILIARY CARE,OP COMMISSIONING,Third Party Payments,Revenue
Walsall Council,http://opendatacommunities.org/id/metropolitan-district-council/walsall,WC72-728,30/09/2016,Social Care & Inclusion,CHERISH HOME CARE,21/09/2016,364.00,73372-DOMICILIARY CARE,OP COMMISSIONING,Third Party Payments,Revenue
Walsall Council,http://opendatacommunities.org/id/metropolitan-district-council/walsall,WC72-729,30/09/2016,Social Care & Inclusion,CHERISH HOME CARE,21/09/2016,409.50,73372-DOMICILIARY CARE,OP COMMISSIONING,Third Party Payments,Revenue
Walsall Council,http://opendatacommunities.org/id/metropolitan-district-council/walsall,WC72-730,30/09/2016,Social Care & Inclusion,CHERISH HOME CARE,21/09/2016,435.50,73372-DOMICILIARY CARE,OP COMMISSIONING,Third Party Payments,Revenue
Walsall Council,http://opendatacommunities.org/id/metropolitan-district-council/walsall,WC72-731,30/09/2016,Social Care & Inclusion,CHERISH HOME CARE,21/09/2016,435.50,73372-DOMICILIARY CARE,OP COMMISSIONING,Third Party Payments,Revenue
Walsall Council,http://opendatacommunities.org/id/metropolitan-district-council/walsall,WC72-732,30/09/2016,Social Care & Inclusion,CHERISH HOME CARE,21/09/2016,546.00,73372-DOMICILIARY CARE,OP COMMISSIONING,Third Party Payments,Revenue
Walsall Council,http://opendatacommunities.org/id/metropolitan-district-council/walsall,WC72-733,30/09/2016,Social Care & Inclusion,CHERISH HOME CARE,21/09/2016,624.00,73372-DOMICILIARY CARE,OP COMMISSIONING,Third Party Payments,Revenue
Walsall Council,http://opendatacommunities.org/id/metropolitan-district-council/walsall,WC72-734,30/09/2016,Social Care & Inclusion,CHERISH HOME CARE,21/09/2016,702.00,73372-DOMICILIARY CARE,OP COMMISSIONING,Third Party Payments,Revenue
Walsall Council,http://opendatacommunities.org/id/metropolitan-district-council/walsall,WC72-735,30/09/2016,Social Care & Inclusion,CHERISH HOME CARE,21/09/2016,728.00,73372-DOMICILIARY CARE,YADS COMMISSIONING,Third Party Payments,Revenue
Walsall Council,http://opendatacommunities.org/id/metropolitan-district-council/walsall,WC72-736,30/09/2016,Social Care & Inclusion,CHERISH HOME CARE,21/09/2016,903.50,73372-DOMICILIARY CARE,OP COMMISSIONING,Third Party Payments,Revenue
Walsall Council,http://opendatacommunities.org/id/metropolitan-district-council/walsall,WC72-737,30/09/2016,Social Care & Inclusion,CHERISH HOME CARE,21/09/2016,910.00,73372-DOMICILIARY CARE,OP COMMISSIONING,Third Party Payments,Revenue
Walsall Council,http://opendatacommunities.org/id/metropolitan-district-council/walsall,WC72-738,30/09/2016,Social Care & Inclusion,CHERISH HOME CARE,26/09/2016,"1,274.00",73372-DOMICILIARY CARE,OP COMMISSIONING,Third Party Payments,Revenue
Walsall Council,http://opendatacommunities.org/id/metropolitan-district-council/walsall,WC72-739,30/09/2016,Social Care & Inclusion,CHERISH HOME CARE,21/09/2016,"1,638.00",73372-DOMICILIARY CARE,OP COMMISSIONING,Third Party Payments,Revenue
Walsall Council,http://opendatacommunities.org/id/metropolitan-district-council/walsall,WC72-740,30/09/2016,Social Care & Inclusion,CHERISH HOME CARE,21/09/2016,"2,450.50",73372-DOMICILIARY CARE,OP COMMISSIONING,Third Party Payments,Revenue
Walsall Council,http://opendatacommunities.org/id/metropolitan-district-council/walsall,WC72-741,30/09/2016,Social Care & Inclusion,REDACTED,12/09/2016,"2,037.00",76422-DIRECT PAYMENTS TO SOCIAL SERVICES CLIENTS,LD COMMISSIONING,Transfer Payments,Revenue
Walsall Council,http://opendatacommunities.org/id/metropolitan-district-council/walsall,WC72-742,30/09/2016,Childrens,CHILDCARE BUREAU LTD,19/09/2016,"3,399.76",74037-INDEPENDENT FOSTER CARE-OTH AGENCY PROVISION,EXTERNAL FOSTER CARE PROVISION,Third Party Payments,Revenue
Walsall Council,http://opendatacommunities.org/id/metropolitan-district-council/walsall,WC72-743,30/09/2016,Childrens,CHILDCARE BUREAU LTD,19/09/2016,"6,000.12",74037-INDEPENDENT FOSTER CARE-OTH AGENCY PROVISION,EXTERNAL FOSTER CARE PROVISION,Third Party Payments,Revenue
Walsall Council,http://opendatacommunities.org/id/metropolitan-district-council/walsall,WC72-744,30/09/2016,Childrens,CHILDLINK,02/09/2016,340.10,76003-SECTION 34 (CONTACT),CONTACT SESSIONAL STAFF,Third Party Payments,Revenue
Walsall Council,http://opendatacommunities.org/id/metropolitan-district-council/walsall,WC72-745,30/09/2016,Childrens,CHILDREN ALWAYS FIRST LTD,07/09/2016,"2,929.50",74037-INDEPENDENT FOSTER CARE-OTH AGENCY PROVISION,EXTERNAL FOSTER CARE PROVISION,Third Party Payments,Revenue
Walsall Council,http://opendatacommunities.org/id/metropolitan-district-council/walsall,WC72-746,30/09/2016,Childrens,CHILDREN ALWAYS FIRST LTD,06/09/2016,"3,128.79",74037-INDEPENDENT FOSTER CARE-OTH AGENCY PROVISION,EXTERNAL FOSTER CARE PROVISION,Third Party Payments,Revenue
Walsall Council,http://opendatacommunities.org/id/metropolitan-district-council/walsall,WC72-747,30/09/2016,Childrens,CHILDREN ALWAYS FIRST LTD,07/09/2016,"3,128.79",74037-INDEPENDENT FOSTER CARE-OTH AGENCY PROVISION,EXTERNAL FOSTER CARE PROVISION,Third Party Payments,Revenue
Walsall Council,http://opendatacommunities.org/id/metropolitan-district-council/walsall,WC72-748,30/09/2016,Childrens,CHILDREN ALWAYS FIRST LTD,07/09/2016,"3,520.71",74037-INDEPENDENT FOSTER CARE-OTH AGENCY PROVISION,EXTERNAL FOSTER CARE PROVISION,Third Party Payments,Revenue
Walsall Council,http://opendatacommunities.org/id/metropolitan-district-council/walsall,WC72-749,30/09/2016,Childrens,CHILDREN ALWAYS FIRST LTD,07/09/2016,"3,631.43",74037-INDEPENDENT FOSTER CARE-OTH AGENCY PROVISION,EXTERNAL FOSTER CARE PROVISION,Third Party Payments,Revenue
Walsall Council,http://opendatacommunities.org/id/metropolitan-district-council/walsall,WC72-750,30/09/2016,Social Care & Inclusion,CHOICECARE 2000 LIMITED,13/09/2016,"3,108.64",73373-RESIDENTIAL & NURSING CARE PLACEMENTS,MH COMMISSIONING,Third Party Payments,Revenue
Walsall Council,http://opendatacommunities.org/id/metropolitan-district-council/walsall,WC72-751,30/09/2016,Social Care & Inclusion,CHOICECARE 2000 LIMITED,13/09/2016,"3,272.72",73373-RESIDENTIAL & NURSING CARE PLACEMENTS,MH COMMISSIONING,Third Party Payments,Revenue
Walsall Council,http://opendatacommunities.org/id/metropolitan-district-council/walsall,WC72-752,30/09/2016,Childrens,CHRIST CHURCH C.E PRIMARY SCHOOL,20/09/2016,"8,000.00",60500-GENERAL MATERIALS,PRIMARY CONSULTATIVE GROUP,Supplies & Services,Revenue
Walsall Council,http://opendatacommunities.org/id/metropolitan-district-council/walsall,WC72-753,30/09/2016,Social Care & Inclusion,REDACTED,12/09/2016,"1,862.03",76422-DIRECT PAYMENTS TO SOCIAL SERVICES CLIENTS,MH COMMISSIONING,Transfer Payments,Revenue
Walsall Council,http://opendatacommunities.org/id/metropolitan-district-council/walsall,WC72-754,30/09/2016,Social Care & Inclusion,REDACTED,12/09/2016,612.00,76422-DIRECT PAYMENTS TO SOCIAL SERVICES CLIENTS,YADS COMMISSIONING,Transfer Payments,Revenue
Walsall Council,http://opendatacommunities.org/id/metropolitan-district-council/walsall,WC72-755,30/09/2016,Social Care & Inclusion,REDACTED,12/09/2016,"2,635.00",76422-DIRECT PAYMENTS TO SOCIAL SERVICES CLIENTS,OP COMMISSIONING,Transfer Payments,Revenue
Walsall Council,http://opendatacommunities.org/id/metropolitan-district-council/walsall,WC72-756,30/09/2016,Childrens,REDACTED,26/09/2016,756.04,74006-HOLIDAY/CHRISTMAS ALLOWANCE-FOSTER CARERS-OTH AGENCY PROVISION,INTERNAL FOSTER CARE PROVISION,Third Party Payments,Revenue
Walsall Council,http://opendatacommunities.org/id/metropolitan-district-council/walsall,WC72-757,30/09/2016,Social Care & Inclusion,REDACTED,12/09/2016,"1,077.70",76422-DIRECT PAYMENTS TO SOCIAL SERVICES CLIENTS,YADS COMMISSIONING,Transfer Payments,Revenue
Walsall Council,http://opendatacommunities.org/id/metropolitan-district-council/walsall,WC72-758,30/09/2016,Social Care & Inclusion,REDACTED,12/09/2016,735.00,76422-DIRECT PAYMENTS TO SOCIAL SERVICES CLIENTS,OP COMMISSIONING,Transfer Payments,Revenue
Walsall Council,http://opendatacommunities.org/id/metropolitan-district-council/walsall,WC72-759,30/09/2016,Childrens,REDACTED,12/09/2016,354.48,62515-MISCELLANEOUS SUPPLIES,INTERNAL FOSTER CARE PROVISION,Supplies & Services,Revenue
Walsall Council,http://opendatacommunities.org/id/metropolitan-district-council/walsall,WC72-760,30/09/2016,Childrens,REDACTED,12/09/2016,732.29,74006-HOLIDAY/CHRISTMAS ALLOWANCE-FOSTER CARERS-OTH AGENCY PROVISION,INTERNAL FOSTER CARE PROVISION,Third Party Payments,Revenue
Walsall Council,http://opendatacommunities.org/id/metropolitan-district-council/walsall,WC72-761,30/09/2016,Childrens,CHUBB FIRE & SECURITY LTD,26/09/2016,241.61,40705-TESTING-ELEC SERVICES,ALUMWELL NURSERY,Premises,Revenue
Walsall Council,http://opendatacommunities.org/id/metropolitan-district-council/walsall,WC72-762,30/09/2016,Childrens,CHUBB FIRE & SECURITY LTD,01/09/2016,526.53,63239-EXTERNAL WORKS-PAYMENT TO CONTRACTOR,INITIAL RESPONSE SERVICE,Third Party Payments,Revenue
Walsall Council,http://opendatacommunities.org/id/metropolitan-district-council/walsall,WC72-763,30/09/2016,Childrens,CHUBB FIRE & SECURITY LTD,27/09/2016,770.38,40705-TESTING-ELEC SERVICES,ALUMWELL NURSERY,Premises,Revenue
Walsall Council,http://opendatacommunities.org/id/metropolitan-district-council/walsall,WC72-764,30/09/2016,Childrens,CHUBB FIRE & SECURITY LTD,27/09/2016,860.82,40705-TESTING-ELEC SERVICES,BLOXWICH CHILDCARE SERVICE,Premises,Revenue
Walsall Council,http://opendatacommunities.org/id/metropolitan-district-council/walsall,WC72-765,30/09/2016,Childrens,CHUBB FIRE & SECURITY LTD,27/09/2016,911.75,40705-TESTING-ELEC SERVICES,LOCALITY FAMILY SUPPORT-NORTH,Premises,Revenue
Walsall Council,http://opendatacommunities.org/id/metropolitan-district-council/walsall,WC72-766,30/09/2016,Social Care & Inclusion,REDACTED,22/09/2016,727.26,73374-SUPPORTED & OTHER ACCOMMODATION,MH COMMISSIONING,Third Party Payments,Revenue
Walsall Council,http://opendatacommunities.org/id/metropolitan-district-council/walsall,WC72-767,30/09/2016,Social Care & Inclusion,REDACTED,22/09/2016,"1,452.12",73374-SUPPORTED & OTHER ACCOMMODATION,MH COMMISSIONING,Third Party Payments,Revenue
